Workbook

Sheet reports
A3: Sorcímkék | B3: Mennyiség / Régió
A4: Dél-Alföld | B4: 10
A5: Dél-Dunántúl | B5: 10
A6: Észak-Alföld | B6: 10
A7: Észak-Magyarország | B7: 10
A8: Közép-Dunántúl | B8: 10
A9: Közép-Magyarország | B9: 10
A10: Magyarország | B10: 16
A11: Nyugat-Dunántúl | B11: 10
A12: (üres)
A13: Végösszeg | B13: 86 | C13: =GETPIVOTDATA("Régió",$A$3)-GETPIVOTDATA("Régió",$A$3,"Régió","Magyarország") -> 70 | D13: <--cél | E13: =7*10 -> 70

Sheet db
A1: id | B1: Régió | C1: Év | D1: Mutatószám | E1: Érték | F1: Mértékegység | G1: Forrás | H1: Egyéni/Társas | I1: SFH-csoport | J1: Mezőgazdasági terület | K1: Hatékonyság | L1: Termelési irány | M1: hibás
A2: 1 | B2: Dél-Alföld | C2: 2001 | D2: Búza *összesen*na.*na. | E2: 4.45 | F2: t/ha | G2: AKII | H2: Egyéni | I2: Összes | J2: Összes | K2: Összes | L2: Árunövénytermesztés
A3: 2 | B3: Dél-Alföld | C3: 2006 | D3: Búza *összesen*na.*na. | E3: 4.24 | F3: t/ha | G3: AKII | H3: Egyéni | I3: Összes | J3: Összes | K3: Összes | L3: Árunövénytermesztés
A4: 3 | B4: Dél-Alföld | C4: 2003 | D4: Búza *összesen*na.*na. | E4: 2.87 | F4: t/ha | G4: AKII | H4: Egyéni | I4: Összes | J4: Összes | K4: Összes | L4: Árunövénytermesztés
A5: 4 | B5: Dél-Alföld | C5: 2002 | D5: Búza *összesen*na.*na. | E5: 3.66 | F5: t/ha | G5: AKII | H5: Egyéni | I5: Összes | J5: Összes | K5: Összes | L5: Árunövénytermesztés
A6: 5 | B6: Dél-Alföld | C6: 2009 | D6: Búza *összesen*na.*na. | E6: 3.71 | F6: t/ha | G6: AKII | H6: Egyéni | I6: Összes | J6: Összes | K6: Összes | L6: Árunövénytermesztés
A7: 6 | B7: Dél-Alföld | C7: 2007 | D7: Búza *összesen*na.*na. | E7: 3.76 | F7: t/ha | G7: AKII | H7: Egyéni | I7: Összes | J7: Összes | K7: Összes | L7: Árunövénytermesztés
A8: 7 | B8: Dél-Alföld | C8: 2004 | D8: Búza *összesen*na.*na. | E8: 5.79 | F8: t/ha | G8: AKII | H8: Egyéni | I8: Összes | J8: Összes | K8: Összes | L8: Árunövénytermesztés
A9: 8 | B9: Dél-Alföld | C9: 2005 | D9: Búza *összesen*na.*na. | E9: 4.53 | F9: t/ha | G9: AKII | H9: Egyéni | I9: Összes | J9: Összes | K9: Összes | L9: Árunövénytermesztés
A10: 9 | B10: Dél-Alföld | C10: 2008 | D10: Búza *összesen*na.*na. | E10: 5.18 | F10: t/ha | G10: AKII | H10: Egyéni | I10: Összes | J10: Összes | K10: Összes | L10: Árunövénytermesztés
A11: 10 | B11: Dél-Alföld | C11: 2000 | D11: Búza *összesen*na.*na. | E11: 4.02 | F11: t/ha | G11: AKII | H11: Egyéni | I11: Összes | J11: Összes | K11: Összes | L11: Árunövénytermesztés
A12: 11 | B12: Dél-Dunántúl | C12: 2005 | D12: Búza *összesen*na.*na. | E12: 4.62 | F12: t/ha | G12: AKII | H12: Egyéni | I12: Összes | J12: Összes | K12: Összes | L12: Árunövénytermesztés
A13: 12 | B13: Dél-Dunántúl | C13: 2009 | D13: Búza *összesen*na.*na. | E13: 4.98 | F13: t/ha | G13: AKII | H13: Egyéni | I13: Összes | J13: Összes | K13: Összes | L13: Árunövénytermesztés
A14: 13 | B14: Dél-Dunántúl | C14: 2004 | D14: Búza *összesen*na.*na. | E14: 5.15 | F14: t/ha | G14: AKII | H14: Egyéni | I14: Összes | J14: Összes | K14: Összes | L14: Árunövénytermesztés
A15: 14 | B15: Dél-Dunántúl | C15: 2008 | D15: Búza *összesen*na.*na. | E15: 5.58 | F15: t/ha | G15: AKII | H15: Egyéni | I15: Összes | J15: Összes | K15: Összes | L15: Árunövénytermesztés
A16: 15 | B16: Dél-Dunántúl | C16: 2000 | D16: Búza *összesen*na.*na. | E16: 4.1 | F16: t/ha | G16: AKII | H16: Egyéni | I16: Összes | J16: Összes | K16: Összes | L16: Árunövénytermesztés
A17: 16 | B17: Dél-Dunántúl | C17: 2002 | D17: Búza *összesen*na.*na. | E17: 4.73 | F17: t/ha | G17: AKII | H17: Egyéni | I17: Összes | J17: Összes | K17: Összes | L17: Árunövénytermesztés
A18: 17 | B18: Dél-Dunántúl | C18: 2006 | D18: Búza *összesen*na.*na. | E18: 4.56 | F18: t/ha | G18: AKII | H18: Egyéni | I18: Összes | J18: Összes | K18: Összes | L18: Árunövénytermesztés
A19: 18 | B19: Dél-Dunántúl | C19: 2003 | D19: Búza *összesen*na.*na. | E19: 3.49 | F19: t/ha | G19: AKII | H19: Egyéni | I19: Összes | J19: Összes | K19: Összes | L19: Árunövénytermesztés
A20: 19 | B20: Dél-Dunántúl | C20: 2001 | D20: Búza *összesen*na.*na. | E20: 4.77 | F20: t/ha | G20: AKII | H20: Egyéni | I20: Összes | J20: Összes | K20: Összes | L20: Árunövénytermesztés
A21: 20 | B21: Dél-Dunántúl | C21: 2007 | D21: Búza *összesen*na.*na. | E21: 3.82 | F21: t/ha | G21: AKII | H21: Egyéni | I21: Összes | J21: Összes | K21: Összes | L21: Árunövénytermesztés
A22: 21 | B22: Észak-Alföld | C22: 2004 | D22: Búza *összesen*na.*na. | E22: 5.46 | F22: t/ha | G22: AKII | H22: Egyéni | I22: Összes | J22: Összes | K22: Összes | L22: Árunövénytermesztés
A23: 22 | B23: Észak-Alföld | C23: 2003 | D23: Búza *összesen*na.*na. | E23: 2.39 | F23: t/ha | G23: AKII | H23: Egyéni | I23: Összes | J23: Összes | K23: Összes | L23: Árunövénytermesztés
A24: 23 | B24: Észak-Alföld | C24: 2002 | D24: Búza *összesen*na.*na. | E24: 2.98 | F24: t/ha | G24: AKII | H24: Egyéni | I24: Összes | J24: Összes | K24: Összes | L24: Árunövénytermesztés
A25: 24 | B25: Észak-Alföld | C25: 2007 | D25: Búza *összesen*na.*na. | E25: 3.02 | F25: t/ha | G25: AKII | H25: Egyéni | I25: Összes | J25: Összes | K25: Összes | L25: Árunövénytermesztés
A26: 25 | B26: Észak-Alföld | C26: 2001 | D26: Búza *összesen*na.*na. | E26: 4.01 | F26: t/ha | G26: AKII | H26: Egyéni | I26: Összes | J26: Összes | K26: Összes | L26: Árunövénytermesztés
A27: 26 | B27: Észak-Alföld | C27: 2008 | D27: Búza *összesen*na.*na. | E27: 4.75 | F27: t/ha | G27: AKII | H27: Egyéni | I27: Összes | J27: Összes | K27: Összes | L27: Árunövénytermesztés
A28: 27 | B28: Észak-Alföld | C28: 2006 | D28: Búza *összesen*na.*na. | E28: 3.17 | F28: t/ha | G28: AKII | H28: Egyéni | I28: Összes | J28: Összes | K28: Összes | L28: Árunövénytermesztés
A29: 28 | B29: Észak-Alföld | C29: 2005 | D29: Búza *összesen*na.*na. | E29: 4.12 | F29: t/ha | G29: AKII | H29: Egyéni | I29: Összes | J29: Összes | K29: Összes | L29: Árunövénytermesztés
A30: 29 | B30: Észak-Alföld | C30: 2009 | D30: Búza *összesen*na.*na. | E30: 3.68 | F30: t/ha | G30: AKII | H30: Egyéni | I30: Összes | J30: Összes | K30: Összes | L30: Árunövénytermesztés
A31: 30 | B31: Észak-Alföld | C31: 2000 | D31: Búza *összesen*na.*na. | E31: 3.07 | F31: t/ha | G31: AKII | H31: Egyéni | I31: Összes | J31: Összes | K31: Összes | L31: Árunövénytermesztés
A32: 31 | B32: Észak-Magyarország | C32: 2004 | D32: Búza *összesen*na.*na. | E32: 4.47 | F32: t/ha | G32: AKII | H32: Egyéni | I32: Összes | J32: Összes | K32: Összes | L32: Árunövénytermesztés
A33: 32 | B33: Észak-Magyarország | C33: 2003 | D33: Búza *összesen*na.*na. | E33: 1.88 | F33: t/ha | G33: AKII | H33: Egyéni | I33: Összes | J33: Összes | K33: Összes | L33: Árunövénytermesztés
A34: 33 | B34: Észak-Magyarország | C34: 2006 | D34: Búza *összesen*na.*na. | E34: 3.84 | F34: t/ha | G34: AKII | H34: Egyéni | I34: Összes | J34: Összes | K34: Összes | L34: Árunövénytermesztés
A35: 34 | B35: Észak-Magyarország | C35: 2000 | D35: Búza *összesen*na.*na. | E35: 2.59 | F35: t/ha | G35: AKII | H35: Egyéni | I35: Összes | J35: Összes | K35: Összes | L35: Árunövénytermesztés
A36: 35 | B36: Észak-Magyarország | C36: 2009 | D36: Búza *összesen*na.*na. | E36: 3.65 | F36: t/ha | G36: AKII | H36: Egyéni | I36: Összes | J36: Összes | K36: Összes | L36: Árunövénytermesztés
A37: 36 | B37: Észak-Magyarország | C37: 2005 | D37: Búza *összesen*na.*na. | E37: 4.44 | F37: t/ha | G37: AKII | H37: Egyéni | I37: Összes | J37: Összes | K37: Összes | L37: Árunövénytermesztés
A38: 37 | B38: Észak-Magyarország | C38: 2001 | D38: Búza *összesen*na.*na. | E38: 4.01 | F38: t/ha | G38: AKII | H38: Egyéni | I38: Összes | J38: Összes | K38: Összes | L38: Árunövénytermesztés
A39: 38 | B39: Észak-Magyarország | C39: 2007 | D39: Búza *összesen*na.*na. | E39: 3.15 | F39: t/ha | G39: AKII | H39: Egyéni | I39: Összes | J39: Összes | K39: Összes | L39: Árunövénytermesztés
A40: 39 | B40: Észak-Magyarország | C40: 2008 | D40: Búza *összesen*na.*na. | E40: 4.48 | F40: t/ha | G40: AKII | H40: Egyéni | I40: Összes | J40: Összes | K40: Összes | L40: Árunövénytermesztés
A41: 40 | B41: Észak-Magyarország | C41: 2002 | D41: Búza *összesen*na.*na. | E41: 2.91 | F41: t/ha | G41: AKII | H41: Egyéni | I41: Összes | J41: Összes | K41: Összes | L41: Árunövénytermesztés
A42: 41 | B42: Közép-Dunántúl | C42: 2007 | D42: Búza *összesen*na.*na. | E42: 3.37 | F42: t/ha | G42: AKII | H42: Egyéni | I42: Összes | J42: Összes | K42: Összes | L42: Árunövénytermesztés
A43: 42 | B43: Közép-Dunántúl | C43: 2001 | D43: Búza *összesen*na.*na. | E43: 4.32 | F43: t/ha | G43: AKII | H43: Egyéni | I43: Összes | J43: Összes | K43: Összes | L43: Árunövénytermesztés
A44: 43 | B44: Közép-Dunántúl | C44: 2000 | D44: Búza *összesen*na.*na. | E44: 4.03 | F44: t/ha | G44: AKII | H44: Egyéni | I44: Összes | J44: Összes | K44: Összes | L44: Árunövénytermesztés
A45: 44 | B45: Közép-Dunántúl | C45: 2002 | D45: Búza *összesen*na.*na. | E45: 3.9 | F45: t/ha | G45: AKII | H45: Egyéni | I45: Összes | J45: Összes | K45: Összes | L45: Árunövénytermesztés
A46: 45 | B46: Közép-Dunántúl | C46: 2003 | D46: Búza *összesen*na.*na. | E46: 2.46 | F46: t/ha | G46: AKII | H46: Egyéni | I46: Összes | J46: Összes | K46: Összes | L46: Árunövénytermesztés
A47: 46 | B47: Közép-Dunántúl | C47: 2004 | D47: Búza *összesen*na.*na. | E47: 5.08 | F47: t/ha | G47: AKII | H47: Egyéni | I47: Összes | J47: Összes | K47: Összes | L47: Árunövénytermesztés
A48: 47 | B48: Közép-Dunántúl | C48: 2005 | D48: Búza *összesen*na.*na. | E48: 4.93 | F48: t/ha | G48: AKII | H48: Egyéni | I48: Összes | J48: Összes | K48: Összes | L48: Árunövénytermesztés
A49: 48 | B49: Közép-Dunántúl | C49: 2006 | D49: Búza *összesen*na.*na. | E49: 4.37 | F49: t/ha | G49: AKII | H49: Egyéni | I49: Összes | J49: Összes | K49: Összes | L49: Árunövénytermesztés
A50: 49 | B50: Közép-Dunántúl | C50: 2009 | D50: Búza *összesen*na.*na. | E50: 3.69 | F50: t/ha | G50: AKII | H50: Egyéni | I50: Összes | J50: Összes | K50: Összes | L50: Árunövénytermesztés
A51: 50 | B51: Közép-Dunántúl | C51: 2008 | D51: Búza *összesen*na.*na. | E51: 5.38 | F51: t/ha | G51: AKII | H51: Egyéni | I51: Összes | J51: Összes | K51: Összes | L51: Árunövénytermesztés
A52: 51 | B52: Közép-Magyarország | C52: 2004 | D52: Búza *összesen*na.*na. | E52: 5.12 | F52: t/ha | G52: AKII | H52: Egyéni | I52: Összes | J52: Összes | K52: Összes | L52: Árunövénytermesztés
A53: 52 | B53: Közép-Magyarország | C53: 2007 | D53: Búza *összesen*na.*na. | E53: 3 | F53: t/ha | G53: AKII | H53: Egyéni | I53: Összes | J53: Összes | K53: Összes | L53: Árunövénytermesztés
A54: 53 | B54: Közép-Magyarország | C54: 2006 | D54: Búza *összesen*na.*na. | E54: 4.11 | F54: t/ha | G54: AKII | H54: Egyéni | I54: Összes | J54: Összes | K54: Összes | L54: Árunövénytermesztés
A55: 54 | B55: Közép-Magyarország | C55: 2003 | D55: Búza *összesen*na.*na. | E55: 1.56 | F55: t/ha | G55: AKII | H55: Egyéni | I55: Összes | J55: Összes | K55: Összes | L55: Árunövénytermesztés
A56: 55 | B56: Közép-Magyarország | C56: 2000 | D56: Búza *összesen*na.*na. | E56: 3.51 | F56: t/ha | G56: AKII | H56: Egyéni | I56: Összes | J56: Összes | K56: Összes | L56: Árunövénytermesztés
A57: 56 | B57: Közép-Magyarország | C57: 2009 | D57: Búza *összesen*na.*na. | E57: 3.19 | F57: t/ha | G57: AKII | H57: Egyéni | I57: Összes | J57: Összes | K57: Összes | L57: Árunövénytermesztés
A58: 57 | B58: Közép-Magyarország | C58: 2008 | D58: Búza *összesen*na.*na. | E58: 4.85 | F58: t/ha | G58: AKII | H58: Egyéni | I58: Összes | J58: Összes | K58: Összes | L58: Árunövénytermesztés
A59: 58 | B59: Közép-Magyarország | C59: 2002 | D59: Búza *összesen*na.*na. | E59: 2.92 | F59: t/ha | G59: AKII | H59: Egyéni | I59: Összes | J59: Összes | K59: Összes | L59: Árunövénytermesztés
A60: 59 | B60: Közép-Magyarország | C60: 2001 | D60: Búza *összesen*na.*na. | E60: 4.36 | F60: t/ha | G60: AKII | H60: Egyéni | I60: Összes | J60: Összes | K60: Összes | L60: Árunövénytermesztés
A61: 60 | B61: Közép-Magyarország | C61: 2005 | D61: Búza *összesen*na.*na. | E61: 4.61 | F61: t/ha | G61: AKII | H61: Egyéni | I61: Összes | J61: Összes | K61: Összes | L61: Árunövénytermesztés
A62: 61 | B62: Magyarország | C62: 2002 | D62: Búza *összesen*na.*na. | E62: 3.55 | F62: t/ha | G62: AKII | H62: Egyéni | I62: Összes | J62: Összes | K62: Összes | L62: Árunövénytermesztés | M62: 1
A63: 62 | B63: Magyarország | C63: 2002 | D63: Búza *összesen*na.*na. | E63: 3.55 | F63: t/ha | G63: AKII | H63: Egyéni | I63: Összes | J63: Összes | K63: Összes | L63: Árunövénytermesztés | M63: 1
A64: 63 | B64: Magyarország | C64: 2007 | D64: Búza *összesen*na.*na. | E64: 3.42 | F64: t/ha | G64: AKII | H64: Egyéni | I64: Összes | J64: Összes | K64: Összes | L64: Árunövénytermesztés
A65: 64 | B65: Magyarország | C65: 2008 | D65: Búza *összesen*na.*na. | E65: 4.91 | F65: t/ha | G65: AKII | H65: Egyéni | I65: Összes | J65: Összes | K65: Összes | L65: Árunövénytermesztés
A66: 65 | B66: Magyarország | C66: 2007 | D66: Búza *összesen*na.*na. | E66: 3.42 | F66: t/ha | G66: AKII | H66: Egyéni | I66: Összes | J66: Összes | K66: Összes | L66: Árunövénytermesztés
A67: 66 | B67: Magyarország | C67: 2009 | D67: Búza *összesen*na.*na. | E67: 3.93 | F67: t/ha | G67: AKII | H67: Egyéni | I67: Összes | J67: Összes | K67: Összes | L67: Árunövénytermesztés
A68: 67 | B68: Magyarország | C68: 2009 | D68: Búza *összesen*na.*na. | E68: 3.93 | F68: t/ha | G68: AKII | H68: Egyéni | I68: Összes | J68: Összes | K68: Összes | L68: Árunövénytermesztés
A69: 68 | B69: Magyarország | C69: 2000 | D69: Búza *összesen*na.*na. | E69: 3.51 | F69: t/ha | G69: AKII | H69: Egyéni | I69: Összes | J69: Összes | K69: Összes | L69: Árunövénytermesztés
A70: 69 | B70: Magyarország | C70: 2003 | D70: Búza *összesen*na.*na. | E70: 2.51 | F70: t/ha | G70: AKII | H70: Egyéni | I70: Összes | J70: Összes | K70: Összes | L70: Árunövénytermesztés
A71: 70 | B71: Magyarország | C71: 2002 | D71: Búza *összesen*na.*na. | E71: 3.55 | F71: t/ha | G71: AKII | H71: Egyéni | I71: Összes | J71: Összes | K71: Összes | L71: Árunövénytermesztés
A72: 71 | B72: Magyarország | C72: 2001 | D72: Búza *összesen*na.*na. | E72: 4.3 | F72: t/ha | G72: AKII | H72: Egyéni | I72: Összes | J72: Összes | K72: Összes | L72: Árunövénytermesztés
A73: 72 | B73: Magyarország | C73: 2008 | D73: Búza *összesen*na.*na. | E73: 4.91 | F73: t/ha | G73: AKII | H73: Egyéni | I73: Összes | J73: Összes | K73: Összes | L73: Árunövénytermesztés
A74: 73 | B74: Magyarország | C74: 2004 | D74: Búza *összesen*na.*na. | E74: 5.21 | F74: t/ha | G74: AKII | H74: Egyéni | I74: Összes | J74: Összes | K74: Összes | L74: Árunövénytermesztés
A75: 74 | B75: Magyarország | C75: 2006 | D75: Búza *összesen*na.*na. | E75: 3.96 | F75: t/ha | G75: AKII | H75: Egyéni | I75: Összes | J75: Összes | K75: Összes | L75: Árunövénytermesztés
A76: 75 | B76: Magyarország | C76: 2006 | D76: Búza *összesen*na.*na. | E76: 3.96 | F76: t/ha | G76: AKII | H76: Egyéni | I76: Összes | J76: Összes | K76: Összes | L76: Árunövénytermesztés
A77: 76 | B77: Magyarország | C77: 2005 | D77: Búza *összesen*na.*na. | E77: 4.52 | F77: t/ha | G77: AKII | H77: Egyéni | I77: Összes | J77: Összes | K77: Összes | L77: Árunövénytermesztés
A78: 77 | B78: Nyugat-Dunántúl | C78: 2005 | D78: Búza *összesen*na.*na. | E78: 4.48 | F78: t/ha | G78: AKII | H78: Egyéni | I78: Összes | J78: Összes | K78: Összes | L78: Árunövénytermesztés
A79: 78 | B79: Nyugat-Dunántúl | C79: 2007 | D79: Búza *összesen*na.*na. | E79: 4.08 | F79: t/ha | G79: AKII | H79: Egyéni | I79: Összes | J79: Összes | K79: Összes | L79: Árunövénytermesztés
A80: 79 | B80: Nyugat-Dunántúl | C80: 2003 | D80: Búza *összesen*na.*na. | E80: 3.06 | F80: t/ha | G80: AKII | H80: Egyéni | I80: Összes | J80: Összes | K80: Összes | L80: Árunövénytermesztés
A81: 80 | B81: Nyugat-Dunántúl | C81: 2008 | D81: Búza *összesen*na.*na. | E81: 4.68 | F81: t/ha | G81: AKII | H81: Egyéni | I81: Összes | J81: Összes | K81: Összes | L81: Árunövénytermesztés
A82: 81 | B82: Nyugat-Dunántúl | C82: 2006 | D82: Búza *összesen*na.*na. | E82: 4.49 | F82: t/ha | G82: AKII | H82: Egyéni | I82: Összes | J82: Összes | K82: Összes | L82: Árunövénytermesztés
A83: 82 | B83: Nyugat-Dunántúl | C83: 2002 | D83: Búza *összesen*na.*na. | E83: 4.16 | F83: t/ha | G83: AKII | H83: Egyéni | I83: Összes | J83: Összes | K83: Összes | L83: Árunövénytermesztés
A84: 83 | B84: Nyugat-Dunántúl | C84: 2000 | D84: Búza *összesen*na.*na. | E84: 4.02 | F84: t/ha | G84: AKII | H84: Egyéni | I84: Összes | J84: Összes | K84: Összes | L84: Árunövénytermesztés
A85: 84 | B85: Nyugat-Dunántúl | C85: 2009 | D85: Búza *összesen*na.*na. | E85: 4.69 | F85: t/ha | G85: AKII | H85: Egyéni | I85: Összes | J85: Összes | K85: Összes | L85: Árunövénytermesztés
A86: 85 | B86: Nyugat-Dunántúl | C86: 2001 | D86: Búza *összesen*na.*na. | E86: 4.45 | F86: t/ha | G86: AKII | H86: Egyéni | I86: Összes | J86: Összes | K86: Összes | L86: Árunövénytermesztés
A87: 86 | B87: Nyugat-Dunántúl | C87: 2004 | D87: Búza *összesen*na.*na. | E87: 5.15 | F87: t/ha | G87: AKII | H87: Egyéni | I87: Összes | J87: Összes | K87: Összes | L87: Árunövénytermesztés
A88: 87 | B88: Dél-Alföld | C88: 2002 | D88: Rozs *összesen*na.*na. | E88: 2.28 | F88: t/ha | G88: AKII | H88: Egyéni | I88: Összes | J88: Összes | K88: Összes | L88: Árunövénytermesztés
A89: 88 | B89: Dél-Alföld | C89: 2009 | D89: Rozs *összesen*na.*na. | E89: 1.26 | F89: t/ha | G89: AKII | H89: Egyéni | I89: Összes | J89: Összes | K89: Összes | L89: Árunövénytermesztés
A90: 89 | B90: Dél-Alföld | C90: 2001 | D90: Rozs *összesen*na.*na. | E90: 2.14 | F90: t/ha | G90: AKII | H90: Egyéni | I90: Összes | J90: Összes | K90: Összes | L90: Árunövénytermesztés
A91: 90 | B91: Dél-Alföld | C91: 2000 | D91: Rozs *összesen*na.*na. | E91: 1.38 | F91: t/ha | G91: AKII | H91: Egyéni | I91: Összes | J91: Összes | K91: Összes | L91: Árunövénytermesztés
A92: 91 | B92: Dél-Alföld | C92: 2004 | D92: Rozs *összesen*na.*na. | E92: 2.73 | F92: t/ha | G92: AKII | H92: Egyéni | I92: Összes | J92: Összes | K92: Összes | L92: Árunövénytermesztés
A93: 92 | B93: Dél-Alföld | C93: 2003 | D93: Rozs *összesen*na.*na. | E93: 0.61 | F93: t/ha | G93: AKII | H93: Egyéni | I93: Összes | J93: Összes | K93: Összes | L93: Árunövénytermesztés
A94: 93 | B94: Dél-Alföld | C94: 2008 | D94: Rozs *összesen*na.*na. | E94: 2.36 | F94: t/ha | G94: AKII | H94: Egyéni | I94: Összes | J94: Összes | K94: Összes | L94: Árunövénytermesztés
A95: 94 | B95: Dél-Alföld | C95: 2007 | D95: Rozs *összesen*na.*na. | E95: 1.18 | F95: t/ha | G95: AKII | H95: Egyéni | I95: Összes | J95: Összes | K95: Összes | L95: Árunövénytermesztés
A96: 95 | B96: Dél-Alföld | C96: 2005 | D96: Rozs *összesen*na.*na. | E96: 3.24 | F96: t/ha | G96: AKII | H96: Egyéni | I96: Összes | J96: Összes | K96: Összes | L96: Árunövénytermesztés
A97: 96 | B97: Dél-Alföld | C97: 2006 | D97: Rozs *összesen*na.*na. | E97: 1.71 | F97: t/ha | G97: AKII | H97: Egyéni | I97: Összes | J97: Összes | K97: Összes | L97: Árunövénytermesztés
A98: 97 | B98: Dél-Dunántúl | C98: 2009 | D98: Rozs *összesen*na.*na. | E98: 3.8 | F98: t/ha | G98: AKII | H98: Egyéni | I98: Összes | J98: Összes | K98: Összes | L98: Árunövénytermesztés
A99: 98 | B99: Dél-Dunántúl | C99: 2005 | D99: Rozs *összesen*na.*na. | E99: 4.88 | F99: t/ha | G99: AKII | H99: Egyéni | I99: Összes | J99: Összes | K99: Összes | L99: Árunövénytermesztés
A100: 99 | B100: Dél-Dunántúl | C100: 2007 | D100: Rozs *összesen*na.*na. | E100: 0 | F100: t/ha | G100: AKII | H100: Egyéni | I100: Összes | J100: Összes | K100: Összes | L100: Árunövénytermesztés
A101: 100 | B101: Dél-Dunántúl | C101: 2006 | D101: Rozs *összesen*na.*na. | E101: 4.03 | F101: t/ha | G101: AKII | H101: Egyéni | I101: Összes | J101: Összes | K101: Összes | L101: Árunövénytermesztés
A102: 101 | B102: Dél-Dunántúl | C102: 2000 | D102: Rozs *összesen*na.*na. | E102: 0 | F102: t/ha | G102: AKII | H102: Egyéni | I102: Összes | J102: Összes | K102: Összes | L102: Árunövénytermesztés
A103: 102 | B103: Dél-Dunántúl | C103: 2002 | D103: Rozs *összesen*na.*na. | E103: 0 | F103: t/ha | G103: AKII | H103: Egyéni | I103: Összes | J103: Összes | K103: Összes | L103: Árunövénytermesztés
A104: 103 | B104: Dél-Dunántúl | C104: 2003 | D104: Rozs *összesen*na.*na. | E104: 1.85 | F104: t/ha | G104: AKII | H104: Egyéni | I104: Összes | J104: Összes | K104: Összes | L104: Árunövénytermesztés
A105: 104 | B105: Dél-Dunántúl | C105: 2004 | D105: Rozs *összesen*na.*na. | E105: 4.8 | F105: t/ha | G105: AKII | H105: Egyéni | I105: Összes | J105: Összes | K105: Összes | L105: Árunövénytermesztés
A106: 105 | B106: Dél-Dunántúl | C106: 2008 | D106: Rozs *összesen*na.*na. | E106: 0 | F106: t/ha | G106: AKII | H106: Egyéni | I106: Összes | J106: Összes | K106: Összes | L106: Árunövénytermesztés
A107: 106 | B107: Dél-Dunántúl | C107: 2001 | D107: Rozs *összesen*na.*na. | E107: 0 | F107: t/ha | G107: AKII | H107: Egyéni | I107: Összes | J107: Összes | K107: Összes | L107: Árunövénytermesztés
A108: 107 | B108: Észak-Alföld | C108: 2005 | D108: Rozs *összesen*na.*na. | E108: 0.88 | F108: t/ha | G108: AKII | H108: Egyéni | I108: Összes | J108: Összes | K108: Összes | L108: Árunövénytermesztés
A109: 108 | B109: Észak-Alföld | C109: 2009 | D109: Rozs *összesen*na.*na. | E109: 2.16 | F109: t/ha | G109: AKII | H109: Egyéni | I109: Összes | J109: Összes | K109: Összes | L109: Árunövénytermesztés
A110: 109 | B110: Észak-Alföld | C110: 2001 | D110: Rozs *összesen*na.*na. | E110: 1.85 | F110: t/ha | G110: AKII | H110: Egyéni | I110: Összes | J110: Összes | K110: Összes | L110: Árunövénytermesztés
A111: 110 | B111: Észak-Alföld | C111: 2008 | D111: Rozs *összesen*na.*na. | E111: 1.5 | F111: t/ha | G111: AKII | H111: Egyéni | I111: Összes | J111: Összes | K111: Összes | L111: Árunövénytermesztés
A112: 111 | B112: Észak-Alföld | C112: 2000 | D112: Rozs *összesen*na.*na. | E112: 1 | F112: t/ha | G112: AKII | H112: Egyéni | I112: Összes | J112: Összes | K112: Összes | L112: Árunövénytermesztés
A113: 112 | B113: Észak-Alföld | C113: 2007 | D113: Rozs *összesen*na.*na. | E113: 1.05 | F113: t/ha | G113: AKII | H113: Egyéni | I113: Összes | J113: Összes | K113: Összes | L113: Árunövénytermesztés
A114: 113 | B114: Észak-Alföld | C114: 2006 | D114: Rozs *összesen*na.*na. | E114: 1.87 | F114: t/ha | G114: AKII | H114: Egyéni | I114: Összes | J114: Összes | K114: Összes | L114: Árunövénytermesztés
A115: 114 | B115: Észak-Alföld | C115: 2004 | D115: Rozs *összesen*na.*na. | E115: 3.06 | F115: t/ha | G115: AKII | H115: Egyéni | I115: Összes | J115: Összes | K115: Összes | L115: Árunövénytermesztés
A116: 115 | B116: Észak-Alföld | C116: 2003 | D116: Rozs *összesen*na.*na. | E116: 2.02 | F116: t/ha | G116: AKII | H116: Egyéni | I116: Összes | J116: Összes | K116: Összes | L116: Árunövénytermesztés
A117: 116 | B117: Észak-Alföld | C117: 2002 | D117: Rozs *összesen*na.*na. | E117: 1.6 | F117: t/ha | G117: AKII | H117: Egyéni | I117: Összes | J117: Összes | K117: Összes | L117: Árunövénytermesztés
A118: 117 | B118: Észak-Magyarország | C118: 2000 | D118: Rozs *összesen*na.*na. | E118: 0 | F118: t/ha | G118: AKII | H118: Egyéni | I118: Összes | J118: Összes | K118: Összes | L118: Árunövénytermesztés
A119: 118 | B119: Észak-Magyarország | C119: 2009 | D119: Rozs *összesen*na.*na. | E119: 3.4 | F119: t/ha | G119: AKII | H119: Egyéni | I119: Összes | J119: Összes | K119: Összes | L119: Árunövénytermesztés
A120: 119 | B120: Észak-Magyarország | C120: 2006 | D120: Rozs *összesen*na.*na. | E120: 2.6 | F120: t/ha | G120: AKII | H120: Egyéni | I120: Összes | J120: Összes | K120: Összes | L120: Árunövénytermesztés
A121: 120 | B121: Észak-Magyarország | C121: 2008 | D121: Rozs *összesen*na.*na. | E121: 3.59 | F121: t/ha | G121: AKII | H121: Egyéni | I121: Összes | J121: Összes | K121: Összes | L121: Árunövénytermesztés
A122: 121 | B122: Észak-Magyarország | C122: 2002 | D122: Rozs *összesen*na.*na. | E122: 0 | F122: t/ha | G122: AKII | H122: Egyéni | I122: Összes | J122: Összes | K122: Összes | L122: Árunövénytermesztés
A123: 122 | B123: Észak-Magyarország | C123: 2004 | D123: Rozs *összesen*na.*na. | E123: 3.5 | F123: t/ha | G123: AKII | H123: Egyéni | I123: Összes | J123: Összes | K123: Összes | L123: Árunövénytermesztés
A124: 123 | B124: Észak-Magyarország | C124: 2001 | D124: Rozs *összesen*na.*na. | E124: 0 | F124: t/ha | G124: AKII | H124: Egyéni | I124: Összes | J124: Összes | K124: Összes | L124: Árunövénytermesztés
A125: 124 | B125: Észak-Magyarország | C125: 2005 | D125: Rozs *összesen*na.*na. | E125: 3 | F125: t/ha | G125: AKII | H125: Egyéni | I125: Összes | J125: Összes | K125: Összes | L125: Árunövénytermesztés
A126: 125 | B126: Észak-Magyarország | C126: 2003 | D126: Rozs *összesen*na.*na. | E126: 2 | F126: t/ha | G126: AKII | H126: Egyéni | I126: Összes | J126: Összes | K126: Összes | L126: Árunövénytermesztés
A127: 126 | B127: Észak-Magyarország | C127: 2007 | D127: Rozs *összesen*na.*na. | E127: 2.3 | F127: t/ha | G127: AKII | H127: Egyéni | I127: Összes | J127: Összes | K127: Összes | L127: Árunövénytermesztés
A128: 127 | B128: Közép-Dunántúl | C128: 2009 | D128: Rozs *összesen*na.*na. | E128: 3.09 | F128: t/ha | G128: AKII | H128: Egyéni | I128: Összes | J128: Összes | K128: Összes | L128: Árunövénytermesztés
A129: 128 | B129: Közép-Dunántúl | C129: 2000 | D129: Rozs *összesen*na.*na. | E129: 0 | F129: t/ha | G129: AKII | H129: Egyéni | I129: Összes | J129: Összes | K129: Összes | L129: Árunövénytermesztés
A130: 129 | B130: Közép-Dunántúl | C130: 2002 | D130: Rozs *összesen*na.*na. | E130: 2.5 | F130: t/ha | G130: AKII | H130: Egyéni | I130: Összes | J130: Összes | K130: Összes | L130: Árunövénytermesztés
A131: 130 | B131: Közép-Dunántúl | C131: 2003 | D131: Rozs *összesen*na.*na. | E131: 1.29 | F131: t/ha | G131: AKII | H131: Egyéni | I131: Összes | J131: Összes | K131: Összes | L131: Árunövénytermesztés
A132: 131 | B132: Közép-Dunántúl | C132: 2001 | D132: Rozs *összesen*na.*na. | E132: 2.24 | F132: t/ha | G132: AKII | H132: Egyéni | I132: Összes | J132: Összes | K132: Összes | L132: Árunövénytermesztés
A133: 132 | B133: Közép-Dunántúl | C133: 2004 | D133: Rozs *összesen*na.*na. | E133: 2.73 | F133: t/ha | G133: AKII | H133: Egyéni | I133: Összes | J133: Összes | K133: Összes | L133: Árunövénytermesztés
A134: 133 | B134: Közép-Dunántúl | C134: 2005 | D134: Rozs *összesen*na.*na. | E134: 1.98 | F134: t/ha | G134: AKII | H134: Egyéni | I134: Összes | J134: Összes | K134: Összes | L134: Árunövénytermesztés
A135: 134 | B135: Közép-Dunántúl | C135: 2006 | D135: Rozs *összesen*na.*na. | E135: 1.5 | F135: t/ha | G135: AKII | H135: Egyéni | I135: Összes | J135: Összes | K135: Összes | L135: Árunövénytermesztés
A136: 135 | B136: Közép-Dunántúl | C136: 2007 | D136: Rozs *összesen*na.*na. | E136: 2.81 | F136: t/ha | G136: AKII | H136: Egyéni | I136: Összes | J136: Összes | K136: Összes | L136: Árunövénytermesztés
A137: 136 | B137: Közép-Dunántúl | C137: 2008 | D137: Rozs *összesen*na.*na. | E137: 2.32 | F137: t/ha | G137: AKII | H137: Egyéni | I137: Összes | J137: Összes | K137: Összes | L137: Árunövénytermesztés
A138: 137 | B138: Közép-Magyarország | C138: 2007 | D138: Rozs *összesen*na.*na. | E138: 1.57 | F138: t/ha | G138: AKII | H138: Egyéni | I138: Összes | J138: Összes | K138: Összes | L138: Árunövénytermesztés
A139: 138 | B139: Közép-Magyarország | C139: 2005 | D139: Rozs *összesen*na.*na. | E139: 3.13 | F139: t/ha | G139: AKII | H139: Egyéni | I139: Összes | J139: Összes | K139: Összes | L139: Árunövénytermesztés
A140: 139 | B140: Közép-Magyarország | C140: 2001 | D140: Rozs *összesen*na.*na. | E140: 2.45 | F140: t/ha | G140: AKII | H140: Egyéni | I140: Összes | J140: Összes | K140: Összes | L140: Árunövénytermesztés
A141: 140 | B141: Közép-Magyarország | C141: 2003 | D141: Rozs *összesen*na.*na. | E141: 0.51 | F141: t/ha | G141: AKII | H141: Egyéni | I141: Összes | J141: Összes | K141: Összes | L141: Árunövénytermesztés
A142: 141 | B142: Közép-Magyarország | C142: 2002 | D142: Rozs *összesen*na.*na. | E142: 1.75 | F142: t/ha | G142: AKII | H142: Egyéni | I142: Összes | J142: Összes | K142: Összes | L142: Árunövénytermesztés
A143: 142 | B143: Közép-Magyarország | C143: 2004 | D143: Rozs *összesen*na.*na. | E143: 2.49 | F143: t/ha | G143: AKII | H143: Egyéni | I143: Összes | J143: Összes | K143: Összes | L143: Árunövénytermesztés
A144: 143 | B144: Közép-Magyarország | C144: 2008 | D144: Rozs *összesen*na.*na. | E144: 2.29 | F144: t/ha | G144: AKII | H144: Egyéni | I144: Összes | J144: Összes | K144: Összes | L144: Árunövénytermesztés
A145: 144 | B145: Közép-Magyarország | C145: 2000 | D145: Rozs *összesen*na.*na. | E145: 2.06 | F145: t/ha | G145: AKII | H145: Egyéni | I145: Összes | J145: Összes | K145: Összes | L145: Árunövénytermesztés
A146: 145 | B146: Közép-Magyarország | C146: 2006 | D146: Rozs *összesen*na.*na. | E146: 3.02 | F146: t/ha | G146: AKII | H146: Egyéni | I146: Összes | J146: Összes | K146: Összes | L146: Árunövénytermesztés
A147: 146 | B147: Közép-Magyarország | C147: 2009 | D147: Rozs *összesen*na.*na. | E147: 1.16 | F147: t/ha | G147: AKII | H147: Egyéni | I147: Összes | J147: Összes | K147: Összes | L147: Árunövénytermesztés
A148: 147 | B148: Nyugat-Dunántúl | C148: 2007 | D148: Rozs *összesen*na.*na. | E148: 2.72 | F148: t/ha | G148: AKII | H148: Egyéni | I148: Összes | J148: Összes | K148: Összes | L148: Árunövénytermesztés
A149: 148 | B149: Nyugat-Dunántúl | C149: 2006 | D149: Rozs *összesen*na.*na. | E149: 2.7 | F149: t/ha | G149: AKII | H149: Egyéni | I149: Összes | J149: Összes | K149: Összes | L149: Árunövénytermesztés
A150: 149 | B150: Nyugat-Dunántúl | C150: 2005 | D150: Rozs *összesen*na.*na. | E150: 3.58 | F150: t/ha | G150: AKII | H150: Egyéni | I150: Összes | J150: Összes | K150: Összes | L150: Árunövénytermesztés
A151: 150 | B151: Nyugat-Dunántúl | C151: 2004 | D151: Rozs *összesen*na.*na. | E151: 3.34 | F151: t/ha | G151: AKII | H151: Egyéni | I151: Összes | J151: Összes | K151: Összes | L151: Árunövénytermesztés
A152: 151 | B152: Nyugat-Dunántúl | C152: 2001 | D152: Rozs *összesen*na.*na. | E152: 2.45 | F152: t/ha | G152: AKII | H152: Egyéni | I152: Összes | J152: Összes | K152: Összes | L152: Árunövénytermesztés
A153: 152 | B153: Nyugat-Dunántúl | C153: 2003 | D153: Rozs *összesen*na.*na. | E153: 2.26 | F153: t/ha | G153: AKII | H153: Egyéni | I153: Összes | J153: Összes | K153: Összes | L153: Árunövénytermesztés
A154: 153 | B154: Nyugat-Dunántúl | C154: 2000 | D154: Rozs *összesen*na.*na. | E154: 2.46 | F154: t/ha | G154: AKII | H154: Egyéni | I154: Összes | J154: Összes | K154: Összes | L154: Árunövénytermesztés
A155: 154 | B155: Nyugat-Dunántúl | C155: 2009 | D155: Rozs *összesen*na.*na. | E155: 0 | F155: t/ha | G155: AKII | H155: Egyéni | I155: Összes | J155: Összes | K155: Összes | L155: Árunövénytermesztés
A156: 155 | B156: Nyugat-Dunántúl | C156: 2002 | D156: Rozs *összesen*na.*na. | E156: 2.54 | F156: t/ha | G156: AKII | H156: Egyéni | I156: Összes | J156: Összes | K156: Összes | L156: Árunövénytermesztés
A157: 156 | B157: Nyugat-Dunántúl | C157: 2008 | D157: Rozs *összesen*na.*na. | E157: 3.89 | F157: t/ha | G157: AKII | H157: Egyéni | I157: Összes | J157: Összes | K157: Összes | L157: Árunövénytermesztés
A158: =A157+1 -> 157 | B158: Dél-Alföld | C158: 2000 | D158: ='db2'!A14 -> kukorica | E158: ='db2'!B16 -> 4.46 | F158: =F157 -> t/ha
A159: =A158+1 -> 158 | B159: Dél-Dunántúl | C159: =C158 -> 2000 | D159: =D158 -> kukorica | E159: ='db2'!B17 -> 4.76 | F159: =F158 -> t/ha
A160: 159 | B160: Észak-Alföld | C160: =C159 -> 2000 | D160: kukorica | E160: ='db2'!B18 -> 3.83 | F160: t/ha
A161: 160 | B161: Észak-Magyarország | C161: 2000 | D161: kukorica | E161: ='db2'!B19 -> 2.63 | F161: t/ha
A162: 161 | B162: Közép-Dunántúl | C162: 2000 | D162: kukorica | E162: ='db2'!B20 -> 4.97 | F162: t/ha
A163: 162 | B163: Közép-Magyarország | C163: 2000 | D163: kukorica | E163: ='db2'!B21 -> 3.44 | F163: t/ha
A164: 163 | B164: Nyugat-Dunántúl | C164: 2000 | D164: =D163 -> kukorica | E164: ='db2'!B22 -> 4.45 | F164: =F163 -> t/ha
A165: 164 | B165: =B158 -> Dél-Alföld | C165: =C158+1 -> 2001 | D165: =D164 -> kukorica | E165: 7.67 | F165: =F164 -> t/ha
A166: 165 | B166: =B159 -> Dél-Dunántúl | C166: =C159+1 -> 2001 | D166: =D165 -> kukorica | E166: 7.28 | F166: =F165 -> t/ha
A167: 166 | B167: Észak-Alföld | C167: 2001 | D167: kukorica | E167: 7.13 | F167: t/ha
A168: 167 | B168: Észak-Magyarország | C168: 2001 | D168: kukorica | E168: 5.4 | F168: t/ha
A169: 168 | B169: Közép-Dunántúl | C169: 2001 | D169: kukorica | E169: 7.03 | F169: t/ha
A170: 169 | B170: Közép-Magyarország | C170: 2001 | D170: kukorica | E170: 6.52 | F170: t/ha
A171: 170 | B171: Nyugat-Dunántúl | C171: 2001 | D171: kukorica | E171: 4.27 | F171: t/ha
A172: 171 | B172: Dél-Alföld | C172: 2002 | D172: kukorica | E172: 5.46 | F172: t/ha
A173: 172 | B173: Dél-Dunántúl | C173: 2002 | D173: kukorica | E173: 6.61 | F173: t/ha
A174: 173 | B174: Észak-Alföld | C174: 2002 | D174: kukorica | E174: 4.93 | F174: t/ha
A175: 174 | B175: Észak-Magyarország | C175: 2002 | D175: kukorica | E175: 5.27 | F175: t/ha
A176: 175 | B176: Közép-Dunántúl | C176: 2002 | D176: kukorica | E176: 6.63 | F176: t/ha
A177: 176 | B177: Közép-Magyarország | C177: 2002 | D177: kukorica | E177: 3.88 | F177: t/ha
A178: 177 | B178: Nyugat-Dunántúl | C178: 2002 | D178: kukorica | E178: 6.12 | F178: t/ha
A179: 178 | B179: Dél-Alföld | C179: 2003 | D179: kukorica | E179: 3.4 | F179: t/ha
A180: 179 | B180: Dél-Dunántúl | C180: 2003 | D180: kukorica | E180: 4.42 | F180: t/ha
A181: 180 | B181: Észak-Alföld | C181: 2003 | D181: kukorica | E181: 5.08 | F181: t/ha
A182: 181 | B182: Észak-Magyarország | C182: 2003 | D182: kukorica | E182: 4.02 | F182: t/ha
A183: 182 | B183: Közép-Dunántúl | C183: 2003 | D183: kukorica | E183: 3.89 | F183: t/ha
A184: 183 | B184: Közép-Magyarország | C184: 2003 | D184: kukorica | E184: 2.81 | F184: t/ha
A185: 184 | B185: Nyugat-Dunántúl | C185: 2003 | D185: kukorica | E185: 4.18 | F185: t/ha
A186: 185 | B186: Dél-Alföld | C186: 2004 | D186: kukorica | E186: 7.46 | F186: t/ha
A187: 186 | B187: Dél-Dunántúl | C187: 2004 | D187: kukorica | E187: 8.11 | F187: t/ha
A188: 187 | B188: Észak-Alföld | C188: 2004 | D188: kukorica | E188: 8.02 | F188: t/ha
A189: 188 | B189: Észak-Magyarország | C189: 2004 | D189: kukorica | E189: 5.67 | F189: t/ha
A190: 189 | B190: Közép-Dunántúl | C190: 2004 | D190: kukorica | E190: 7.3 | F190: t/ha
A191: 190 | B191: Közép-Magyarország | C191: 2004 | D191: kukorica | E191: 6.16 | F191: t/ha
A192: 191 | B192: Nyugat-Dunántúl | C192: 2004 | D192: kukorica | E192: 6.77 | F192: t/ha
A193: 192 | B193: Dél-Alföld | C193: 2005 | D193: kukorica | E193: 7.87 | F193: t/ha
A194: 193 | B194: Dél-Dunántúl | C194: 2005 | D194: kukorica | E194: 8.36 | F194: t/ha
A195: 194 | B195: Észak-Alföld | C195: 2005 | D195: kukorica | E195: 7.8 | F195: t/ha
A196: 195 | B196: Észak-Magyarország | C196: 2005 | D196: kukorica | E196: 6.47 | F196: t/ha
A197: 196 | B197: Közép-Dunántúl | C197: 2005 | D197: kukorica | E197: 8.98 | F197: t/ha
A198: 197 | B198: Közép-Magyarország | C198: 2005 | D198: kukorica | E198: 7.72 | F198: t/ha
A199: 198 | B199: Nyugat-Dunántúl | C199: 2005 | D199: kukorica | E199: 8.01 | F199: t/ha
A200: 199 | B200: Dél-Alföld | C200: 2006 | D200: kukorica | E200: 7.36 | F200: t/ha
... 309 more rows

Sheet db2
A1: Bezár | M1: Bezár | Z1: Bezár
A2: búza | B2: 2000 | C2: 2001 | D2: 2002 | E2: 2003 | F2: 2004 | G2: 2005 | H2: 2006 | I2: 2007 | J2: 2008 | K2: 2009 | M2: 7 növény | N2: 2000 | O2: 2001 | P2: 2002 | Q2: 2003 | R2: 2004 | S2: 2005 | T2: 2006 | U2: 2007 | V2: 2008 | W2: 2009 | Z2: búza | AA2: 2000 | AB2: 2001 | AC2: 2002 | AD2: 2003 | AE2: 2004 | AF2: 2005 | AG2: 2006 | AH2: 2007 | AI2: 2008 | AJ2: 2009
B3: t/ha | C3: t/ha | D3: t/ha | E3: t/ha | F3: t/ha | G3: t/ha | H3: t/ha | I3: t/ha | J3: t/ha | K3: t/ha | N3: =B3 -> t/ha | O3: =C3 -> t/ha | P3: t/ha | Q3: t/ha | R3: t/ha | S3: t/ha | T3: t/ha | U3: t/ha | V3: t/ha | W3: t/ha | AA3: t/ha | AB3: t/ha | AC3: t/ha | AD3: t/ha | AE3: t/ha | AF3: t/ha | AG3: t/ha | AH3: t/ha | AI3: t/ha | AJ3: t/ha
A4: Dél-Alföld | B4: 4.02 | C4: 4.45 | D4: 3.66 | E4: 2.87 | F4: 5.79 | G4: 4.53 | H4: 4.24 | I4: 3.76 | J4: 5.18 | K4: 3.71 | M4: Dél-Alföld | N4: 61.99 | O4: 92.14 | P4: 80.29 | Q4: 75.03 | R4: 97.73 | S4: 89.24 | T4: 120.57 | U4: 89.05 | V4: 53.07 | W4: 50.91 | Z4: Dél-Alföld | AA4: =RANK(B4,B$4:B$10,0) -> 3 | AB4: =RANK(C4,C$4:C$10,0) -> 2 | AC4: =RANK(D4,D$4:D$10,0) -> 4 | AD4: =RANK(E4,E$4:E$10,0) -> 3 | AE4: =RANK(F4,F$4:F$10,0) -> 1 | AF4: =RANK(G4,G$4:G$10,0) -> 4 | AG4: =RANK(H4,H$4:H$10,0) -> 4 | AH4: =RANK(I4,I$4:I$10,0) -> 3 | AI4: =RANK(J4,J$4:J$10,0) -> 3 | AJ4: =RANK(K4,K$4:K$10,0) -> 3
A5: Dél-Dunántúl | B5: 4.1 | C5: 4.77 | D5: 4.73 | E5: 3.49 | F5: 5.15 | G5: 4.62 | H5: 4.56 | I5: 3.82 | J5: 5.58 | K5: 4.98 | M5: Dél-Dunántúl | N5: 54.58 | O5: 83.35 | P5: 98.42 | Q5: 68.2 | R5: 111.44 | S5: 122.33 | T5: 118.19 | U5: 86.01 | V5: 40.06 | W5: 45.33 | Z5: Dél-Dunántúl | AA5: =RANK(B5,B$4:B$10,0) -> 1 | AB5: 1 | AC5: 1 | AD5: 1 | AE5: 3 | AF5: 2 | AG5: 1 | AH5: 2 | AI5: 1 | AJ5: 1
A6: Észak-Alföld | B6: 3.07 | C6: 4.01 | D6: 2.98 | E6: 2.39 | F6: 5.46 | G6: 4.12 | H6: 3.17 | I6: 3.02 | J6: 4.75 | K6: 3.68 | M6: Észak-Alföld | N6: 78.26 | O6: 88.28 | P6: 75.21 | Q6: 76.96 | R6: 98.56 | S6: 94.43 | T6: 94.33 | U6: 66.85 | V6: 44.55 | W6: 52.86 | Z6: Észak-Alföld | AA6: 6 | AB6: 6 | AC6: 5 | AD6: 5 | AE6: 2 | AF6: 7 | AG6: 7 | AH6: 6 | AI6: 5 | AJ6: 5
A7: Észak-Magyarország | B7: 2.59 | C7: 4.01 | D7: 2.91 | E7: 1.88 | F7: 4.47 | G7: 4.44 | H7: 3.84 | I7: 3.15 | J7: 4.48 | K7: 3.65 | M7: Észak-Magyarország | N7: 55.34 | O7: 70.58 | P7: 33.17 | Q7: 61.48 | R7: 109.11 | S7: 105.31 | T7: 98.4 | U7: 55.37 | V7: 54.13 | W7: 19.9 | Z7: Észak-Magyarország | AA7: 7 | AB7: 6 | AC7: 7 | AD7: 6 | AE7: 7 | AF7: 6 | AG7: 6 | AH7: 5 | AI7: 7 | AJ7: 6
A8: Közép-Dunántúl | B8: 4.03 | C8: 4.32 | D8: 3.9 | E8: 2.46 | F8: 5.08 | G8: 4.93 | H8: 4.37 | I8: 3.37 | J8: 5.38 | K8: 3.69 | M8: Közép-Dunántúl | N8: 53.6 | O8: 67.48 | P8: 35.8 | Q8: 23.45 | R8: 57.63 | S8: 94.74 | T8: 91.4 | U8: 34.52 | V8: 31.03 | W8: 47.76 | Z8: Közép-Dunántúl | AA8: 2 | AB8: 5 | AC8: 3 | AD8: 4 | AE8: 6 | AF8: 1 | AG8: 3 | AH8: 4 | AI8: 2 | AJ8: 4
A9: Közép-Magyarország | B9: 3.51 | C9: 4.36 | D9: 2.92 | E9: 1.56 | F9: 5.12 | G9: 4.61 | H9: 4.11 | I9: 3 | J9: 4.85 | K9: 3.19 | M9: Közép-Magyarország | N9: 66.4 | O9: 86.02 | P9: 56.92 | Q9: 71.77 | R9: 113.16 | S9: 99.69 | T9: 103.26 | U9: 82.77 | V9: 50.37 | W9: 38.99 | Z9: Közép-Magyarország | AA9: 5 | AB9: 4 | AC9: 6 | AD9: 7 | AE9: 5 | AF9: 3 | AG9: 5 | AH9: 7 | AI9: 4 | AJ9: 7
A10: Nyugat-Dunántúl | B10: 4.02 | C10: 4.45 | D10: 4.16 | E10: 3.06 | F10: 5.15 | G10: 4.48 | H10: 4.49 | I10: 4.08 | J10: 4.68 | K10: 4.69 | M10: Nyugat-Dunántúl | N10: 78.59 | O10: 74.93 | P10: 77.1 | Q10: 66.32 | R10: 99.96 | S10: 110.27 | T10: 97.56 | U10: 82.8 | V10: 41.93 | W10: 54.08 | Z10: Nyugat-Dunántúl | AA10: 3 | AB10: 2 | AC10: 2 | AD10: 2 | AE10: 3 | AF10: 5 | AG10: 2 | AH10: 1 | AI10: 6 | AJ10: 2
A11: Bezár | M11: Bezár | Z11: Bezár
K12: =SUM(B4:K10) -> 282.1
A13: Bezár | M13: Bezár | Z13: Bezár
A14: kukorica | B14: 2000 | C14: 2001 | D14: 2002 | E14: 2003 | F14: 2004 | G14: 2005 | H14: 2006 | I14: 2007 | J14: 2008 | K14: 2009 | M14: 7 növény | N14: 2000 | O14: 2001 | P14: 2002 | Q14: 2003 | R14: 2004 | S14: 2005 | T14: 2006 | U14: 2007 | V14: 2008 | W14: 2009 | Z14: kukorica | AA14: 2000 | AB14: 2001 | AC14: 2002 | AD14: 2003 | AE14: 2004 | AF14: 2005 | AG14: 2006 | AH14: 2007 | AI14: 2008 | AJ14: 2009
B15: =B3 -> t/ha | C15: =C3 -> t/ha | D15: t/ha | E15: t/ha | F15: t/ha | G15: t/ha | H15: t/ha | I15: t/ha | J15: t/ha | K15: t/ha | N15: =B15 -> t/ha | O15: =C15 -> t/ha | P15: =D15 -> t/ha | Q15: =E15 -> t/ha | R15: =F15 -> t/ha | S15: =G15 -> t/ha | T15: =H15 -> t/ha | U15: =I15 -> t/ha | V15: =J15 -> t/ha | W15: =K15 -> t/ha | AA15: =AA3 -> t/ha | AB15: =AB3 -> t/ha | AC15: t/ha | AD15: t/ha | AE15: t/ha | AF15: t/ha | AG15: t/ha | AH15: t/ha | AI15: t/ha | AJ15: t/ha
A16: Dél-Alföld | B16: 4.46 | C16: 7.67 | D16: 5.46 | E16: 3.4 | F16: 7.46 | G16: 7.87 | H16: 7.36 | I16: 4.35 | J16: 7.32 | K16: 5.97 | M16: Dél-Alföld | N16: =B4+B16+B28+B40+B52+B77+B89 -> 61.99 | O16: =C4+C16+C28+C40+C52+C77+C89 -> 92.14 | P16: 80.29 | Q16: 75.03 | R16: 97.73 | S16: 89.24 | T16: 120.57 | U16: 89.05 | V16: 53.07 | W16: 50.91 | Z16: Dél-Alföld | AA16: =RANK(B16,B$16:B$22,0) -> 3 | AB16: =RANK(C16,C$16:C$22,0) -> 1 | AC16: =RANK(D16,D$16:D$22,0) -> 4 | AD16: =RANK(E16,E$16:E$22,0) -> 6 | AE16: =RANK(F16,F$16:F$22,0) -> 3 | AF16: =RANK(G16,G$16:G$22,0) -> 4 | AG16: =RANK(H16,H$16:H$22,0) -> 3 | AH16: =RANK(I16,I$16:I$22,0) -> 3 | AI16: =RANK(J16,J$16:J$22,0) -> 6 | AJ16: =RANK(K16,K$16:K$22,0) -> 5
A17: Dél-Dunántúl | B17: 4.76 | C17: 7.28 | D17: 6.61 | E17: 4.42 | F17: 8.11 | G17: 8.36 | H17: 7.87 | I17: 3.24 | J17: 8.23 | K17: 7.46 | M17: Dél-Dunántúl | N17: =B5+B17+B29+B41+B53+B78+B90 -> 54.58 | O17: 83.35 | P17: 98.42 | Q17: 68.2 | R17: 111.44 | S17: 122.33 | T17: 118.19 | U17: 86.01 | V17: 40.06 | W17: 45.33 | Z17: Dél-Dunántúl | AA17: =RANK(B17,B$16:B$22,0) -> 2 | AB17: 2 | AC17: 2 | AD17: 2 | AE17: 1 | AF17: 2 | AG17: 1 | AH17: 7 | AI17: 4 | AJ17: 3
A18: Észak-Alföld | B18: 3.83 | C18: 7.13 | D18: 4.93 | E18: 5.08 | F18: 8.02 | G18: 7.8 | H18: 6.59 | I18: 4.7 | J18: 8.65 | K18: 6.46 | M18: Észak-Alföld | N18: =B6+B18+B30+B42+B54+B79+B91 -> 78.26 | O18: 88.28 | P18: 75.21 | Q18: 76.96 | R18: 98.56 | S18: 94.43 | T18: 94.33 | U18: 66.85 | V18: 44.55 | W18: 52.86 | Z18: Észak-Alföld | AA18: 5 | AB18: 3 | AC18: 6 | AD18: 1 | AE18: 2 | AF18: 5 | AG18: 6 | AH18: 2 | AI18: 2 | AJ18: 4
A19: Észak-Magyarország | B19: 2.63 | C19: 5.4 | D19: 5.27 | E19: 4.02 | F19: 5.67 | G19: 6.47 | H19: 5.67 | I19: 3.8 | J19: 6.04 | K19: 5.31 | M19: Észak-Magyarország | N19: =B7+B19+B31+B43+B55+B80+B92 -> 55.34 | O19: 70.58 | P19: 33.17 | Q19: 61.48 | R19: 109.11 | S19: 105.31 | T19: 98.4 | U19: 55.37 | V19: 54.13 | W19: 19.9 | Z19: Észak-Magyarország | AA19: 7 | AB19: 6 | AC19: 5 | AD19: 4 | AE19: 7 | AF19: 7 | AG19: 7 | AH19: 4 | AI19: 7 | AJ19: 6
A20: Közép-Dunántúl | B20: 4.97 | C20: 7.03 | D20: 6.63 | E20: 3.89 | F20: 7.3 | G20: 8.98 | H20: 7.58 | I20: 3.7 | J20: 8.73 | K20: 7.5 | M20: Közép-Dunántúl | N20: =B8+B20+B32+B44+B56+B81+B93 -> 53.6 | O20: 67.48 | P20: 35.8 | Q20: 23.45 | R20: 57.63 | S20: 94.74 | T20: 91.4 | U20: 34.52 | V20: 31.03 | W20: 47.76 | Z20: Közép-Dunántúl | AA20: 1 | AB20: 4 | AC20: 1 | AD20: 5 | AE20: 4 | AF20: 1 | AG20: 2 | AH20: 5 | AI20: 1 | AJ20: 2
A21: Közép-Magyarország | B21: 3.44 | C21: 6.52 | D21: 3.88 | E21: 2.81 | F21: 6.16 | G21: 7.72 | H21: 6.84 | I21: 3.27 | J21: 7.8 | K21: 5.3 | M21: Közép-Magyarország | N21: =B9+B21+B33+B45+B57+B82+B94 -> 66.4 | O21: 86.02 | P21: 56.92 | Q21: 71.77 | R21: 113.16 | S21: 99.69 | T21: 103.26 | U21: 82.77 | V21: 50.37 | W21: 38.99 | Z21: Közép-Magyarország | AA21: 6 | AB21: 5 | AC21: 7 | AD21: 7 | AE21: 6 | AF21: 6 | AG21: 5 | AH21: 6 | AI21: 5 | AJ21: 7
A22: Nyugat-Dunántúl | B22: 4.45 | C22: 4.27 | D22: 6.12 | E22: 4.18 | F22: 6.77 | G22: 8.01 | H22: 7.13 | I22: 4.72 | J22: 8.48 | K22: 8.12 | M22: Nyugat-Dunántúl | N22: =B10+B22+B34+B46+B58+B83+B95 -> 78.59 | O22: 74.93 | P22: 77.1 | Q22: 66.32 | R22: 99.96 | S22: 110.27 | T22: 97.56 | U22: 82.8 | V22: 41.93 | W22: 54.08 | Z22: Nyugat-Dunántúl | AA22: 4 | AB22: 7 | AC22: 3 | AD22: 3 | AE22: 5 | AF22: 3 | AG22: 4 | AH22: 1 | AI22: 3 | AJ22: 1
A23: Bezár | M23: Bezár | Z23: Bezár
K24: =SUM(B16:K22) -> 423.43
A25: Bezár | M25: Bezár
A26: burgonya | B26: 2000 | C26: 2001 | D26: 2002 | E26: 2003 | F26: 2004 | G26: 2005 | H26: 2006 | I26: 2007 | J26: 2008 | K26: 2009 | M26: 7 növény | N26: 2000 | O26: 2001 | P26: 2002 | Q26: 2003 | R26: 2004 | S26: 2005 | T26: 2006 | U26: 2007 | V26: 2008 | W26: 2009
B27: =B15 -> t/ha | C27: =C15 -> t/ha | D27: t/ha | E27: t/ha | F27: t/ha | G27: t/ha | H27: t/ha | I27: t/ha | J27: t/ha | K27: t/ha | N27: =B27 -> t/ha | O27: =C27 -> t/ha | P27: =D27 -> t/ha | Q27: =E27 -> t/ha | R27: =F27 -> t/ha | S27: =G27 -> t/ha | T27: =H27 -> t/ha | U27: =I27 -> t/ha | V27: =J27 -> t/ha | W27: =K27 -> t/ha
A28: Dél-Alföld | B28: 18.69 | C28: 20.82 | D28: 19.78 | E28: 19.17 | F28: 24.81 | G28: 21.64 | H28: 26.22 | I28: 23.69 | J28: 28.1 | K28: 32.47 | M28: Dél-Alföld | N28: =N4-N16 -> 0 | O28: =O4-O16 -> 0 | P28: 0 | Q28: 0 | R28: 0 | S28: 0 | T28: 0 | U28: 0 | V28: 0 | W28: 0
A29: Dél-Dunántúl | B29: 8.52 | C29: 14.23 | D29: 21.8 | E29: 13.7 | F29: 34.22 | G29: 27.14 | H29: 23.31 | I29: 14.43 | J29: 16.43 | K29: 18.59 | M29: Dél-Dunántúl | N29: =N5-N17 -> 0 | O29: 0 | P29: 0 | Q29: 0 | R29: 0 | S29: 0 | T29: 0 | U29: 0 | V29: 0 | W29: 0
A30: Észak-Alföld | B30: 20.75 | C30: 24.79 | D30: 20.84 | E30: 22.43 | F30: 20.47 | G30: 31.11 | H30: 28.96 | I30: 21.26 | J30: 20.18 | K30: 33.61 | M30: Észak-Alföld | N30: =N6-N18 -> 0 | O30: 0 | P30: 0 | Q30: 0 | R30: 0 | S30: 0 | T30: 0 | U30: 0 | V30: 0 | W30: 0
A31: Észak-Magyarország | B31: 15.84 | C31: 18.08 | D31: 21.24 | E31: 10.84 | F31: 29.34 | G31: 24.99 | H31: 22.5 | I31: 0 | J31: 31 | K31: 0 | M31: Észak-Magyarország | N31: =N7-N19 -> 0 | O31: 0 | P31: 0 | Q31: 0 | R31: 0 | S31: 0 | T31: 0 | U31: 0 | V31: 0 | W31: 0
A32: Közép-Dunántúl | B32: 5.69 | C32: 8.67 | D32: 18.44 | E32: 11.01 | F32: 20.31 | G32: 14.14 | H32: 15.32 | I32: 18.71 | J32: 3.86 | K32: 25.6 | M32: Közép-Dunántúl | N32: =N8-N20 -> 0 | O32: 0 | P32: 0 | Q32: 0 | R32: 0 | S32: 0 | T32: 0 | U32: 0 | V32: 0 | W32: 0
A33: Közép-Magyarország | B33: 16 | C33: 13.2 | D33: 17.59 | E33: 21.44 | F33: 35.84 | G33: 21.71 | H33: 28.12 | I33: 30.89 | J33: 26.3 | K33: 22.78 | M33: Közép-Magyarország | N33: =N9-N21 -> 0 | O33: 0 | P33: 0 | Q33: 0 | R33: 0 | S33: 0 | T33: 0 | U33: 0 | V33: 0 | W33: 0
A34: Nyugat-Dunántúl | B34: 25.18 | C34: 23.95 | D34: 15.94 | E34: 11.95 | F34: 32.66 | G34: 26.65 | H34: 25.94 | I34: 23.4 | J34: 14.56 | K34: 32.12 | M34: Nyugat-Dunántúl | N34: =N10-N22 -> 0 | O34: 0 | P34: 0 | Q34: 0 | R34: 0 | S34: 0 | T34: 0 | U34: 0 | V34: 0 | W34: 0
A35: Bezár | M35: Bezár
K36: =SUM(B28:K34) -> 1453.96
A37: Bezár
A38: rozs | B38: 2000 | C38: 2001 | D38: 2002 | E38: 2003 | F38: 2004 | G38: 2005 | H38: 2006 | I38: 2007 | J38: 2008 | K38: 2009
B39: =B27 -> t/ha | C39: =C27 -> t/ha | D39: t/ha | E39: t/ha | F39: t/ha | G39: t/ha | H39: t/ha | I39: t/ha | J39: t/ha | K39: t/ha
A40: Dél-Alföld | B40: 1.38 | C40: 2.14 | D40: 2.28 | E40: 0.61 | F40: 2.73 | G40: 3.24 | H40: 1.71 | I40: 1.18 | J40: 2.36 | K40: 1.26
A41: Dél-Dunántúl | B41: 0 | C41: 0 | D41: 0 | E41: 1.85 | F41: 4.8 | G41: 4.88 | H41: 4.03 | I41: 0 | J41: 0 | K41: 3.8
A42: Észak-Alföld | B42: 1 | C42: 1.85 | D42: 1.6 | E42: 2.02 | F42: 3.06 | G42: 0.88 | H42: 1.87 | I42: 1.05 | J42: 1.5 | K42: 2.16
A43: Észak-Magyarország | B43: 0 | C43: 0 | D43: 0 | E43: 2 | F43: 3.5 | G43: 3 | H43: 2.6 | I43: 2.3 | J43: 3.59 | K43: 3.4
A44: Közép-Dunántúl | B44: 0 | C44: 2.24 | D44: 2.5 | E44: 1.29 | F44: 2.73 | G44: 1.98 | H44: 1.5 | I44: 2.81 | J44: 2.32 | K44: 3.09
A45: Közép-Magyarország | B45: 2.06 | C45: 2.45 | D45: 1.75 | E45: 0.51 | F45: 2.49 | G45: 3.13 | H45: 3.02 | I45: 1.57 | J45: 2.29 | K45: 1.16
A46: Nyugat-Dunántúl | B46: 2.46 | C46: 2.45 | D46: 2.54 | E46: 2.26 | F46: 3.34 | G46: 3.58 | H46: 2.7 | I46: 2.72 | J46: 3.89 | K46: 0
A47: Bezár
K48: =SUM(B40:K46) -> 142.46
A49: Bezár
A50: cukorrépa | B50: 2000 | C50: 2001 | D50: 2002 | E50: 2003 | F50: 2004 | G50: 2005 | H50: 2006 | I50: 2007 | J50: =J62 -> 2008 | K50: =K62 -> 2009
B51: =B39 -> t/ha | J51: =J63 -> t/ha | K51: t/ha
A52: Dél-Alföld | B52: 29.05 | C52: 51.03 | D52: 43.51 | E52: 44.51 | F52: 49.95 | G52: 46 | H52: 75 | I52: 50 | J52: =J64 -> 2.08 | K52: 1.62
A53: Dél-Dunántúl | B53: 31.46 | C53: 50.46 | D53: 58.78 | E53: 39.13 | F53: 51.42 | G53: 70.6 | H53: 71.56 | I53: 57.91 | J53: =J65 -> 2.67 | K53: 3.02
A54: Észak-Alföld | B54: 45.24 | C54: 44.73 | D54: 41.35 | E54: 41.44 | F54: 54.34 | G54: 44.43 | H54: 49.87 | I54: 31.72 | J54: =J66 -> 2.38 | K54: 1.81
A55: Észak-Magyarország | B55: 29.2 | C55: 38 | D55: 0 | E55: 40 | F55: 59.99 | G55: 60 | H55: 57.98 | I55: 41.16 | J55: =J67 -> 2.22 | K55: 1.8
A56: Közép-Dunántúl | B56: 33.82 | C56: 39.01 | D56: 0 | E56: 0 | F56: 15.01 | G56: 57.89 | H56: 56.4 | I56: 0 | J56: =J68 -> 2.77 | K56: 2.25
A57: Közép-Magyarország | B57: 36.33 | C57: 52.74 | D57: 26.62 | E57: 41.99 | F57: 56.93 | G57: 56.29 | H57: 55.2 | I57: 39.67 | J57: =J69 -> 2.31 | K57: 1.51
A58: Nyugat-Dunántúl | B58: 37.42 | C58: 34 | D58: 44.22 | E58: 39.48 | F58: 45.58 | G58: 61.02 | H58: 51.48 | I58: 41.7 | J58: =J70 -> 2.68 | K58: 2.59
A59: Bezár
K60: =SUM(B52:K58) -> 2454.33
I61: Bezár
I62: repce | J62: 2008 | K62: 2009
J63: =B39 -> t/ha | K63: =C39 -> t/ha
I64: Dél-Alföld | J64: 2.08 | K64: 1.62
I65: Dél-Dunántúl | J65: 2.67 | K65: 3.02
I66: Észak-Alföld | J66: 2.38 | K66: 1.81
I67: Észak-Magyarország | J67: 2.22 | K67: 1.8
I68: Közép-Dunántúl | J68: 2.77 | K68: 2.25
I69: Közép-Magyarország | J69: 2.31 | K69: 1.51
I70: Nyugat-Dunántúl | J70: 2.68 | K70: 2.59
I71: Bezár
A74: Bezár
A75: őszi árpa | B75: 2000 | C75: 2001 | D75: 2002 | E75: 2003 | F75: 2004 | G75: 2005 | H75: 2006 | I75: 2007 | J75: 2008 | K75: 2009
B76: =B39 -> t/ha
A77: Dél-Alföld | B77: 2.95 | C77: 4.05 | D77: 3.56 | E77: 2.51 | F77: 4.41 | G77: 3.91 | H77: 3.92 | I77: 3.76 | J77: 5.31 | K77: 3.45
A78: Dél-Dunántúl | B78: 3.63 | C78: 4.56 | D78: 4.11 | E78: 3.19 | F78: 4.7 | G78: 4.25 | H78: 4.45 | I78: 4.15 | J78: 4.13 | K78: 4.59
A79: Észak-Alföld | B79: 2.93 | C79: 4.21 | D79: 1.64 | E79: 1.74 | F79: 5.04 | G79: 4.09 | H79: 2.04 | I79: 2.96 | J79: 4.17 | K79: 2.86
A80: Észak-Magyarország | B80: 3.96 | C80: 3.32 | D80: 2.38 | E80: 1.23 | F80: 3.95 | G80: 4.16 | H80: 3.84 | I80: 3.18 | J80: 4.35 | K80: 3.56
A81: Közép-Dunántúl | B81: 3.04 | C81: 3.92 | D81: 2.15 | E81: 2.4 | F81: 4.43 | G81: 4.29 | H81: 3.91 | I81: 3.8 | J81: 4.99 | K81: 3.15
A82: Közép-Magyarország | B82: 3.53 | C82: 4.41 | D82: 2.22 | E82: 1.83 | F82: 4.3 | G82: 4.18 | H82: 3.83 | I82: 2.4 | J82: 4.17 | K82: 2.98
A83: Nyugat-Dunántúl | B83: 3.35 | C83: 3.86 | D83: 2.1 | E83: 2.93 | F83: 4.05 | G83: 4.03 | H83: 3.4 | I83: 4.23 | J83: 4.81 | K83: 4.16
A84: Bezár
K85: =SUM(B77:K83) -> 252.05
A86: Bezár
A87: napraforgó | B87: 2000 | C87: 2001 | D87: 2002 | E87: 2003 | F87: 2004 | G87: 2005 | H87: 2006 | I87: 2007 | J87: 2008 | K87: 2009
B88: =B39 -> t/ha
A89: Dél-Alföld | B89: 1.44 | C89: 1.98 | D89: 2.04 | E89: 1.96 | F89: 2.58 | G89: 2.05 | H89: 2.12 | I89: 2.31 | J89: 2.72 | K89: 2.43
A90: Dél-Dunántúl | B90: 2.11 | C90: 2.05 | D90: 2.39 | E90: 2.42 | F90: 3.04 | G90: 2.48 | H90: 2.41 | I90: 2.46 | J90: 3.02 | K90: 2.89
A91: Észak-Alföld | B91: 1.44 | C91: 1.56 | D91: 1.87 | E91: 1.86 | F91: 2.17 | G91: 2 | H91: 1.83 | I91: 2.14 | J91: 2.92 | K91: 2.28
A92: Észak-Magyarország | B92: 1.12 | C92: 1.77 | D92: 1.37 | E92: 1.51 | F92: 2.19 | G92: 2.25 | H92: 1.97 | I92: 1.78 | J92: 2.45 | K92: 2.18
A93: Közép-Dunántúl | B93: 2.05 | C93: 2.29 | D93: 2.18 | E93: 2.4 | F93: 2.77 | G93: 2.53 | H93: 2.32 | I93: 2.13 | J93: 2.98 | K93: 2.48
A94: Közép-Magyarország | B94: 1.53 | C94: 2.34 | D94: 1.94 | E94: 1.63 | F94: 2.32 | G94: 2.05 | H94: 2.14 | I94: 1.97 | J94: 2.65 | K94: 2.07
A95: Nyugat-Dunántúl | B95: 1.71 | C95: 1.95 | D95: 2.02 | E95: 2.46 | F95: 2.41 | G95: 2.5 | H95: 2.42 | I95: 1.95 | J95: 2.83 | K95: 2.4
A96: Bezár
K97: =SUM(B89:K95) -> 152.98
K99: =K97+K85+K60+K48+K36+K24+K12 -> 5161.31

Sheet pivot_alap
A1: id | B1: objektum | C1: attribútum | D1: érték | E1: mértékegység | F1: forrás | G1: év
A2: 1 | B2: ='db2'!A4 -> Dél-Alföld | C2: ='db2'!A2 -> búza | D2: ='db2'!B4 -> 4.02 | E2: t/ha | F2: fadn | G2: ='db2'!B2 -> 2000
A3: 2 | B3: ='db2'!A5 -> Dél-Dunántúl | C3: =C2 -> búza | D3: ='db2'!B5 -> 4.1 | E3: =E2 -> t/ha | F3: fadn | G3: =G2 -> 2000
A4: 3 | B4: ='db2'!A6 -> Észak-Alföld | C4: =C3 -> búza | D4: ='db2'!B6 -> 3.07 | E4: t/ha | F4: fadn | G4: =G3 -> 2000
A5: 4 | B5: ='db2'!A7 -> Észak-Magyarország | C5: búza | D5: ='db2'!B7 -> 2.59 | E5: t/ha | F5: fadn | G5: 2000
A6: 5 | B6: ='db2'!A8 -> Közép-Dunántúl | C6: búza | D6: ='db2'!B8 -> 4.03 | E6: t/ha | F6: fadn | G6: 2000
A7: 6 | B7: ='db2'!A9 -> Közép-Magyarország | C7: búza | D7: ='db2'!B9 -> 3.51 | E7: t/ha | F7: fadn | G7: 2000
A8: 7 | B8: ='db2'!A10 -> Nyugat-Dunántúl | C8: búza | D8: ='db2'!B10 -> 4.02 | E8: t/ha | F8: fadn | G8: 2000

Sheet mo
A1: Bezár
A2: Üzemek száma | B2: 2000 | C2: 2001 | D2: 2002 | E2: 2003 | F2: 2004 | G2: 2005 | H2: 2006 | I2: 2007 | J2: 2008 | K2: 2009
B3: darab üzem | C3: darab üzem | D3: darab üzem | E3: darab üzem | F3: darab üzem | G3: darab üzem | H3: darab üzem | I3: darab üzem | J3: darab üzem | K3: darab üzem
A4: Dél-Alföld | B4: 104 | C4: 131 | D4: 167 | E4: 216 | F4: 218 | G4: 202 | H4: 186 | I4: 203 | J4: 201 | K4: 202
A5: Dél-Dunántúl | B5: 111 | C5: 100 | D5: 102 | E5: 110 | F5: 105 | G5: 101 | H5: 96 | I5: 99 | J5: 101 | K5: 100
A6: Észak-Alföld | B6: 139 | C6: 126 | D6: 132 | E6: 164 | F6: 173 | G6: 159 | H6: 154 | I6: 163 | J6: 160 | K6: 154
A7: Észak-Magyarország | B7: 93 | C7: 83 | D7: 61 | E7: 72 | F7: 77 | G7: 60 | H7: 56 | I7: 68 | J7: 68 | K7: 67
A8: Közép-Dunántúl | B8: 86 | C8: 100 | D8: 85 | E8: 94 | F8: 104 | G8: 98 | H8: 94 | I8: 100 | J8: 96 | K8: 93
A9: Közép-Magyarország | B9: 52 | C9: 54 | D9: 73 | E9: 67 | F9: 68 | G9: 59 | H9: 57 | I9: 59 | J9: 58 | K9: 57
A10: Nyugat-Dunántúl | B10: 106 | C10: 98 | D10: 72 | E10: 77 | F10: 105 | G10: 106 | H10: 96 | I10: 99 | J10: 105 | K10: 102
A11: Bezár
A13: Bezár
A14: burgonya vetésterület | B14: 2000 | C14: 2001 | D14: 2002 | E14: 2003 | F14: 2004 | G14: 2005 | H14: 2006 | I14: 2007 | J14: 2008 | K14: 2009
B15: ha/üzem | C15: ha/üzem | D15: ha/üzem | E15: ha/üzem | F15: ha/üzem | G15: ha/üzem | H15: ha/üzem | I15: ha/üzem | J15: ha/üzem | K15: ha/üzem
A16: Dél-Alföld | B16: 0.11 | C16: 0.28 | D16: 0.08 | E16: 0.18 | F16: 0.31 | G16: 0.24 | H16: 0.2 | I16: 0.24 | J16: 0.2 | K16: 0.18
A17: Dél-Dunántúl | B17: 0.29 | C17: 0.57 | D17: 0.06 | E17: 0.09 | F17: 0.05 | G17: 0.08 | H17: 0.03 | I17: 0.05 | J17: 0.06 | K17: 0.03
A18: Észak-Alföld | B18: 0.37 | C18: 0.2 | D18: 0.04 | E18: 0.07 | F18: 0.07 | G18: 0.05 | H18: 0.04 | I18: 0.19 | J18: 0.05 | K18: 0.02
A19: Észak-Magyarország | B19: 0.4 | C19: 0.56 | D19: 0.18 | E19: 0.27 | F19: 0.14 | G19: 0.09 | H19: 0.02 | I19: 0 | J19: 0.02 | K19: 0
A20: Közép-Dunántúl | B20: 0.13 | C20: 0.08 | D20: 0.03 | E20: 0.4 | F20: 0.47 | G20: 0.55 | H20: 0.27 | I20: 0.23 | J20: 0.23 | K20: 0.36
A21: Közép-Magyarország | B21: 0.03 | C21: 0.07 | D21: 0.19 | E21: 0.46 | F21: 0.13 | G21: 0.31 | H21: 0.12 | I21: 0.07 | J21: 0.07 | K21: 0.19
A22: Nyugat-Dunántúl | B22: 0.79 | C22: 0.61 | D22: 0.34 | E22: 0.32 | F22: 0.1 | G22: 0.12 | H22: 0.12 | I22: 0.12 | J22: 0.27 | K22: 0.16
A23: Bezár
A26: Bezár
A27: burgonya vetésterület | B27: 2000 | C27: 2001 | D27: 2002 | E27: 2003 | F27: 2004 | G27: 2005 | H27: 2006 | I27: 2007 | J27: 2008 | K27: 2009
B28: hektár | C28: hektár | D28: hektár | E28: hektár | F28: hektár | G28: hektár | H28: hektár | I28: hektár | J28: hektár | K28: hektár
A29: Dél-Alföld | B29: =B16*B4 -> 11.44 | C29: =C16*C4 -> 36.68 | D29: 13.36 | E29: 38.88 | F29: 67.58 | G29: 48.48 | H29: 37.2 | I29: 48.72 | J29: 40.2 | K29: 36.36
A30: Dél-Dunántúl | B30: =B17*B5 -> 32.19 | C30: 57 | D30: 6.12 | E30: 9.9 | F30: 5.25 | G30: 8.08 | H30: 2.88 | I30: 4.95 | J30: 6.06 | K30: 3
A31: Észak-Alföld | B31: =B18*B6 -> 51.43 | C31: 25.2 | D31: 5.28 | E31: 11.48 | F31: 12.11 | G31: 7.95 | H31: 6.16 | I31: 30.97 | J31: 8 | K31: 3.08
A32: Észak-Magyarország | B32: =B19*B7 -> 37.2 | C32: 46.48 | D32: 10.98 | E32: 19.44 | F32: 10.78 | G32: 5.4 | H32: 1.12 | I32: 0 | J32: 1.36 | K32: 0
A33: Közép-Dunántúl | B33: =B20*B8 -> 11.18 | C33: 8 | D33: 2.55 | E33: 37.6 | F33: 48.88 | G33: 53.9 | H33: 25.38 | I33: 23 | J33: 22.08 | K33: 33.48
A34: Közép-Magyarország | B34: =B21*B9 -> 1.56 | C34: 3.78 | D34: 13.87 | E34: 30.82 | F34: 8.84 | G34: 18.29 | H34: 6.84 | I34: 4.13 | J34: 4.06 | K34: 10.83
A35: Nyugat-Dunántúl | B35: =B22*B10 -> 83.74 | C35: 59.78 | D35: 24.48 | E35: 24.64 | F35: 10.5 | G35: 12.72 | H35: 11.52 | I35: 11.88 | J35: 28.35 | K35: 16.32
A36: Bezár
A37: összesen | B37: =SUM(B29:B35) -> 228.74 | C37: =SUM(C29:C35) -> 236.92 | D37: 76.64 | E37: 172.76 | F37: 163.94 | G37: 154.82 | H37: 91.1 | I37: 123.65 | J37: 110.11 | K37: 103.07
A39: Bezár
A40: burgonya | B40: 2000 | C40: 2001 | D40: 2002 | E40: 2003 | F40: 2004 | G40: 2005 | H40: 2006 | I40: 2007 | J40: 2008 | K40: 2009 | M40: =B40 -> 2000 | N40: =C40 -> 2001 | O40: =D40 -> 2002 | P40: =E40 -> 2003 | Q40: =F40 -> 2004 | R40: =G40 -> 2005 | S40: =H40 -> 2006 | T40: =I40 -> 2007 | U40: =J40 -> 2008 | V40: =K40 -> 2009 | W40: burg | X40: kuk | Y40: buz
B41: t/ha | C41: t/ha | D41: t/ha | E41: t/ha | F41: t/ha | G41: t/ha | H41: t/ha | I41: t/ha | J41: t/ha | K41: t/ha | M41: =B41 -> t/ha | N41: t/ha | O41: t/ha | P41: t/ha | Q41: t/ha | R41: t/ha | S41: t/ha | T41: t/ha | U41: t/ha | V41: t/ha | W41: szórás | X41: szórás | Y41: szórás
A42: Dél-Alföld | B42: 18.69 | C42: 20.82 | D42: 19.78 | E42: 19.17 | F42: 24.81 | G42: 21.64 | H42: 26.22 | I42: 23.69 | J42: 28.1 | K42: 32.47 | M42: =RANK(B42,B$42:B$49,0) -> 4 | N42: =RANK(C42,C$42:C$49,0) -> 3 | O42: =RANK(D42,D$42:D$49,0) -> 4 | P42: =RANK(E42,E$42:E$49,0) -> 3 | Q42: =RANK(F42,F$42:F$49,0) -> 6 | R42: =RANK(G42,G$42:G$49,0) -> 6 | S42: =RANK(H42,H$42:H$49,0) -> 3 | T42: =RANK(I42,I$42:I$49,0) -> 2 | U42: =RANK(J42,J$42:J$49,0) -> 2 | V42: =RANK(K42,K$42:K$49,0) -> 2 | W42: =STDEV(M42:V42) -> 1.509230856 | X42: =STDEV('db2'!AA16:AJ16) -> 1.549193338 | Y42: =STDEV('db2'!AA4:AJ4) -> 0.9428090416
A43: Dél-Dunántúl | B43: 8.52 | C43: 14.23 | D43: 21.8 | E43: 13.7 | F43: 34.22 | G43: 27.14 | H43: 23.31 | I43: 14.43 | J43: 16.43 | K43: 18.59 | M43: =RANK(B43,B$42:B$49,0) -> 7 | N43: 6 | O43: 1 | P43: 5 | Q43: 2 | R43: 2 | S43: 5 | T43: 7 | U43: 6 | V43: 7 | W43: =STDEV(M43:V43) -> 2.299758441 | X43: =STDEV('db2'!AA17:AJ17) -> 1.776388346 | Y43: =STDEV('db2'!AA5:AJ5) -> 0.6992058988
A44: Észak-Alföld | B44: 20.75 | C44: 24.79 | D44: 20.84 | E44: 22.43 | F44: 20.47 | G44: 31.11 | H44: 28.96 | I44: 21.26 | J44: 20.18 | K44: 33.61 | M44: 2 | N44: 1 | O44: 3 | P44: 1 | Q44: 7 | R44: 1 | S44: 1 | T44: 5 | U44: 5 | V44: 1 | W44: 2.213594362 | X44: =STDEV('db2'!AA18:AJ18) -> 1.837873167 | Y44: =STDEV('db2'!AA6:AJ6) -> 1.429840706
A45: Észak-Magyarország | B45: 15.84 | C45: 18.08 | D45: 21.24 | E45: 10.84 | F45: 29.34 | G45: 24.99 | H45: 22.5 | I45: 0 | J45: 31 | K45: 0 | M45: 6 | N45: 5 | O45: 2 | P45: 8 | Q45: 4 | R45: 4 | S45: 6 | T45: 8 | U45: 1 | V45: 8 | W45: 2.485513584 | X45: =STDEV('db2'!AA19:AJ19) -> 1.247219129 | Y45: =STDEV('db2'!AA7:AJ7) -> 0.6749485577
A46: Közép-Dunántúl | B46: 5.69 | C46: 8.67 | D46: 18.44 | E46: 11.01 | F46: 20.31 | G46: 14.14 | H46: 15.32 | I46: 18.71 | J46: 3.86 | K46: 25.6 | M46: 8 | N46: 8 | O46: 6 | P46: 7 | Q46: 8 | R46: 8 | S46: 8 | T46: 6 | U46: 8 | V46: 5 | W46: 1.135292424 | X46: =STDEV('db2'!AA20:AJ20) -> 1.712697677 | Y46: =STDEV('db2'!AA8:AJ8) -> 1.505545305
A47: Közép-Magyarország | B47: 16 | C47: 13.2 | D47: 17.59 | E47: 21.44 | F47: 35.84 | G47: 21.71 | H47: 28.12 | I47: 30.89 | J47: 26.3 | K47: 22.78 | M47: 5 | N47: 7 | O47: 7 | P47: 2 | Q47: 1 | R47: 5 | S47: 2 | T47: 1 | U47: 3 | V47: 6 | W47: 2.378141198 | X47: =STDEV('db2'!AA21:AJ21) -> 0.8164965809 | Y47: =STDEV('db2'!AA9:AJ9) -> 1.418136492
A48: Magyarország | B48: 18.97 | C48: 19.87 | D48: 19.04 | E48: 17.89 | F48: 27.2 | G48: 18.9 | H48: 21.95 | I48: 23.2 | J48: 21.99 | K48: 29.24 | M48: 3 | N48: 4 | O48: 5 | P48: 4 | Q48: 5 | R48: 7 | S48: 7 | T48: 4 | U48: 4 | V48: 4 | W48: 1.33749351
A49: Nyugat-Dunántúl | B49: 25.18 | C49: 23.95 | D49: 15.94 | E49: 11.95 | F49: 32.66 | G49: 26.65 | H49: 25.94 | I49: 23.4 | J49: 14.56 | K49: 32.12 | M49: 1 | N49: 2 | O49: 8 | P49: 6 | Q49: 3 | R49: 3 | S49: 4 | T49: 3 | U49: 7 | V49: 3 | W49: 2.260776661 | X49: =STDEV('db2'!AA22:AJ22) -> 1.776388346 | Y49: =STDEV('db2'!AA10:AJ10) -> 1.549193338
A50: Bezár
A52: Bezár
A53: burgonya vetésterület | B53: 2000 | C53: 2001 | D53: 2002 | E53: 2003 | F53: 2004 | G53: 2005 | H53: 2006 | I53: 2007 | J53: 2008 | K53: 2009
B54: t | C54: t | D54: t | E54: t | F54: t | G54: t | H54: t | I54: t | J54: t | K54: t
A55: Dél-Alföld | B55: =B42*B29 -> 213.8136 | C55: =C42*C29 -> 763.6776 | D55: 264.2608 | E55: 745.3296 | F55: 1676.6598 | G55: 1049.1072 | H55: 975.384 | I55: 1154.1768 | J55: 1129.62 | K55: 1180.6092
A56: Dél-Dunántúl | B56: =B43*B30 -> 274.2588 | C56: 811.11 | D56: 133.416 | E56: 135.63 | F56: 179.655 | G56: 219.2912 | H56: 67.1328 | I56: 71.4285 | J56: 99.5658 | K56: 55.77
A57: Észak-Alföld | B57: =B44*B31 -> 1067.1725 | C57: 624.708 | D57: 110.0352 | E57: 257.4964 | F57: 247.8917 | G57: 247.3245 | H57: 178.3936 | I57: 658.4222 | J57: 161.44 | K57: 103.5188
A58: Észak-Magyarország | B58: =B45*B32 -> 589.248 | C58: 840.3584 | D58: 233.2152 | E58: 210.7296 | F58: 316.2852 | G58: 134.946 | H58: 25.2 | I58: 0 | J58: 42.16 | K58: 0
A59: Közép-Dunántúl | B59: =B46*B33 -> 63.6142 | C59: 69.36 | D59: 47.022 | E59: 413.976 | F59: 992.7528 | G59: 762.146 | H59: 388.8216 | I59: 430.33 | J59: 85.2288 | K59: 857.088
A60: Közép-Magyarország | B60: =B47*B34 -> 24.96 | C60: 49.896 | D60: 243.9733 | E60: 660.7808 | F60: 316.8256 | G60: 397.0759 | H60: 192.3408 | I60: 127.5757 | J60: 106.778 | K60: 246.7074
A61: Nyugat-Dunántúl | B61: =B49*B35 -> 2108.5732 | C61: =C49*C35 -> 1431.731 | D61: 390.2112 | E61: 294.448 | F61: 342.93 | G61: 338.988 | H61: 298.8288 | I61: 277.992 | J61: 412.776 | K61: 524.1984
A62: Bezár
A63: összesen | B63: =SUM(B55:B61) -> 4341.6403 | C63: =SUM(C55:C61) -> 4590.841 | D63: 1422.1337 | E63: 2718.3904 | F63: 4073.0001 | G63: 3148.8788 | H63: 2126.1016 | I63: 2719.9252 | J63: 2037.5686 | K63: 2967.8918
A64: =A37 -> összesen | B64: =B37 -> 228.74 | C64: =C37 -> 236.92 | D64: 76.64 | E64: 172.76 | F64: 163.94 | G64: 154.82 | H64: 91.1 | I64: 123.65 | J64: 110.11 | K64: 103.07
A65: mo_átlag | B65: =B63/B64 -> 18.98067806 | C65: =C63/C64 -> 19.37717795 | D65: 18.55602427 | E65: 15.7350683 | F65: 24.8444559 | G65: 20.33896654 | H65: 23.33810757 | I65: 21.99696886 | J65: 18.50484606 | K65: 28.79491414
A66: eltérés | B66: =B48-B65 -> -0.01067806243 | C66: =C48-C65 -> 0.4928220496 | D66: 0.4839757307 | E66: 2.154931697 | F66: 2.355544102 | G66: -1.438966542 | H66: -1.388107574 | I66: 1.203031136 | J66: 3.485153937 | K66: 0.445085864 | L66: =AVERAGE(B66:K66) -> 0.7782792338

Sheet ksh
A1: Nyomtatás Módszertan | F1: https://www.ksh.hu/docs/hun/agrar/html/tabl1_4_3_2.html
B2: 4.3.2. Burgonya termésátlaga (1921–)
B3: (kg/hektár)
B4: Év | C4: Burgonya
B5: 1921 | C5: 4640
B6: 1922 | C6: 5140
B7: 1923 | C7: 5100
B8: 1924 | C8: 6110
B9: 1925 | C9: 8750
B10: 1926 | C10: 7380
B11: 1927 | C11: 7690
B12: 1928 | C12: 5510
B13: 1929 | C13: 7650
B14: 1930 | C14: 6670
B15: 1931 | C15: 5040
B16: 1932 | C16: 5200
B17: 1933 | C17: 6250
B18: 1934 | C18: 7270
B19: 1935 | C19: 4850
B20: 1936 | C20: 8240
B21: 1937 | C21: 8640
B22: 1938 | C22: 7340
B23: 1939 | C23: 7280
B24: 1940 | C24: 8510
B25: 1941 | C25: 7730
B26: 1942 | C26: 6800
B27: 1943 | C27: 6830
B28: 1944 | C28: 9910
B29: 1945 | C29: 5350
B30: 1946 | C30: 4080
B31: 1947 | C31: 3810
B32: 1948 | C32: 7640
B33: 1949 | C33: 6620
B34: 1950 | C34: 4830
B35: 1951 | C35: 10090
B36: 1952 | C36: 5210
B37: 1953 | C37: 9560
B38: 1954 | C38: 8450
B39: 1955 | C39: 10720
B40: 1956 | C40: 9340
B41: 1957 | C41: 11250
B42: 1958 | C42: 10830
B43: 1959 | C43: 10280
B44: 1960 | C44: 10510
B45: 1961 | C45: 6810
B46: 1962 | C46: 9010
B47: 1963 | C47: 8740
B48: 1964 | C48: 7860
B49: 1965 | C49: 7190
B50: 1966 | C50: 12280
B51: 1967 | C51: 8940
B52: 1968 | C52: 8920
B53: 1969 | C53: 11350
B54: 1970 | C54: 10410
B55: 1971 | C55: 11570
B56: 1972 | C56: 11090
B57: 1973 | C57: 10940
B58: 1974 | C58: 12590
B59: 1975 | C59: 12640
B60: 1976 | C60: 12060
B61: 1977 | C61: 13450
B62: 1978 | C62: 16200
B63: 1979 | C63: 14410
B64: 1980 | C64: 14960
B65: 1981 | C65: 18200
B66: 1982 | C66: 17340
B67: 1983 | C67: 15920
B68: 1984 | C68: 20160
B69: 1985 | C69: 19580
B70: 1986 | C70: 18630
B71: 1987 | C71: 15970
B72: 1988 | C72: 18500
B73: 1989 | C73: 18600
B74: 1990 | C74: 16920
B75: 1991 | C75: 15760
B76: 1992 | C76: 16850
B77: 1993 | C77: 13310
B78: 1994 | C78: 12770
B79: 1995 | C79: 15780
B80: 1996 | C80: 17790
B81: 1997 | C81: 16280
B82: 1998 | C82: 18850
B83: 1999 | C83: 18390
B84: 2000 | C84: 15290 | D84: =mo!B48 -> 18.97 | E84: 18.97 | F84: =TRANSPOSE(mo!B48:K48) -> 18.97 | G84: =C84/1000-E84 -> -3.68
B85: 2001 | C85: 21280 | E85: 19.87 | F85: 19.87 | G85: =C85/1000-E85 -> 1.41
B86: 2002 | C86: 18280 | E86: 19.04 | F86: 19.04 | G86: -0.76
B87: 2003 | C87: 15660 | E87: 17.89 | F87: 17.89 | G87: -2.23
B88: 2004 | C88: 22760 | E88: 27.2 | F88: 27.2 | G88: -4.44
B89: 2005 | C89: 23020 | E89: 18.9 | F89: 18.9 | G89: 4.12
B90: 2006 | C90: 23450 | E90: 21.95 | F90: 21.95 | G90: 1.5
B91: 2007 | C91: 18970 | E91: 23.2 | F91: 23.2 | G91: -4.23
B92: 2008 | C92: 22280 | E92: 21.99 | F92: 21.99 | G92: 0.29
B93: 2009 | C93: 21260 | E93: 29.24 | F93: 29.24 | G93: -7.98
B94: 2010 | C94: 20420 | G94: =AVERAGE(G84:G93) -> -1.6
B95: 2011 | C95: 25860
B96: 2012 | C96: 20540
B97: 2013 | C97: 21690
B98: 2014 | C98: 25580
B99: 2015 | C99: 22530
B100: 2016 | C100: 24970
B101: 2017 | C101: 21490
B102: 2018 | C102: 22300
A103: « Vissza

Sheet OAM_darab
A3: Mennyiség / Érték | C3: Mutatószám | D3: Mértékegység
C4: burgonya | D4: Búza *összesen*na.*na. | E4: kukorica | F4: napraforgó | G4: őszi árpa | H4: Rozs *összesen*na.*na. | I4: Végösszeg
A5: Régió | B5: Év | C5: t/ha | D5: t/ha | E5: t/ha | F5: t/ha | G5: t/ha | H5: t/ha
A6: Dél-Alföld | B6: 2000 | C6: 1 | D6: 1 | E6: 1 | F6: 1 | G6: 1 | H6: 1 | I6: 6
A7: Dél-Alföld | B7: 2001 | C7: 1 | D7: 1 | E7: 1 | F7: 1 | G7: 1 | H7: 1 | I7: 6
A8: Dél-Alföld | B8: 2002 | C8: 1 | D8: 1 | E8: 1 | F8: 1 | G8: 1 | H8: 1 | I8: 6
A9: Dél-Alföld | B9: 2003 | C9: 1 | D9: 1 | E9: 1 | F9: 1 | G9: 1 | H9: 1 | I9: 6
A10: Dél-Alföld | B10: 2004 | C10: 1 | D10: 1 | E10: 1 | F10: 1 | G10: 1 | H10: 1 | I10: 6
A11: Dél-Alföld | B11: 2005 | C11: 1 | D11: 1 | E11: 1 | F11: 1 | G11: 1 | H11: 1 | I11: 6
A12: Dél-Alföld | B12: 2006 | C12: 1 | D12: 1 | E12: 1 | F12: 1 | G12: 1 | H12: 1 | I12: 6
A13: Dél-Alföld | B13: 2007 | C13: 1 | D13: 1 | E13: 1 | F13: 1 | G13: 1 | H13: 1 | I13: 6
A14: Dél-Alföld | B14: 2008 | C14: 1 | D14: 1 | E14: 1 | F14: 1 | G14: 1 | H14: 1 | I14: 6
A15: Dél-Alföld | B15: 2009 | C15: 1 | D15: 1 | E15: 1 | F15: 1 | G15: 1 | H15: 1 | I15: 6
A16: Dél-Dunántúl | B16: 2000 | C16: 1 | D16: 1 | E16: 1 | F16: 1 | G16: 1 | H16: 1 | I16: 6
A17: Dél-Dunántúl | B17: 2001 | C17: 1 | D17: 1 | E17: 1 | F17: 1 | G17: 1 | H17: 1 | I17: 6
A18: Dél-Dunántúl | B18: 2002 | C18: 1 | D18: 1 | E18: 1 | F18: 1 | G18: 1 | H18: 1 | I18: 6
A19: Dél-Dunántúl | B19: 2003 | C19: 1 | D19: 1 | E19: 1 | F19: 1 | G19: 1 | H19: 1 | I19: 6
A20: Dél-Dunántúl | B20: 2004 | C20: 1 | D20: 1 | E20: 1 | F20: 1 | G20: 1 | H20: 1 | I20: 6
A21: Dél-Dunántúl | B21: 2005 | C21: 1 | D21: 1 | E21: 1 | F21: 1 | G21: 1 | H21: 1 | I21: 6
A22: Dél-Dunántúl | B22: 2006 | C22: 1 | D22: 1 | E22: 1 | F22: 1 | G22: 1 | H22: 1 | I22: 6
A23: Dél-Dunántúl | B23: 2007 | C23: 1 | D23: 1 | E23: 1 | F23: 1 | G23: 1 | H23: 1 | I23: 6
A24: Dél-Dunántúl | B24: 2008 | C24: 1 | D24: 1 | E24: 1 | F24: 1 | G24: 1 | H24: 1 | I24: 6
A25: Dél-Dunántúl | B25: 2009 | C25: 1 | D25: 1 | E25: 1 | F25: 1 | G25: 1 | H25: 1 | I25: 6
A26: Észak-Alföld | B26: 2000 | C26: 1 | D26: 1 | E26: 1 | F26: 1 | G26: 1 | H26: 1 | I26: 6
A27: Észak-Alföld | B27: 2001 | C27: 1 | D27: 1 | E27: 1 | F27: 1 | G27: 1 | H27: 1 | I27: 6
A28: Észak-Alföld | B28: 2002 | C28: 1 | D28: 1 | E28: 1 | F28: 1 | G28: 1 | H28: 1 | I28: 6
A29: Észak-Alföld | B29: 2003 | C29: 1 | D29: 1 | E29: 1 | F29: 1 | G29: 1 | H29: 1 | I29: 6
A30: Észak-Alföld | B30: 2004 | C30: 1 | D30: 1 | E30: 1 | F30: 1 | G30: 1 | H30: 1 | I30: 6
A31: Észak-Alföld | B31: 2005 | C31: 1 | D31: 1 | E31: 1 | F31: 1 | G31: 1 | H31: 1 | I31: 6
A32: Észak-Alföld | B32: 2006 | C32: 1 | D32: 1 | E32: 1 | F32: 1 | G32: 1 | H32: 1 | I32: 6
A33: Észak-Alföld | B33: 2007 | C33: 1 | D33: 1 | E33: 1 | F33: 1 | G33: 1 | H33: 1 | I33: 6
A34: Észak-Alföld | B34: 2008 | C34: 1 | D34: 1 | E34: 1 | F34: 1 | G34: 1 | H34: 1 | I34: 6
A35: Észak-Alföld | B35: 2009 | C35: 1 | D35: 1 | E35: 1 | F35: 1 | G35: 1 | H35: 1 | I35: 6
A36: Észak-Magyarország | B36: 2000 | C36: 1 | D36: 1 | E36: 1 | F36: 1 | G36: 1 | H36: 1 | I36: 6
A37: Észak-Magyarország | B37: 2001 | C37: 1 | D37: 1 | E37: 1 | F37: 1 | G37: 1 | H37: 1 | I37: 6
A38: Észak-Magyarország | B38: 2002 | C38: 1 | D38: 1 | E38: 1 | F38: 1 | G38: 1 | H38: 1 | I38: 6
A39: Észak-Magyarország | B39: 2003 | C39: 1 | D39: 1 | E39: 1 | F39: 1 | G39: 1 | H39: 1 | I39: 6
A40: Észak-Magyarország | B40: 2004 | C40: 1 | D40: 1 | E40: 1 | F40: 1 | G40: 1 | H40: 1 | I40: 6
A41: Észak-Magyarország | B41: 2005 | C41: 1 | D41: 1 | E41: 1 | F41: 1 | G41: 1 | H41: 1 | I41: 6
A42: Észak-Magyarország | B42: 2006 | C42: 1 | D42: 1 | E42: 1 | F42: 1 | G42: 1 | H42: 1 | I42: 6
A43: Észak-Magyarország | B43: 2007 | C43: 1 | D43: 1 | E43: 1 | F43: 1 | G43: 1 | H43: 1 | I43: 6
A44: Észak-Magyarország | B44: 2008 | C44: 1 | D44: 1 | E44: 1 | F44: 1 | G44: 1 | H44: 1 | I44: 6
A45: Észak-Magyarország | B45: 2009 | C45: 1 | D45: 1 | E45: 1 | F45: 1 | G45: 1 | H45: 1 | I45: 6
A46: Közép-Dunántúl | B46: 2000 | C46: 1 | D46: 1 | E46: 1 | F46: 1 | G46: 1 | H46: 1 | I46: 6
A47: Közép-Dunántúl | B47: 2001 | C47: 1 | D47: 1 | E47: 1 | F47: 1 | G47: 1 | H47: 1 | I47: 6
A48: Közép-Dunántúl | B48: 2002 | C48: 1 | D48: 1 | E48: 1 | F48: 1 | G48: 1 | H48: 1 | I48: 6
A49: Közép-Dunántúl | B49: 2003 | C49: 1 | D49: 1 | E49: 1 | F49: 1 | G49: 1 | H49: 1 | I49: 6
A50: Közép-Dunántúl | B50: 2004 | C50: 1 | D50: 1 | E50: 1 | F50: 1 | G50: 1 | H50: 1 | I50: 6
A51: Közép-Dunántúl | B51: 2005 | C51: 1 | D51: 1 | E51: 1 | F51: 1 | G51: 1 | H51: 1 | I51: 6
A52: Közép-Dunántúl | B52: 2006 | C52: 1 | D52: 1 | E52: 1 | F52: 1 | G52: 1 | H52: 1 | I52: 6
A53: Közép-Dunántúl | B53: 2007 | C53: 1 | D53: 1 | E53: 1 | F53: 1 | G53: 1 | H53: 1 | I53: 6
A54: Közép-Dunántúl | B54: 2008 | C54: 1 | D54: 1 | E54: 1 | F54: 1 | G54: 1 | H54: 1 | I54: 6
A55: Közép-Dunántúl | B55: 2009 | C55: 1 | D55: 1 | E55: 1 | F55: 1 | G55: 1 | H55: 1 | I55: 6
A56: Közép-Magyarország | B56: 2000 | C56: 1 | D56: 1 | E56: 1 | F56: 1 | G56: 1 | H56: 1 | I56: 6
A57: Közép-Magyarország | B57: 2001 | C57: 1 | D57: 1 | E57: 1 | F57: 1 | G57: 1 | H57: 1 | I57: 6
A58: Közép-Magyarország | B58: 2002 | C58: 1 | D58: 1 | E58: 1 | F58: 1 | G58: 1 | H58: 1 | I58: 6
A59: Közép-Magyarország | B59: 2003 | C59: 1 | D59: 1 | E59: 1 | F59: 1 | G59: 1 | H59: 1 | I59: 6
A60: Közép-Magyarország | B60: 2004 | C60: 1 | D60: 1 | E60: 1 | F60: 1 | G60: 1 | H60: 1 | I60: 6
A61: Közép-Magyarország | B61: 2005 | C61: 1 | D61: 1 | E61: 1 | F61: 1 | G61: 1 | H61: 1 | I61: 6
A62: Közép-Magyarország | B62: 2006 | C62: 1 | D62: 1 | E62: 1 | F62: 1 | G62: 1 | H62: 1 | I62: 6
A63: Közép-Magyarország | B63: 2007 | C63: 1 | D63: 1 | E63: 1 | F63: 1 | G63: 1 | H63: 1 | I63: 6
A64: Közép-Magyarország | B64: 2008 | C64: 1 | D64: 1 | E64: 1 | F64: 1 | G64: 1 | H64: 1 | I64: 6
A65: Közép-Magyarország | B65: 2009 | C65: 1 | D65: 1 | E65: 1 | F65: 1 | G65: 1 | H65: 1 | I65: 6
A66: Nyugat-Dunántúl | B66: 2000 | C66: 1 | D66: 1 | E66: 1 | F66: 1 | G66: 1 | H66: 1 | I66: 6
A67: Nyugat-Dunántúl | B67: 2001 | C67: 1 | D67: 1 | E67: 1 | F67: 1 | G67: 1 | H67: 1 | I67: 6
A68: Nyugat-Dunántúl | B68: 2002 | C68: 1 | D68: 1 | E68: 1 | F68: 1 | G68: 1 | H68: 1 | I68: 6
A69: Nyugat-Dunántúl | B69: 2003 | C69: 1 | D69: 1 | E69: 1 | F69: 1 | G69: 1 | H69: 1 | I69: 6
A70: Nyugat-Dunántúl | B70: 2004 | C70: 1 | D70: 1 | E70: 1 | F70: 1 | G70: 1 | H70: 1 | I70: 6
A71: Nyugat-Dunántúl | B71: 2005 | C71: 1 | D71: 1 | E71: 1 | F71: 1 | G71: 1 | H71: 1 | I71: 6
A72: Nyugat-Dunántúl | B72: 2006 | C72: 1 | D72: 1 | E72: 1 | F72: 1 | G72: 1 | H72: 1 | I72: 6
A73: Nyugat-Dunántúl | B73: 2007 | C73: 1 | D73: 1 | E73: 1 | F73: 1 | G73: 1 | H73: 1 | I73: 6
A74: Nyugat-Dunántúl | B74: 2008 | C74: 1 | D74: 1 | E74: 1 | F74: 1 | G74: 1 | H74: 1 | I74: 6
A75: Nyugat-Dunántúl | B75: 2009 | C75: 1 | D75: 1 | E75: 1 | F75: 1 | G75: 1 | H75: 1 | I75: 6
A76: Végösszeg | C76: 70 | D76: 70 | E76: 70 | F76: 70 | G76: 70 | H76: 70 | I76: 420

Sheet OAM_ertek
U2: direkt | V2: irány | W2: 0 | X2: 0 | Y2: 0 | Z2: 0 | AA2: 0 | AB2: 0 | AC2: nincs | AF2: inverz | AG2: irány | AH2: 0 | AI2: 0 | AJ2: 0 | AK2: 0 | AL2: 0 | AM2: 0 | AN2: nincs
A3: Összeg / Érték | C3: Mutatószám | D3: Mértékegység | L3: =C3 -> Mutatószám | M3: =D3 -> Mértékegység | W3: =L3 -> Mutatószám | X3: =M3 -> Mértékegység | AH3: =W3 -> Mutatószám | AI3: =X3 -> Mértékegység
C4: burgonya | D4: Búza *összesen*na.*na. | E4: kukorica | F4: napraforgó | G4: őszi árpa | H4: Rozs *összesen*na.*na. | L4: burgonya | M4: Búza *összesen*na.*na. | N4: =E4 -> kukorica | O4: =F4 -> napraforgó | P4: =G4 -> őszi árpa | Q4: =H4 -> Rozs *összesen*na.*na. | W4: burgonya | X4: Búza *összesen*na.*na. | Y4: =N4 -> kukorica | Z4: =O4 -> napraforgó | AA4: =P4 -> őszi árpa | AB4: =Q4 -> Rozs *összesen*na.*na. | AH4: burgonya | AI4: Búza *összesen*na.*na. | AJ4: =Y4 -> kukorica | AK4: =Z4 -> napraforgó | AL4: =AA4 -> őszi árpa | AM4: =AB4 -> Rozs *összesen*na.*na.
A5: Régió | B5: Év | C5: t/ha | D5: t/ha | E5: t/ha | F5: t/ha | G5: t/ha | H5: t/ha | J5: =A5 -> Régió | K5: =B5 -> Év | L5: =C5 -> t/ha | M5: t/ha | N5: t/ha | O5: t/ha | P5: t/ha | Q5: t/ha | R5: Y0 | U5: =J5 -> Régió | V5: =K5 -> Év | W5: t/ha | X5: t/ha | Y5: t/ha | Z5: t/ha | AA5: t/ha | AB5: t/ha | AC5: =R5 -> Y0 | AF5: =U5 -> Régió | AG5: =V5 -> Év | AH5: t/ha | AI5: t/ha | AJ5: t/ha | AK5: t/ha | AL5: t/ha | AM5: t/ha | AN5: =AC5 -> Y0
A6: Dél-Alföld | B6: 2000 | C6: 18.69 | D6: 4.02 | E6: 4.46 | F6: 1.44 | G6: 2.95 | H6: 1.38 | J6: =A6 -> Dél-Alföld | K6: =B6 -> 2000 | L6: =C6 -> 18.69 | M6: 4.02 | N6: 4.46 | O6: 1.44 | P6: 2.95 | Q6: 1.38 | R6: 1000000 | U6: Dél-Alföld | V6: 2000 | W6: =RANK(L6,L$6:L$75,W$2) -> 48 | X6: =RANK(M6,M$6:M$75,X$2) -> 39 | Y6: 53 | Z6: 67 | AA6: 55 | AB6: 61 | AC6: 1000000 | AF6: Dél-Alföld | AG6: 2000 | AH6: =RANK(W6,W$6:W$75,AH$2) -> 23 | AI6: =RANK(X6,X$6:X$75,AI$2) -> 31 | AJ6: =RANK(Y6,Y$6:Y$75,AJ$2) -> 18 | AK6: =RANK(Z6,Z$6:Z$75,AK$2) -> 3 | AL6: =RANK(AA6,AA$6:AA$75,AL$2) -> 16 | AM6: =RANK(AB6,AB$6:AB$75,AM$2) -> 10 | AN6: 1000000
A7: Dél-Alföld | B7: 2001 | C7: 20.82 | D7: 4.45 | E7: 7.67 | F7: 1.98 | G7: 4.05 | H7: 2.14 | J7: =A7 -> Dél-Alföld | K7: =B7 -> 2001 | L7: =C7 -> 20.82 | M7: 4.45 | N7: 7.67 | O7: 1.98 | P7: 4.05 | Q7: 2.14 | R7: 1000000 | U7: Dél-Alföld | V7: 2001 | W7: =RANK(L7,L$6:L$75,W$2) -> 40 | X7: 26 | Y7: 16 | Z7: 50 | AA7: 27 | AB7: 47 | AC7: 1000000 | AF7: Dél-Alföld | AG7: 2001 | AH7: =RANK(W7,W$6:W$75,AH$2) -> 31 | AI7: 44 | AJ7: 55 | AK7: 21 | AL7: 43 | AM7: 24 | AN7: 1000000
A8: Dél-Alföld | B8: 2002 | C8: 19.78 | D8: 3.66 | E8: 5.46 | F8: 2.04 | G8: 3.56 | H8: 2.28 | J8: Dél-Alföld | K8: 2002 | L8: 19.78 | M8: 3.66 | N8: 5.46 | O8: 2.04 | P8: 3.56 | Q8: 2.28 | R8: 1000000 | U8: Dél-Alföld | V8: 2002 | W8: 45 | X8: 50 | Y8: 42 | Z8: 47 | AA8: 42 | AB8: 43 | AC8: 1000000 | AF8: Dél-Alföld | AG8: 2002 | AH8: 26 | AI8: 21 | AJ8: 29 | AK8: 24 | AL8: 28 | AM8: 28 | AN8: 1000000
A9: Dél-Alföld | B9: 2003 | C9: 19.17 | D9: 2.87 | E9: 3.4 | F9: 1.96 | G9: 2.51 | H9: 0.61 | J9: Dél-Alföld | K9: 2003 | L9: 19.17 | M9: 2.87 | N9: 3.4 | O9: 1.96 | P9: 2.51 | Q9: 0.61 | R9: 1000000 | U9: Dél-Alföld | V9: 2003 | W9: 46 | X9: 65 | Y9: 66 | Z9: 53 | AA9: 59 | AB9: 69 | AC9: 1000000 | AF9: Dél-Alföld | AG9: 2003 | AH9: 25 | AI9: 6 | AJ9: 5 | AK9: 18 | AL9: 12 | AM9: 2 | AN9: 1000000
A10: Dél-Alföld | B10: 2004 | C10: 24.81 | D10: 5.79 | E10: 7.46 | F10: 2.58 | G10: 4.41 | H10: 2.73 | J10: Dél-Alföld | K10: 2004 | L10: 24.81 | M10: 5.79 | N10: 7.46 | O10: 2.58 | P10: 4.41 | Q10: 2.73 | R10: 1000000 | U10: Dél-Alföld | V10: 2004 | W10: 22 | X10: 1 | Y10: 19 | Z10: 10 | AA10: 10 | AB10: 28 | AC10: 1000000 | AF10: Dél-Alföld | AG10: 2004 | AH10: 49 | AI10: 70 | AJ10: 51 | AK10: 61 | AL10: 60 | AM10: 42 | AN10: 1000000
A11: Dél-Alföld | B11: 2005 | C11: 21.64 | D11: 4.53 | E11: 7.87 | F11: 2.05 | G11: 3.91 | H11: 3.24 | J11: Dél-Alföld | K11: 2005 | L11: 21.64 | M11: 4.53 | N11: 7.87 | O11: 2.05 | P11: 3.91 | Q11: 3.24 | R11: 1000000 | U11: Dél-Alföld | V11: 2005 | W11: 35 | X11: 21 | Y11: 11 | Z11: 43 | AA11: 34 | AB11: 16 | AC11: 1000000 | AF11: Dél-Alföld | AG11: 2005 | AH11: 36 | AI11: 50 | AJ11: 59 | AK11: 25 | AL11: 36 | AM11: 55 | AN11: 1000000
A12: Dél-Alföld | B12: 2006 | C12: 26.22 | D12: 4.24 | E12: 7.36 | F12: 2.12 | G12: 3.92 | H12: 1.71 | J12: Dél-Alföld | K12: 2006 | L12: 26.22 | M12: 4.24 | N12: 7.36 | O12: 2.12 | P12: 3.92 | Q12: 1.71 | R12: 1000000 | U12: Dél-Alföld | V12: 2006 | W12: 17 | X12: 32 | Y12: 21 | Z12: 40 | AA12: 32 | AB12: 56 | AC12: 1000000 | AF12: Dél-Alföld | AG12: 2006 | AH12: 54 | AI12: 39 | AJ12: 50 | AK12: 31 | AL12: 38 | AM12: 15 | AN12: 1000000
A13: Dél-Alföld | B13: 2007 | C13: 23.69 | D13: 3.76 | E13: 4.35 | F13: 2.31 | G13: 3.76 | H13: 1.18 | J13: Dél-Alföld | K13: 2007 | L13: 23.69 | M13: 3.76 | N13: 4.35 | O13: 2.31 | P13: 3.76 | Q13: 1.18 | R13: 1000000 | U13: Dél-Alföld | V13: 2007 | W13: 25 | X13: 46 | Y13: 56 | Z13: 29 | AA13: 40 | AB13: 64 | AC13: 1000000 | AF13: Dél-Alföld | AG13: 2007 | AH13: 46 | AI13: 25 | AJ13: 15 | AK13: 42 | AL13: 31 | AM13: 7 | AN13: 1000000
A14: Dél-Alföld | B14: 2008 | C14: 28.1 | D14: 5.18 | E14: 7.32 | F14: 2.72 | G14: 5.31 | H14: 2.36 | J14: Dél-Alföld | K14: 2008 | L14: 28.1 | M14: 5.18 | N14: 7.32 | O14: 2.72 | P14: 5.31 | Q14: 2.36 | R14: 1000000 | U14: Dél-Alföld | V14: 2008 | W14: 13 | X14: 5 | Y14: 22 | Z14: 8 | AA14: 1 | AB14: 39 | AC14: 1000000 | AF14: Dél-Alföld | AG14: 2008 | AH14: 58 | AI14: 66 | AJ14: 49 | AK14: 63 | AL14: 70 | AM14: 32 | AN14: 1000000
A15: Dél-Alföld | B15: 2009 | C15: 32.47 | D15: 3.71 | E15: 5.97 | F15: 2.43 | G15: 3.45 | H15: 1.26 | J15: Dél-Alföld | K15: 2009 | L15: 32.47 | M15: 3.71 | N15: 5.97 | O15: 2.43 | P15: 3.45 | Q15: 1.26 | R15: 1000000 | U15: Dél-Alföld | V15: 2009 | W15: 5 | X15: 47 | Y15: 39 | Z15: 18 | AA15: 45 | AB15: 63 | AC15: 1000000 | AF15: Dél-Alföld | AG15: 2009 | AH15: 66 | AI15: 24 | AJ15: 32 | AK15: 53 | AL15: 26 | AM15: 8 | AN15: 1000000
A16: Dél-Dunántúl | B16: 2000 | C16: 8.52 | D16: 4.1 | E16: 4.76 | F16: 2.11 | G16: 3.63 | H16: 0 | J16: Dél-Dunántúl | K16: 2000 | L16: 8.52 | M16: 4.1 | N16: 4.76 | O16: 2.11 | P16: 3.63 | Q16: =H103 -> 3.872 | R16: 1000000 | U16: Dél-Dunántúl | V16: 2000 | W16: 68 | X16: 36 | Y16: 50 | Z16: 41 | AA16: 41 | AB16: 5 | AC16: 1000000 | AF16: Dél-Dunántúl | AG16: 2000 | AH16: 3 | AI16: 35 | AJ16: 21 | AK16: 30 | AL16: 30 | AM16: 62 | AN16: 1000000
A17: Dél-Dunántúl | B17: 2001 | C17: 14.23 | D17: 4.77 | E17: 7.28 | F17: 2.05 | G17: 4.56 | H17: 0 | J17: Dél-Dunántúl | K17: 2001 | L17: 14.23 | M17: 4.77 | N17: 7.28 | O17: 2.05 | P17: 4.56 | Q17: =Q16 -> 3.872 | R17: 1000000 | U17: Dél-Dunántúl | V17: 2001 | W17: 60 | X17: 13 | Y17: 24 | Z17: 43 | AA17: 7 | AB17: 5 | AC17: 1000000 | AF17: Dél-Dunántúl | AG17: 2001 | AH17: 11 | AI17: 58 | AJ17: 47 | AK17: 25 | AL17: 64 | AM17: 62 | AN17: 1000000
A18: Dél-Dunántúl | B18: 2002 | C18: 21.8 | D18: 4.73 | E18: 6.61 | F18: 2.39 | G18: 4.11 | H18: 0 | J18: Dél-Dunántúl | K18: 2002 | L18: 21.8 | M18: 4.73 | N18: 6.61 | O18: 2.39 | P18: 4.11 | Q18: =Q17 -> 3.872 | R18: 1000000 | U18: Dél-Dunántúl | V18: 2002 | W18: 31 | X18: 15 | Y18: 31 | Z18: 25 | AA18: 25 | AB18: 5 | AC18: 1000000 | AF18: Dél-Dunántúl | AG18: 2002 | AH18: 40 | AI18: 56 | AJ18: 40 | AK18: 46 | AL18: 46 | AM18: 62 | AN18: 1000000
A19: Dél-Dunántúl | B19: 2003 | C19: 13.7 | D19: 3.49 | E19: 4.42 | F19: 2.42 | G19: 3.19 | H19: 1.85 | J19: Dél-Dunántúl | K19: 2003 | L19: 13.7 | M19: 3.49 | N19: 4.42 | O19: 2.42 | P19: 3.19 | Q19: 1.85 | R19: 1000000 | U19: Dél-Dunántúl | V19: 2003 | W19: 62 | X19: 53 | Y19: 55 | Z19: 19 | AA19: 49 | AB19: 53 | AC19: 1000000 | AF19: Dél-Dunántúl | AG19: 2003 | AH19: 9 | AI19: 18 | AJ19: 16 | AK19: 51 | AL19: 22 | AM19: 17 | AN19: 1000000
A20: Dél-Dunántúl | B20: 2004 | C20: 34.22 | D20: 5.15 | E20: 8.11 | F20: 3.04 | G20: 4.7 | H20: 4.8 | J20: Dél-Dunántúl | K20: 2004 | L20: 34.22 | M20: 5.15 | N20: 8.11 | O20: 3.04 | P20: 4.7 | Q20: 4.8 | R20: 1000000 | U20: Dél-Dunántúl | V20: 2004 | W20: 2 | X20: 6 | Y20: 8 | Z20: 1 | AA20: 5 | AB20: 2 | AC20: 1000000 | AF20: Dél-Dunántúl | AG20: 2004 | AH20: 69 | AI20: 64 | AJ20: 63 | AK20: 70 | AL20: 66 | AM20: 69 | AN20: 1000000
A21: Dél-Dunántúl | B21: 2005 | C21: 27.14 | D21: 4.62 | E21: 8.36 | F21: 2.48 | G21: 4.25 | H21: 4.88 | J21: Dél-Dunántúl | K21: 2005 | L21: 27.14 | M21: 4.62 | N21: 8.36 | O21: 2.48 | P21: 4.25 | Q21: 4.88 | R21: 1000000 | U21: Dél-Dunántúl | V21: 2005 | W21: 14 | X21: 18 | Y21: 5 | Z21: 13 | AA21: 15 | AB21: 1 | AC21: 1000000 | AF21: Dél-Dunántúl | AG21: 2005 | AH21: 57 | AI21: 53 | AJ21: 66 | AK21: 57 | AL21: 56 | AM21: 70 | AN21: 1000000
A22: Dél-Dunántúl | B22: 2006 | C22: 23.31 | D22: 4.56 | E22: 7.87 | F22: 2.41 | G22: 4.45 | H22: 4.03 | J22: Dél-Dunántúl | K22: 2006 | L22: 23.31 | M22: 4.56 | N22: 7.87 | O22: 2.41 | P22: 4.45 | Q22: 4.03 | R22: 1000000 | U22: Dél-Dunántúl | V22: 2006 | W22: 27 | X22: =RANK(M22,M$6:M$75,X$2) -> 20 | Y22: =RANK(N22,N$6:N$75,Y$2) -> 11 | Z22: =RANK(O22,O$6:O$75,Z$2) -> 21 | AA22: =RANK(P22,P$6:P$75,AA$2) -> 8 | AB22: =RANK(Q22,Q$6:Q$75,AB$2) -> 3 | AC22: 1000000 | AF22: Dél-Dunántúl | AG22: 2006 | AH22: 44 | AI22: 51 | AJ22: 59 | AK22: 49 | AL22: 63 | AM22: 68 | AN22: 1000000
A23: Dél-Dunántúl | B23: 2007 | C23: 14.43 | D23: 3.82 | E23: 3.24 | F23: 2.46 | G23: 4.15 | H23: 0 | J23: Dél-Dunántúl | K23: 2007 | L23: 14.43 | M23: 3.82 | N23: 3.24 | O23: 2.46 | P23: 4.15 | Q23: =Q18 -> 3.872 | R23: 1000000 | U23: Dél-Dunántúl | V23: 2007 | W23: 59 | X23: 45 | Y23: 68 | Z23: 15 | AA23: 23 | AB23: 5 | AC23: 1000000 | AF23: Dél-Dunántúl | AG23: 2007 | AH23: 12 | AI23: 26 | AJ23: 3 | AK23: 55 | AL23: 48 | AM23: 62 | AN23: 1000000
A24: Dél-Dunántúl | B24: 2008 | C24: 16.43 | D24: 5.58 | E24: 8.23 | F24: 3.02 | G24: 4.13 | H24: 0 | J24: Dél-Dunántúl | K24: 2008 | L24: 16.43 | M24: 5.58 | N24: 8.23 | O24: 3.02 | P24: 4.13 | Q24: =Q23 -> 3.872 | R24: 1000000 | U24: Dél-Dunántúl | V24: 2008 | W24: 53 | X24: 2 | Y24: 6 | Z24: 2 | AA24: 24 | AB24: 5 | AC24: 1000000 | AF24: Dél-Dunántúl | AG24: 2008 | AH24: 18 | AI24: 69 | AJ24: 65 | AK24: 69 | AL24: 47 | AM24: 62 | AN24: 1000000
A25: Dél-Dunántúl | B25: 2009 | C25: 18.59 | D25: 4.98 | E25: 7.46 | F25: 2.89 | G25: 4.59 | H25: 3.8 | J25: Dél-Dunántúl | K25: 2009 | L25: 18.59 | M25: 4.98 | N25: 7.46 | O25: 2.89 | P25: 4.59 | Q25: 3.8 | R25: 1000000 | U25: Dél-Dunántúl | V25: 2009 | W25: 49 | X25: 10 | Y25: 19 | Z25: 5 | AA25: 6 | AB25: 10 | AC25: 1000000 | AF25: Dél-Dunántúl | AG25: 2009 | AH25: 22 | AI25: 61 | AJ25: 51 | AK25: 66 | AL25: 65 | AM25: 61 | AN25: 1000000
A26: Észak-Alföld | B26: 2000 | C26: 20.75 | D26: 3.07 | E26: 3.83 | F26: 1.44 | G26: 2.93 | H26: 1 | J26: Észak-Alföld | K26: 2000 | L26: 20.75 | M26: 3.07 | N26: 3.83 | O26: 1.44 | P26: 2.93 | Q26: 1 | R26: 1000000 | U26: Észak-Alföld | V26: 2000 | W26: 41 | X26: 58 | Y26: 62 | Z26: 67 | AA26: 56 | AB26: 67 | AC26: 1000000 | AF26: Észak-Alföld | AG26: 2000 | AH26: 30 | AI26: 13 | AJ26: 9 | AK26: 3 | AL26: 14 | AM26: 4 | AN26: 1000000
A27: Észak-Alföld | B27: 2001 | C27: 24.79 | D27: 4.01 | E27: 7.13 | F27: 1.56 | G27: 4.21 | H27: 1.85 | J27: Észak-Alföld | K27: 2001 | L27: 24.79 | M27: 4.01 | N27: 7.13 | O27: 1.56 | P27: 4.21 | Q27: 1.85 | R27: 1000000 | U27: Észak-Alföld | V27: 2001 | W27: 23 | X27: 41 | Y27: 25 | Z27: 64 | AA27: 17 | AB27: 53 | AC27: 1000000 | AF27: Észak-Alföld | AG27: 2001 | AH27: 48 | AI27: 29 | AJ27: 45 | AK27: 7 | AL27: 54 | AM27: 17 | AN27: 1000000
A28: Észak-Alföld | B28: 2002 | C28: 20.84 | D28: 2.98 | E28: 4.93 | F28: 1.87 | G28: 1.64 | H28: 1.6 | J28: Észak-Alföld | K28: 2002 | L28: 20.84 | M28: 2.98 | N28: 4.93 | O28: 1.87 | P28: 1.64 | Q28: 1.6 | R28: 1000000 | U28: Észak-Alföld | V28: 2002 | W28: 39 | X28: 62 | Y28: 49 | Z28: 57 | AA28: 69 | AB28: 57 | AC28: 1000000 | AF28: Észak-Alföld | AG28: 2002 | AH28: 32 | AI28: 9 | AJ28: 22 | AK28: 14 | AL28: 2 | AM28: 14 | AN28: 1000000
A29: Észak-Alföld | B29: 2003 | C29: 22.43 | D29: 2.39 | E29: 5.08 | F29: 1.86 | G29: 1.74 | H29: 2.02 | J29: Észak-Alföld | K29: 2003 | L29: 22.43 | M29: 2.39 | N29: 5.08 | O29: 1.86 | P29: 1.74 | Q29: 2.02 | R29: 1000000 | U29: Észak-Alföld | V29: 2003 | W29: 30 | X29: 68 | Y29: 47 | Z29: 58 | AA29: 68 | AB29: 49 | AC29: 1000000 | AF29: Észak-Alföld | AG29: 2003 | AH29: 41 | AI29: 3 | AJ29: 24 | AK29: 13 | AL29: 3 | AM29: 22 | AN29: 1000000
A30: Észak-Alföld | B30: 2004 | C30: 20.47 | D30: 5.46 | E30: 8.02 | F30: 2.17 | G30: 5.04 | H30: 3.06 | J30: Észak-Alföld | K30: 2004 | L30: 20.47 | M30: 5.46 | N30: 8.02 | O30: 2.17 | P30: 5.04 | Q30: 3.06 | R30: 1000000 | U30: Észak-Alföld | V30: 2004 | W30: 42 | X30: 3 | Y30: 9 | Z30: 36 | AA30: 2 | AB30: 19 | AC30: 1000000 | AF30: Észak-Alföld | AG30: 2004 | AH30: 29 | AI30: 68 | AJ30: 62 | AK30: 35 | AL30: 69 | AM30: 52 | AN30: 1000000
A31: Észak-Alföld | B31: 2005 | C31: 31.11 | D31: 4.12 | E31: 7.8 | F31: 2 | G31: 4.09 | H31: 0.88 | J31: Észak-Alföld | K31: 2005 | L31: 31.11 | M31: 4.12 | N31: 7.8 | O31: 2 | P31: 4.09 | Q31: 0.88 | R31: 1000000 | U31: Észak-Alföld | V31: 2005 | W31: 7 | X31: 34 | Y31: 13 | Z31: 49 | AA31: 26 | AB31: 68 | AC31: 1000000 | AF31: Észak-Alföld | AG31: 2005 | AH31: 64 | AI31: 37 | AJ31: 57 | AK31: 22 | AL31: 45 | AM31: 3 | AN31: 1000000
A32: Észak-Alföld | B32: 2006 | C32: 28.96 | D32: 3.17 | E32: 6.59 | F32: 1.83 | G32: 2.04 | H32: 1.87 | J32: Észak-Alföld | K32: 2006 | L32: 28.96 | M32: 3.17 | N32: 6.59 | O32: 1.83 | P32: 2.04 | Q32: 1.87 | R32: 1000000 | U32: Észak-Alföld | V32: 2006 | W32: 11 | X32: 56 | Y32: 32 | Z32: 59 | AA32: 66 | AB32: 52 | AC32: 1000000 | AF32: Észak-Alföld | AG32: 2006 | AH32: 60 | AI32: 15 | AJ32: 39 | AK32: 12 | AL32: 5 | AM32: 19 | AN32: 1000000
A33: Észak-Alföld | B33: 2007 | C33: 21.26 | D33: 3.02 | E33: 4.7 | F33: 2.14 | G33: 2.96 | H33: 1.05 | J33: Észak-Alföld | K33: 2007 | L33: 21.26 | M33: 3.02 | N33: 4.7 | O33: 2.14 | P33: 2.96 | Q33: 1.05 | R33: 1000000 | U33: Észak-Alföld | V33: 2007 | W33: 37 | X33: 60 | Y33: 52 | Z33: 37 | AA33: 54 | AB33: 66 | AC33: 1000000 | AF33: Észak-Alföld | AG33: 2007 | AH33: 34 | AI33: 11 | AJ33: 19 | AK33: 33 | AL33: 17 | AM33: 5 | AN33: 1000000
A34: Észak-Alföld | B34: 2008 | C34: 20.18 | D34: 4.75 | E34: 8.65 | F34: 2.92 | G34: 4.17 | H34: 1.5 | J34: Észak-Alföld | K34: 2008 | L34: 20.18 | M34: 4.75 | N34: 8.65 | O34: 2.92 | P34: 4.17 | Q34: 1.5 | R34: 1000000 | U34: Észak-Alföld | V34: 2008 | W34: 44 | X34: 14 | Y34: 3 | Z34: 4 | AA34: 19 | AB34: 59 | AC34: 1000000 | AF34: Észak-Alföld | AG34: 2008 | AH34: 27 | AI34: 57 | AJ34: 68 | AK34: 67 | AL34: 51 | AM34: 11 | AN34: 1000000
A35: Észak-Alföld | B35: 2009 | C35: 33.61 | D35: 3.68 | E35: 6.46 | F35: 2.28 | G35: 2.86 | H35: 2.16 | J35: Észak-Alföld | K35: 2009 | L35: 33.61 | M35: 3.68 | N35: 6.46 | O35: 2.28 | P35: 2.86 | Q35: 2.16 | R35: 1000000 | U35: Észak-Alföld | V35: 2009 | W35: 3 | X35: 49 | Y35: 35 | Z35: 31 | AA35: 58 | AB35: 46 | AC35: 1000000 | AF35: Észak-Alföld | AG35: 2009 | AH35: 68 | AI35: 22 | AJ35: 36 | AK35: 40 | AL35: 13 | AM35: 25 | AN35: 1000000
A36: Észak-Magyarország | B36: 2000 | C36: 15.84 | D36: 2.59 | E36: 2.63 | F36: 1.12 | G36: 3.96 | H36: 0 | J36: Észak-Magyarország | K36: 2000 | L36: 15.84 | M36: 2.59 | N36: 2.63 | O36: 1.12 | P36: 3.96 | Q36: =H105 -> 2.912857143 | R36: 1000000 | U36: Észak-Magyarország | V36: 2000 | W36: 56 | X36: 66 | Y36: 70 | Z36: 70 | AA36: 30 | AB36: 22 | AC36: 1000000 | AF36: Észak-Magyarország | AG36: 2000 | AH36: 15 | AI36: 5 | AJ36: 1 | AK36: 1 | AL36: 41 | AM36: 46 | AN36: 1000000
A37: Észak-Magyarország | B37: 2001 | C37: 18.08 | D37: 4.01 | E37: 5.4 | F37: 1.77 | G37: 3.32 | H37: 0 | J37: Észak-Magyarország | K37: 2001 | L37: 18.08 | M37: 4.01 | N37: 5.4 | O37: 1.77 | P37: 3.32 | Q37: =Q36 -> 2.912857143 | R37: 1000000 | U37: Észak-Magyarország | V37: 2001 | W37: 51 | X37: 41 | Y37: 43 | Z37: 61 | AA37: 48 | AB37: 22 | AC37: 1000000 | AF37: Észak-Magyarország | AG37: 2001 | AH37: 20 | AI37: 29 | AJ37: 28 | AK37: 10 | AL37: 23 | AM37: 46 | AN37: 1000000
A38: Észak-Magyarország | B38: 2002 | C38: 21.24 | D38: 2.91 | E38: 5.27 | F38: 1.37 | G38: 2.38 | H38: 0 | J38: Észak-Magyarország | K38: 2002 | L38: 21.24 | M38: 2.91 | N38: 5.27 | O38: 1.37 | P38: 2.38 | Q38: =Q36 -> 2.912857143 | R38: 1000000 | U38: Észak-Magyarország | V38: 2002 | W38: 38 | X38: 64 | Y38: 46 | Z38: 69 | AA38: 62 | AB38: 22 | AC38: 1000000 | AF38: Észak-Magyarország | AG38: 2002 | AH38: 33 | AI38: 7 | AJ38: 25 | AK38: 2 | AL38: 9 | AM38: 46 | AN38: 1000000
A39: Észak-Magyarország | B39: 2003 | C39: 10.84 | D39: 1.88 | E39: 4.02 | F39: 1.51 | G39: 1.23 | H39: 2 | J39: Észak-Magyarország | K39: 2003 | L39: 10.84 | M39: 1.88 | N39: 4.02 | O39: 1.51 | P39: 1.23 | Q39: 2 | R39: 1000000 | U39: Észak-Magyarország | V39: 2003 | W39: 66 | X39: 69 | Y39: 59 | Z39: 66 | AA39: 70 | AB39: 50 | AC39: 1000000 | AF39: Észak-Magyarország | AG39: 2003 | AH39: 5 | AI39: 2 | AJ39: 12 | AK39: 5 | AL39: 1 | AM39: 21 | AN39: 1000000
A40: Észak-Magyarország | B40: 2004 | C40: 29.34 | D40: 4.47 | E40: 5.67 | F40: 2.19 | G40: 3.95 | H40: 3.5 | J40: Észak-Magyarország | K40: 2004 | L40: 29.34 | M40: 4.47 | N40: 5.67 | O40: 2.19 | P40: 3.95 | Q40: 3.5 | R40: 1000000 | U40: Észak-Magyarország | V40: 2004 | W40: 10 | X40: 25 | Y40: 40 | Z40: 33 | AA40: 31 | AB40: 13 | AC40: 1000000 | AF40: Észak-Magyarország | AG40: 2004 | AH40: 61 | AI40: 46 | AJ40: 30 | AK40: 38 | AL40: 40 | AM40: 58 | AN40: 1000000
A41: Észak-Magyarország | B41: 2005 | C41: 24.99 | D41: 4.44 | E41: 6.47 | F41: 2.25 | G41: 4.16 | H41: 3 | J41: Észak-Magyarország | K41: 2005 | L41: 24.99 | M41: 4.44 | N41: 6.47 | O41: 2.25 | P41: 4.16 | Q41: 3 | R41: 1000000 | U41: Észak-Magyarország | V41: 2005 | W41: 21 | X41: 28 | Y41: 34 | Z41: 32 | AA41: 21 | AB41: 21 | AC41: 1000000 | AF41: Észak-Magyarország | AG41: 2005 | AH41: 50 | AI41: 43 | AJ41: 37 | AK41: 39 | AL41: 49 | AM41: 50 | AN41: 1000000
A42: Észak-Magyarország | B42: 2006 | C42: 22.5 | D42: 3.84 | E42: 5.67 | F42: 1.97 | G42: 3.84 | H42: 2.6 | J42: Észak-Magyarország | K42: 2006 | L42: 22.5 | M42: 3.84 | N42: 5.67 | O42: 1.97 | P42: 3.84 | Q42: 2.6 | R42: 1000000 | U42: Észak-Magyarország | V42: 2006 | W42: 29 | X42: 44 | Y42: 40 | Z42: 51 | AA42: 37 | AB42: 32 | AC42: 1000000 | AF42: Észak-Magyarország | AG42: 2006 | AH42: 42 | AI42: 27 | AJ42: 30 | AK42: 19 | AL42: 34 | AM42: 39 | AN42: 1000000
A43: Észak-Magyarország | B43: 2007 | C43: 0 | D43: 3.15 | E43: 3.8 | F43: 1.78 | G43: 3.18 | H43: 2.3 | J43: Észak-Magyarország | K43: 2007 | L43: =C105 -> 21.72875 | M43: 3.15 | N43: 3.8 | O43: 1.78 | P43: 3.18 | Q43: 2.3 | R43: 1000000 | U43: Észak-Magyarország | V43: 2007 | W43: 32 | X43: 57 | Y43: 63 | Z43: 60 | AA43: 50 | AB43: 41 | AC43: 1000000 | AF43: Észak-Magyarország | AG43: 2007 | AH43: 38 | AI43: 14 | AJ43: 8 | AK43: 11 | AL43: 21 | AM43: 30 | AN43: 1000000
A44: Észak-Magyarország | B44: 2008 | C44: 31 | D44: 4.48 | E44: 6.04 | F44: 2.45 | G44: 4.35 | H44: 3.59 | J44: Észak-Magyarország | K44: 2008 | L44: 31 | M44: 4.48 | N44: 6.04 | O44: 2.45 | P44: 4.35 | Q44: 3.59 | R44: 1000000 | U44: Észak-Magyarország | V44: 2008 | W44: 8 | X44: 23 | Y44: 38 | Z44: 17 | AA44: 12 | AB44: 11 | AC44: 1000000 | AF44: Észak-Magyarország | AG44: 2008 | AH44: 63 | AI44: 47 | AJ44: 33 | AK44: 54 | AL44: 59 | AM44: 60 | AN44: 1000000
A45: Észak-Magyarország | B45: 2009 | C45: 0 | D45: 3.65 | E45: 5.31 | F45: 2.18 | G45: 3.56 | H45: 3.4 | J45: Észak-Magyarország | K45: 2009 | L45: =L43 -> 21.72875 | M45: 3.65 | N45: 5.31 | O45: 2.18 | P45: 3.56 | Q45: 3.4 | R45: 1000000 | U45: Észak-Magyarország | V45: 2009 | W45: 32 | X45: 51 | Y45: 44 | Z45: 34 | AA45: 42 | AB45: 14 | AC45: 1000000 | AF45: Észak-Magyarország | AG45: 2009 | AH45: 38 | AI45: 20 | AJ45: 27 | AK45: 36 | AL45: 28 | AM45: 57 | AN45: 1000000
A46: Közép-Dunántúl | B46: 2000 | C46: 5.69 | D46: 4.03 | E46: 4.97 | F46: 2.05 | G46: 3.04 | H46: 0 | J46: Közép-Dunántúl | K46: 2000 | L46: 5.69 | M46: 4.03 | N46: 4.97 | O46: 2.05 | P46: 3.04 | Q46: =Q38 -> 2.912857143 | R46: 1000000 | U46: Közép-Dunántúl | V46: 2000 | W46: 69 | X46: 38 | Y46: 48 | Z46: 43 | AA46: 52 | AB46: 22 | AC46: 1000000 | AF46: Közép-Dunántúl | AG46: 2000 | AH46: 2 | AI46: 33 | AJ46: 23 | AK46: 25 | AL46: 19 | AM46: 46 | AN46: 1000000
A47: Közép-Dunántúl | B47: 2001 | C47: 8.67 | D47: 4.32 | E47: 7.03 | F47: 2.29 | G47: 3.92 | H47: 2.24 | J47: Közép-Dunántúl | K47: 2001 | L47: 8.67 | M47: 4.32 | N47: 7.03 | O47: 2.29 | P47: 3.92 | Q47: 2.24 | R47: 1000000 | U47: Közép-Dunántúl | V47: 2001 | W47: 67 | X47: 31 | Y47: 27 | Z47: 30 | AA47: 32 | AB47: 45 | AC47: 1000000 | AF47: Közép-Dunántúl | AG47: 2001 | AH47: 4 | AI47: 40 | AJ47: 44 | AK47: 41 | AL47: 38 | AM47: 26 | AN47: 1000000
A48: Közép-Dunántúl | B48: 2002 | C48: 18.44 | D48: 3.9 | E48: 6.63 | F48: 2.18 | G48: 2.15 | H48: 2.5 | J48: Közép-Dunántúl | K48: 2002 | L48: 18.44 | M48: 3.9 | N48: 6.63 | O48: 2.18 | P48: 2.15 | Q48: 2.5 | R48: 1000000 | U48: Közép-Dunántúl | V48: 2002 | W48: 50 | X48: 43 | Y48: 30 | Z48: 34 | AA48: 64 | AB48: 34 | AC48: 1000000 | AF48: Közép-Dunántúl | AG48: 2002 | AH48: 21 | AI48: 28 | AJ48: 41 | AK48: 36 | AL48: 7 | AM48: 37 | AN48: 1000000
A49: Közép-Dunántúl | B49: 2003 | C49: 11.01 | D49: 2.46 | E49: 3.89 | F49: 2.4 | G49: 2.4 | H49: 1.29 | J49: Közép-Dunántúl | K49: 2003 | L49: 11.01 | M49: 2.46 | N49: 3.89 | O49: 2.4 | P49: 2.4 | Q49: 1.29 | R49: 1000000 | U49: Közép-Dunántúl | V49: 2003 | W49: 65 | X49: 67 | Y49: 60 | Z49: 23 | AA49: 60 | AB49: 62 | AC49: 1000000 | AF49: Közép-Dunántúl | AG49: 2003 | AH49: 6 | AI49: 4 | AJ49: 11 | AK49: 47 | AL49: 10 | AM49: 9 | AN49: 1000000
A50: Közép-Dunántúl | B50: 2004 | C50: 20.31 | D50: 5.08 | E50: 7.3 | F50: 2.77 | G50: 4.43 | H50: 2.73 | J50: Közép-Dunántúl | K50: 2004 | L50: 20.31 | M50: 5.08 | N50: 7.3 | O50: 2.77 | P50: 4.43 | Q50: 2.73 | R50: 1000000 | U50: Közép-Dunántúl | V50: 2004 | W50: 43 | X50: 9 | Y50: 23 | Z50: 7 | AA50: 9 | AB50: 28 | AC50: 1000000 | AF50: Közép-Dunántúl | AG50: 2004 | AH50: 28 | AI50: 62 | AJ50: 48 | AK50: 64 | AL50: 62 | AM50: 42 | AN50: 1000000
A51: Közép-Dunántúl | B51: 2005 | C51: 14.14 | D51: 4.93 | E51: 8.98 | F51: 2.53 | G51: 4.29 | H51: 1.98 | J51: Közép-Dunántúl | K51: 2005 | L51: 14.14 | M51: 4.93 | N51: 8.98 | O51: 2.53 | P51: 4.29 | Q51: 1.98 | R51: 1000000 | U51: Közép-Dunántúl | V51: 2005 | W51: 61 | X51: 11 | Y51: 1 | Z51: 11 | AA51: 14 | AB51: 51 | AC51: 1000000 | AF51: Közép-Dunántúl | AG51: 2005 | AH51: 10 | AI51: 60 | AJ51: 70 | AK51: 60 | AL51: 57 | AM51: 20 | AN51: 1000000
A52: Közép-Dunántúl | B52: 2006 | C52: 15.32 | D52: 4.37 | E52: 7.58 | F52: 2.32 | G52: 3.91 | H52: 1.5 | J52: Közép-Dunántúl | K52: 2006 | L52: 15.32 | M52: 4.37 | N52: 7.58 | O52: 2.32 | P52: 3.91 | Q52: 1.5 | R52: 1000000 | U52: Közép-Dunántúl | V52: 2006 | W52: 57 | X52: 29 | Y52: 17 | Z52: 27 | AA52: 34 | AB52: 59 | AC52: 1000000 | AF52: Közép-Dunántúl | AG52: 2006 | AH52: 14 | AI52: 42 | AJ52: 54 | AK52: 43 | AL52: 36 | AM52: 11 | AN52: 1000000
A53: Közép-Dunántúl | B53: 2007 | C53: 18.71 | D53: 3.37 | E53: 3.7 | F53: 2.13 | G53: 3.8 | H53: 2.81 | J53: Közép-Dunántúl | K53: 2007 | L53: 18.71 | M53: 3.37 | N53: 3.7 | O53: 2.13 | P53: 3.8 | Q53: 2.81 | R53: 1000000 | U53: Közép-Dunántúl | V53: 2007 | W53: 47 | X53: 54 | Y53: 64 | Z53: 39 | AA53: 39 | AB53: 27 | AC53: 1000000 | AF53: Közép-Dunántúl | AG53: 2007 | AH53: 24 | AI53: 17 | AJ53: 7 | AK53: 32 | AL53: 32 | AM53: 44 | AN53: 1000000
A54: Közép-Dunántúl | B54: 2008 | C54: 3.86 | D54: 5.38 | E54: 8.73 | F54: 2.98 | G54: 4.99 | H54: 2.32 | J54: Közép-Dunántúl | K54: 2008 | L54: 3.86 | M54: 5.38 | N54: 8.73 | O54: 2.98 | P54: 4.99 | Q54: 2.32 | R54: 1000000 | U54: Közép-Dunántúl | V54: 2008 | W54: 70 | X54: 4 | Y54: 2 | Z54: 3 | AA54: 3 | AB54: 40 | AC54: 1000000 | AF54: Közép-Dunántúl | AG54: 2008 | AH54: 1 | AI54: 67 | AJ54: 69 | AK54: 68 | AL54: 68 | AM54: 31 | AN54: 1000000
A55: Közép-Dunántúl | B55: 2009 | C55: 25.6 | D55: 3.69 | E55: 7.5 | F55: 2.48 | G55: 3.15 | H55: 3.09 | J55: Közép-Dunántúl | K55: 2009 | L55: 25.6 | M55: 3.69 | N55: 7.5 | O55: 2.48 | P55: 3.15 | Q55: 3.09 | R55: 1000000 | U55: Közép-Dunántúl | V55: 2009 | W55: 19 | X55: 48 | Y55: 18 | Z55: 13 | AA55: 51 | AB55: 18 | AC55: 1000000 | AF55: Közép-Dunántúl | AG55: 2009 | AH55: 52 | AI55: 23 | AJ55: 53 | AK55: 57 | AL55: 20 | AM55: 53 | AN55: 1000000
A56: Közép-Magyarország | B56: 2000 | C56: 16 | D56: 3.51 | E56: 3.44 | F56: 1.53 | G56: 3.53 | H56: 2.06 | J56: Közép-Magyarország | K56: 2000 | L56: 16 | M56: 3.51 | N56: 3.44 | O56: 1.53 | P56: 3.53 | Q56: 2.06 | R56: 1000000 | U56: Közép-Magyarország | V56: 2000 | W56: 54 | X56: 52 | Y56: 65 | Z56: 65 | AA56: 44 | AB56: 48 | AC56: 1000000 | AF56: Közép-Magyarország | AG56: 2000 | AH56: 17 | AI56: 19 | AJ56: 6 | AK56: 6 | AL56: 27 | AM56: 23 | AN56: 1000000
A57: Közép-Magyarország | B57: 2001 | C57: 13.2 | D57: 4.36 | E57: 6.52 | F57: 2.34 | G57: 4.41 | H57: 2.45 | J57: Közép-Magyarország | K57: 2001 | L57: 13.2 | M57: 4.36 | N57: 6.52 | O57: 2.34 | P57: 4.41 | Q57: 2.45 | R57: 1000000 | U57: Közép-Magyarország | V57: 2001 | W57: 63 | X57: 30 | Y57: 33 | Z57: 26 | AA57: 10 | AB57: 37 | AC57: 1000000 | AF57: Közép-Magyarország | AG57: 2001 | AH57: 8 | AI57: 41 | AJ57: 38 | AK57: 45 | AL57: 60 | AM57: 33 | AN57: 1000000
A58: Közép-Magyarország | B58: 2002 | C58: 17.59 | D58: 2.92 | E58: 3.88 | F58: 1.94 | G58: 2.22 | H58: 1.75 | J58: Közép-Magyarország | K58: 2002 | L58: 17.59 | M58: 2.92 | N58: 3.88 | O58: 1.94 | P58: 2.22 | Q58: 1.75 | R58: 1000000 | U58: Közép-Magyarország | V58: 2002 | W58: 52 | X58: 63 | Y58: 61 | Z58: 56 | AA58: 63 | AB58: 55 | AC58: 1000000 | AF58: Közép-Magyarország | AG58: 2002 | AH58: 19 | AI58: 8 | AJ58: 10 | AK58: 15 | AL58: 8 | AM58: 16 | AN58: 1000000
A59: Közép-Magyarország | B59: 2003 | C59: 21.44 | D59: 1.56 | E59: 2.81 | F59: 1.63 | G59: 1.83 | H59: 0.51 | J59: Közép-Magyarország | K59: 2003 | L59: 21.44 | M59: 1.56 | N59: 2.81 | O59: 1.63 | P59: 1.83 | Q59: 0.51 | R59: 1000000 | U59: Közép-Magyarország | V59: 2003 | W59: 36 | X59: 70 | Y59: 69 | Z59: 63 | AA59: 67 | AB59: 70 | AC59: 1000000 | AF59: Közép-Magyarország | AG59: 2003 | AH59: 35 | AI59: 1 | AJ59: 2 | AK59: 8 | AL59: 4 | AM59: 1 | AN59: 1000000
A60: Közép-Magyarország | B60: 2004 | C60: 35.84 | D60: 5.12 | E60: 6.16 | F60: 2.32 | G60: 4.3 | H60: 2.49 | J60: Közép-Magyarország | K60: 2004 | L60: 35.84 | M60: 5.12 | N60: 6.16 | O60: 2.32 | P60: 4.3 | Q60: 2.49 | R60: 1000000 | U60: Közép-Magyarország | V60: 2004 | W60: 1 | X60: 8 | Y60: 36 | Z60: 27 | AA60: 13 | AB60: 35 | AC60: 1000000 | AF60: Közép-Magyarország | AG60: 2004 | AH60: 70 | AI60: 63 | AJ60: 35 | AK60: 43 | AL60: 58 | AM60: 36 | AN60: 1000000
A61: Közép-Magyarország | B61: 2005 | C61: 21.71 | D61: 4.61 | E61: 7.72 | F61: 2.05 | G61: 4.18 | H61: 3.13 | J61: Közép-Magyarország | K61: 2005 | L61: 21.71 | M61: 4.61 | N61: 7.72 | O61: 2.05 | P61: 4.18 | Q61: 3.13 | R61: 1000000 | U61: Közép-Magyarország | V61: 2005 | W61: 34 | X61: 19 | Y61: 15 | Z61: 43 | AA61: 18 | AB61: 17 | AC61: 1000000 | AF61: Közép-Magyarország | AG61: 2005 | AH61: 37 | AI61: 52 | AJ61: 56 | AK61: 25 | AL61: 53 | AM61: 54 | AN61: 1000000
A62: Közép-Magyarország | B62: 2006 | C62: 28.12 | D62: 4.11 | E62: 6.84 | F62: 2.14 | G62: 3.83 | H62: 3.02 | J62: Közép-Magyarország | K62: 2006 | L62: 28.12 | M62: 4.11 | N62: 6.84 | O62: 2.14 | P62: 3.83 | Q62: 3.02 | R62: 1000000 | U62: Közép-Magyarország | V62: 2006 | W62: 12 | X62: 35 | Y62: 28 | Z62: 37 | AA62: 38 | AB62: 20 | AC62: 1000000 | AF62: Közép-Magyarország | AG62: 2006 | AH62: 59 | AI62: 36 | AJ62: 43 | AK62: 33 | AL62: 33 | AM62: 51 | AN62: 1000000
A63: Közép-Magyarország | B63: 2007 | C63: 30.89 | D63: 3 | E63: 3.27 | F63: 1.97 | G63: 2.4 | H63: 1.57 | J63: Közép-Magyarország | K63: 2007 | L63: 30.89 | M63: 3 | N63: 3.27 | O63: 1.97 | P63: 2.4 | Q63: 1.57 | R63: 1000000 | U63: Közép-Magyarország | V63: 2007 | W63: 9 | X63: 61 | Y63: 67 | Z63: 51 | AA63: 60 | AB63: 58 | AC63: 1000000 | AF63: Közép-Magyarország | AG63: 2007 | AH63: 62 | AI63: 10 | AJ63: 4 | AK63: 19 | AL63: 10 | AM63: 13 | AN63: 1000000
A64: Közép-Magyarország | B64: 2008 | C64: 26.3 | D64: 4.85 | E64: 7.8 | F64: 2.65 | G64: 4.17 | H64: 2.29 | J64: Közép-Magyarország | K64: 2008 | L64: 26.3 | M64: 4.85 | N64: 7.8 | O64: 2.65 | P64: 4.17 | Q64: 2.29 | R64: 1000000 | U64: Közép-Magyarország | V64: 2008 | W64: 16 | X64: 12 | Y64: 13 | Z64: 9 | AA64: 19 | AB64: 42 | AC64: 1000000 | AF64: Közép-Magyarország | AG64: 2008 | AH64: 55 | AI64: 59 | AJ64: 57 | AK64: 62 | AL64: 51 | AM64: 29 | AN64: 1000000
A65: Közép-Magyarország | B65: 2009 | C65: 22.78 | D65: 3.19 | E65: 5.3 | F65: 2.07 | G65: 2.98 | H65: 1.16 | J65: Közép-Magyarország | K65: 2009 | L65: 22.78 | M65: 3.19 | N65: 5.3 | O65: 2.07 | P65: 2.98 | Q65: 1.16 | R65: 1000000 | U65: Közép-Magyarország | V65: 2009 | W65: 28 | X65: 55 | Y65: 45 | Z65: 42 | AA65: 53 | AB65: 65 | AC65: 1000000 | AF65: Közép-Magyarország | AG65: 2009 | AH65: 43 | AI65: 16 | AJ65: 26 | AK65: 29 | AL65: 18 | AM65: 6 | AN65: 1000000
A66: Nyugat-Dunántúl | B66: 2000 | C66: 25.18 | D66: 4.02 | E66: 4.45 | F66: 1.71 | G66: 3.35 | H66: 2.46 | J66: Nyugat-Dunántúl | K66: 2000 | L66: 25.18 | M66: 4.02 | N66: 4.45 | O66: 1.71 | P66: 3.35 | Q66: 2.46 | R66: 1000000 | U66: Nyugat-Dunántúl | V66: 2000 | W66: 20 | X66: 39 | Y66: 54 | Z66: 62 | AA66: 47 | AB66: 36 | AC66: 1000000 | AF66: Nyugat-Dunántúl | AG66: 2000 | AH66: 51 | AI66: 31 | AJ66: 17 | AK66: 9 | AL66: 24 | AM66: 35 | AN66: 1000000
A67: Nyugat-Dunántúl | B67: 2001 | C67: 23.95 | D67: 4.45 | E67: 4.27 | F67: 1.95 | G67: 3.86 | H67: 2.45 | J67: Nyugat-Dunántúl | K67: 2001 | L67: 23.95 | M67: =D67 -> 4.45 | N67: 4.27 | O67: 1.95 | P67: 3.86 | Q67: 2.45 | R67: 1000000 | U67: Nyugat-Dunántúl | V67: =K67 -> 2001 | W67: 24 | X67: 26 | Y67: 57 | Z67: 54 | AA67: 36 | AB67: 37 | AC67: =R67 -> 1000000 | AF67: Nyugat-Dunántúl | AG67: 2001 | AH67: 47 | AI67: 44 | AJ67: 14 | AK67: 16 | AL67: 35 | AM67: 33 | AN67: 1000000
A68: Nyugat-Dunántúl | B68: 2002 | C68: 15.94 | D68: 4.16 | E68: 6.12 | F68: 2.02 | G68: 2.1 | H68: 2.54 | J68: Nyugat-Dunántúl | K68: 2002 | L68: 15.94 | M68: 4.16 | N68: =E68 -> 6.12 | O68: =F68 -> 2.02 | P68: =G68 -> 2.1 | Q68: =H68 -> 2.54 | R68: 1000000 | U68: =J68 -> Nyugat-Dunántúl | V68: 2002 | W68: 55 | X68: 33 | Y68: 37 | Z68: 48 | AA68: 65 | AB68: 33 | AC68: 1000000 | AF68: Nyugat-Dunántúl | AG68: 2002 | AH68: 16 | AI68: 38 | AJ68: 34 | AK68: 23 | AL68: 6 | AM68: 38 | AN68: 1000000
A69: Nyugat-Dunántúl | B69: 2003 | C69: 11.95 | D69: 3.06 | E69: 4.18 | F69: 2.46 | G69: 2.93 | H69: 2.26 | J69: Nyugat-Dunántúl | K69: 2003 | L69: 11.95 | M69: 3.06 | N69: 4.18 | O69: 2.46 | P69: 2.93 | Q69: 2.26 | R69: 1000000 | U69: Nyugat-Dunántúl | V69: 2003 | W69: 64 | X69: 59 | Y69: 58 | Z69: 15 | AA69: 56 | AB69: 44 | AC69: 1000000 | AF69: =U69 -> Nyugat-Dunántúl | AG69: =V69 -> 2003 | AH69: 7 | AI69: 12 | AJ69: 13 | AK69: 55 | AL69: 14 | AM69: 27 | AN69: =AC69 -> 1000000
A70: Nyugat-Dunántúl | B70: 2004 | C70: 32.66 | D70: 5.15 | E70: 6.77 | F70: 2.41 | G70: 4.05 | H70: 3.34 | J70: Nyugat-Dunántúl | K70: 2004 | L70: 32.66 | M70: 5.15 | N70: 6.77 | O70: 2.41 | P70: 4.05 | Q70: 3.34 | R70: 1000000 | U70: Nyugat-Dunántúl | V70: 2004 | W70: 4 | X70: 6 | Y70: 29 | Z70: 21 | AA70: 27 | AB70: 15 | AC70: 1000000 | AF70: Nyugat-Dunántúl | AG70: 2004 | AH70: 67 | AI70: =RANK(X70,X$6:X$75,AI$2) -> 64 | AJ70: =RANK(Y70,Y$6:Y$75,AJ$2) -> 42 | AK70: =RANK(Z70,Z$6:Z$75,AK$2) -> 49 | AL70: =RANK(AA70,AA$6:AA$75,AL$2) -> 43 | AM70: =RANK(AB70,AB$6:AB$75,AM$2) -> 56 | AN70: 1000000
A71: Nyugat-Dunántúl | B71: 2005 | C71: 26.65 | D71: 4.48 | E71: 8.01 | F71: 2.5 | G71: 4.03 | H71: 3.58 | J71: =A71 -> Nyugat-Dunántúl | K71: =B71 -> 2005 | L71: =C71 -> 26.65 | M71: 4.48 | N71: 8.01 | O71: 2.5 | P71: 4.03 | Q71: 3.58 | R71: 1000000 | U71: Nyugat-Dunántúl | V71: 2005 | W71: =RANK(L71,L$6:L$75,W$2) -> 15 | X71: 23 | Y71: 10 | Z71: 12 | AA71: 29 | AB71: 12 | AC71: 1000000 | AF71: Nyugat-Dunántúl | AG71: 2005 | AH71: =RANK(W71,W$6:W$75,AH$2) -> 56 | AI71: 47 | AJ71: 61 | AK71: 59 | AL71: 42 | AM71: 59 | AN71: 1000000
A72: Nyugat-Dunántúl | B72: 2006 | C72: 25.94 | D72: 4.49 | E72: 7.13 | F72: 2.42 | G72: 3.4 | H72: 2.7 | J72: Nyugat-Dunántúl | K72: 2006 | L72: 25.94 | M72: 4.49 | N72: 7.13 | O72: 2.42 | P72: 3.4 | Q72: 2.7 | R72: 1000000 | U72: Nyugat-Dunántúl | V72: 2006 | W72: 18 | X72: 22 | Y72: 25 | Z72: 19 | AA72: 46 | AB72: 31 | AC72: 1000000 | AF72: Nyugat-Dunántúl | AG72: 2006 | AH72: 53 | AI72: 49 | AJ72: 45 | AK72: 51 | AL72: 25 | AM72: 40 | AN72: 1000000
A73: Nyugat-Dunántúl | B73: 2007 | C73: 23.4 | D73: 4.08 | E73: 4.72 | F73: 1.95 | G73: 4.23 | H73: 2.72 | J73: Nyugat-Dunántúl | K73: 2007 | L73: 23.4 | M73: 4.08 | N73: 4.72 | O73: 1.95 | P73: 4.23 | Q73: 2.72 | R73: 1000000 | U73: Nyugat-Dunántúl | V73: 2007 | W73: 26 | X73: 37 | Y73: 51 | Z73: 54 | AA73: 16 | AB73: 30 | AC73: 1000000 | AF73: Nyugat-Dunántúl | AG73: 2007 | AH73: 45 | AI73: 34 | AJ73: 20 | AK73: 16 | AL73: 55 | AM73: 41 | AN73: 1000000
A74: Nyugat-Dunántúl | B74: 2008 | C74: 14.56 | D74: 4.68 | E74: 8.48 | F74: 2.83 | G74: 4.81 | H74: 3.89 | J74: Nyugat-Dunántúl | K74: 2008 | L74: 14.56 | M74: 4.68 | N74: 8.48 | O74: 2.83 | P74: 4.81 | Q74: 3.89 | R74: 1000000 | U74: Nyugat-Dunántúl | V74: 2008 | W74: 58 | X74: 17 | Y74: 4 | Z74: 6 | AA74: 4 | AB74: 4 | AC74: 1000000 | AF74: Nyugat-Dunántúl | AG74: 2008 | AH74: 13 | AI74: 54 | AJ74: 67 | AK74: 65 | AL74: 67 | AM74: 67 | AN74: 1000000
A75: Nyugat-Dunántúl | B75: 2009 | C75: 32.12 | D75: 4.69 | E75: 8.12 | F75: 2.4 | G75: 4.16 | H75: 0 | J75: Nyugat-Dunántúl | K75: 2009 | L75: 32.12 | M75: 4.69 | N75: 8.12 | O75: 2.4 | P75: 4.16 | Q75: =H108 -> 2.882222222 | R75: 1000000 | U75: Nyugat-Dunántúl | V75: 2009 | W75: 6 | X75: 16 | Y75: 7 | Z75: 23 | AA75: 21 | AB75: 26 | AC75: 1000000 | AF75: Nyugat-Dunántúl | AG75: 2009 | AH75: 65 | AI75: 55 | AJ75: 64 | AK75: 47 | AL75: 49 | AM75: 45 | AN75: 1000000
B77: max | C77: =MAX(C6:C75) -> 35.84 | D77: =MAX(D6:D75) -> 5.79 | E77: 8.98 | F77: 3.04 | G77: 5.31 | H77: 4.88
B78: min | C78: =MIN(C6:C75) -> 0 | D78: =MIN(D6:D75) -> 1.56 | E78: 2.63 | F78: 1.12 | G78: 1.23 | H78: 0
B79: darab0 | C79: =COUNTIF(C6:C75,0) -> 2 | D79: =COUNTIF(D6:D75,0) -> 0 | E79: 0 | F79: 0 | G79: 0 | H79: 10
B83: Év | C83: (mind)
B85: Átlag / Érték | C85: Mutatószám | D85: Mértékegység
C86: burgonya | D86: Búza *összesen*na.*na. | E86: kukorica | F86: napraforgó | G86: őszi árpa | H86: Rozs *összesen*na.*na.
B87: Régió | C87: t/ha | D87: t/ha | E87: t/ha | F87: t/ha | G87: t/ha | H87: t/ha
B88: Dél-Alföld | C88: 23.539 | D88: 4.221 | E88: 6.132 | F88: 2.163 | G88: 3.783 | H88: 1.889
B89: Dél-Dunántúl | C89: 19.237 | D89: 4.58 | E89: 6.634 | F89: 2.527 | G89: 4.176 | H89: 1.936
B90: Észak-Alföld | C90: 24.44 | D90: 3.665 | E90: 6.319 | F90: 2.007 | G90: 3.168 | H90: 1.699
B91: Észak-Magyarország | C91: 17.383 | D91: 3.542 | E91: 5.028 | F91: 1.859 | G91: 3.393 | H91: 2.039
B92: Közép-Dunántúl | C92: 14.175 | D92: 4.153 | E92: 6.631 | F92: 2.413 | G92: 3.608 | H92: 2.046
B93: Közép-Magyarország | C93: 23.387 | D93: 3.723 | E93: 5.374 | F93: 2.064 | G93: 3.385 | H93: 2.043
B94: Nyugat-Dunántúl | C94: 23.235 | D94: 4.326 | E94: 6.225 | F94: 2.265 | G94: 3.692 | H94: 2.594
B96: átlagszámítás a nullákkal együtt
B99: Átlag / Érték | C99: Mutatószám | D99: Mértékegység
C100: burgonya | D100: Búza *összesen*na.*na. | E100: kukorica | F100: napraforgó | G100: őszi árpa | H100: Rozs *összesen*na.*na.
B101: Régió | C101: t/ha | D101: t/ha | E101: t/ha | F101: t/ha | G101: t/ha | H101: t/ha
B102: Dél-Alföld
B103: Dél-Dunántúl | H103: =AVERAGE(H19:H22,H25) -> 3.872
B104: Észak-Alföld
B105: Észak-Magyarország | C105: =AVERAGE(C36:C42,C44) -> 21.72875 | H105: =AVERAGE(H39:H45) -> 2.912857143
B106: Közép-Dunántúl
B107: Közép-Magyarország
B108: Nyugat-Dunántúl | H108: =AVERAGE(H66:H74) -> 2.882222222

Sheet modellek
A2: https://miau.my-x.hu/myx-free/coco/index.html | B2: Y0
A5: Azonosító: | B5: 4118392 | C5: Objektumok: | D5: 70 | E5: Attribútumok: | F5: 6 | G5: Lépcsôk: | H5: 70 | I5: Eltolás: | J5: 0 | K5: Leírás: | L5: COCO Y0: 4118392 | N5: Azonosító: | O5: 5215428 | P5: Objektumok: | Q5: 70 | R5: Attribútumok: | S5: 6 | T5: Lépcsôk: | U5: 70 | V5: Eltolás: | W5: 0 | X5: Leírás: | Y5: COCO Y0: 5215428
A7: Rangsor | B7: X(A1) | C7: X(A2) | D7: X(A3) | E7: X(A4) | F7: X(A5) | G7: X(A6) | H7: Y(A7) | N7: Rangsor | O7: X(A1) | P7: X(A2) | Q7: X(A3) | R7: X(A4) | S7: X(A5) | T7: X(A6) | U7: Y(A7)
A8: O1 | B8: 48 | C8: 39 | D8: 53 | E8: 67 | F8: 55 | G8: 61 | H8: 1000000 | N8: O1 | O8: 23 | P8: 31 | Q8: 18 | R8: 3 | S8: 16 | T8: 10 | U8: 1000000
A9: O2 | B9: 40 | C9: 26 | D9: 16 | E9: 50 | F9: 27 | G9: 47 | H9: 1000000 | N9: O2 | O9: 31 | P9: 44 | Q9: 55 | R9: 21 | S9: 43 | T9: 24 | U9: 1000000
A10: O3 | B10: 45 | C10: 50 | D10: 42 | E10: 47 | F10: 42 | G10: 43 | H10: 1000000 | N10: O3 | O10: 26 | P10: 21 | Q10: 29 | R10: 24 | S10: 28 | T10: 28 | U10: 1000000
A11: O4 | B11: 46 | C11: 65 | D11: 66 | E11: 53 | F11: 59 | G11: 69 | H11: 1000000 | N11: O4 | O11: 25 | P11: 6 | Q11: 5 | R11: 18 | S11: 12 | T11: 2 | U11: 1000000
A12: O5 | B12: 22 | C12: 1 | D12: 19 | E12: 10 | F12: 10 | G12: 28 | H12: 1000000 | N12: O5 | O12: 49 | P12: 70 | Q12: 51 | R12: 61 | S12: 60 | T12: 42 | U12: 1000000
A13: O6 | B13: 35 | C13: 21 | D13: 11 | E13: 43 | F13: 34 | G13: 16 | H13: 1000000 | N13: O6 | O13: 36 | P13: 50 | Q13: 59 | R13: 25 | S13: 36 | T13: 55 | U13: 1000000
A14: O7 | B14: 17 | C14: 32 | D14: 21 | E14: 40 | F14: 32 | G14: 56 | H14: 1000000 | N14: O7 | O14: 54 | P14: 39 | Q14: 50 | R14: 31 | S14: 38 | T14: 15 | U14: 1000000
A15: O8 | B15: 25 | C15: 46 | D15: 56 | E15: 29 | F15: 40 | G15: 64 | H15: 1000000 | N15: O8 | O15: 46 | P15: 25 | Q15: 15 | R15: 42 | S15: 31 | T15: 7 | U15: 1000000
A16: O9 | B16: 13 | C16: 5 | D16: 22 | E16: 8 | F16: 1 | G16: 39 | H16: 1000000 | N16: O9 | O16: 58 | P16: 66 | Q16: 49 | R16: 63 | S16: 70 | T16: 32 | U16: 1000000
A17: O10 | B17: 5 | C17: 47 | D17: 39 | E17: 18 | F17: 45 | G17: 63 | H17: 1000000 | N17: O10 | O17: 66 | P17: 24 | Q17: 32 | R17: 53 | S17: 26 | T17: 8 | U17: 1000000
A18: O11 | B18: 68 | C18: 36 | D18: 50 | E18: 41 | F18: 41 | G18: 5 | H18: 1000000 | N18: O11 | O18: 3 | P18: 35 | Q18: 21 | R18: 30 | S18: 30 | T18: 62 | U18: 1000000
A19: O12 | B19: 60 | C19: 13 | D19: 24 | E19: 43 | F19: 7 | G19: 5 | H19: 1000000 | N19: O12 | O19: 11 | P19: 58 | Q19: 47 | R19: 25 | S19: 64 | T19: 62 | U19: 1000000
A20: O13 | B20: 31 | C20: 15 | D20: 31 | E20: 25 | F20: 25 | G20: 5 | H20: 1000000 | N20: O13 | O20: 40 | P20: 56 | Q20: 40 | R20: 46 | S20: 46 | T20: 62 | U20: 1000000
A21: O14 | B21: 62 | C21: 53 | D21: 55 | E21: 19 | F21: 49 | G21: 53 | H21: 1000000 | N21: O14 | O21: 9 | P21: 18 | Q21: 16 | R21: 51 | S21: 22 | T21: 17 | U21: 1000000
A22: O15 | B22: 2 | C22: 6 | D22: 8 | E22: 1 | F22: 5 | G22: 2 | H22: 1000000 | N22: O15 | O22: 69 | P22: 64 | Q22: 63 | R22: 70 | S22: 66 | T22: 69 | U22: 1000000
A23: O16 | B23: 14 | C23: 18 | D23: 5 | E23: 13 | F23: 15 | G23: 1 | H23: 1000000 | N23: O16 | O23: 57 | P23: 53 | Q23: 66 | R23: 57 | S23: 56 | T23: 70 | U23: 1000000
A24: O17 | B24: 27 | C24: 20 | D24: 11 | E24: 21 | F24: 8 | G24: 3 | H24: 1000000 | N24: O17 | O24: 44 | P24: 51 | Q24: 59 | R24: 49 | S24: 63 | T24: 68 | U24: 1000000
A25: O18 | B25: 59 | C25: 45 | D25: 68 | E25: 15 | F25: 23 | G25: 5 | H25: 1000000 | N25: O18 | O25: 12 | P25: 26 | Q25: 3 | R25: 55 | S25: 48 | T25: 62 | U25: 1000000
A26: O19 | B26: 53 | C26: 2 | D26: 6 | E26: 2 | F26: 24 | G26: 5 | H26: 1000000 | N26: O19 | O26: 18 | P26: 69 | Q26: 65 | R26: 69 | S26: 47 | T26: 62 | U26: 1000000
A27: O20 | B27: 49 | C27: 10 | D27: 19 | E27: 5 | F27: 6 | G27: 10 | H27: 1000000 | N27: O20 | O27: 22 | P27: 61 | Q27: 51 | R27: 66 | S27: 65 | T27: 61 | U27: 1000000
A28: O21 | B28: 41 | C28: 58 | D28: 62 | E28: 67 | F28: 56 | G28: 67 | H28: 1000000 | N28: O21 | O28: 30 | P28: 13 | Q28: 9 | R28: 3 | S28: 14 | T28: 4 | U28: 1000000
A29: O22 | B29: 23 | C29: 41 | D29: 25 | E29: 64 | F29: 17 | G29: 53 | H29: 1000000 | N29: O22 | O29: 48 | P29: 29 | Q29: 45 | R29: 7 | S29: 54 | T29: 17 | U29: 1000000
A30: O23 | B30: 39 | C30: 62 | D30: 49 | E30: 57 | F30: 69 | G30: 57 | H30: 1000000 | N30: O23 | O30: 32 | P30: 9 | Q30: 22 | R30: 14 | S30: 2 | T30: 14 | U30: 1000000
A31: O24 | B31: 30 | C31: 68 | D31: 47 | E31: 58 | F31: 68 | G31: 49 | H31: 1000000 | N31: O24 | O31: 41 | P31: 3 | Q31: 24 | R31: 13 | S31: 3 | T31: 22 | U31: 1000000
A32: O25 | B32: 42 | C32: 3 | D32: 9 | E32: 36 | F32: 2 | G32: 19 | H32: 1000000 | N32: O25 | O32: 29 | P32: 68 | Q32: 62 | R32: 35 | S32: 69 | T32: 52 | U32: 1000000
A33: O26 | B33: 7 | C33: 34 | D33: 13 | E33: 49 | F33: 26 | G33: 68 | H33: 1000000 | N33: O26 | O33: 64 | P33: 37 | Q33: 57 | R33: 22 | S33: 45 | T33: 3 | U33: 1000000
A34: O27 | B34: 11 | C34: 56 | D34: 32 | E34: 59 | F34: 66 | G34: 52 | H34: 1000000 | N34: O27 | O34: 60 | P34: 15 | Q34: 39 | R34: 12 | S34: 5 | T34: 19 | U34: 1000000
A35: O28 | B35: 37 | C35: 60 | D35: 52 | E35: 37 | F35: 54 | G35: 66 | H35: 1000000 | N35: O28 | O35: 34 | P35: 11 | Q35: 19 | R35: 33 | S35: 17 | T35: 5 | U35: 1000000
A36: O29 | B36: 44 | C36: 14 | D36: 3 | E36: 4 | F36: 19 | G36: 59 | H36: 1000000 | N36: O29 | O36: 27 | P36: 57 | Q36: 68 | R36: 67 | S36: 51 | T36: 11 | U36: 1000000
A37: O30 | B37: 3 | C37: 49 | D37: 35 | E37: 31 | F37: 58 | G37: 46 | H37: 1000000 | N37: O30 | O37: 68 | P37: 22 | Q37: 36 | R37: 40 | S37: 13 | T37: 25 | U37: 1000000
A38: O31 | B38: 56 | C38: 66 | D38: 70 | E38: 70 | F38: 30 | G38: 22 | H38: 1000000 | N38: O31 | O38: 15 | P38: 5 | Q38: 1 | R38: 1 | S38: 41 | T38: 46 | U38: 1000000
A39: O32 | B39: 51 | C39: 41 | D39: 43 | E39: 61 | F39: 48 | G39: 22 | H39: 1000000 | N39: O32 | O39: 20 | P39: 29 | Q39: 28 | R39: 10 | S39: 23 | T39: 46 | U39: 1000000
A40: O33 | B40: 38 | C40: 64 | D40: 46 | E40: 69 | F40: 62 | G40: 22 | H40: 1000000 | N40: O33 | O40: 33 | P40: 7 | Q40: 25 | R40: 2 | S40: 9 | T40: 46 | U40: 1000000
A41: O34 | B41: 66 | C41: 69 | D41: 59 | E41: 66 | F41: 70 | G41: 50 | H41: 1000000 | N41: O34 | O41: 5 | P41: 2 | Q41: 12 | R41: 5 | S41: 1 | T41: 21 | U41: 1000000
A42: O35 | B42: 10 | C42: 25 | D42: 40 | E42: 33 | F42: 31 | G42: 13 | H42: 1000000 | N42: O35 | O42: 61 | P42: 46 | Q42: 30 | R42: 38 | S42: 40 | T42: 58 | U42: 1000000
A43: O36 | B43: 21 | C43: 28 | D43: 34 | E43: 32 | F43: 21 | G43: 21 | H43: 1000000 | N43: O36 | O43: 50 | P43: 43 | Q43: 37 | R43: 39 | S43: 49 | T43: 50 | U43: 1000000
A44: O37 | B44: 29 | C44: 44 | D44: 40 | E44: 51 | F44: 37 | G44: 32 | H44: 1000000 | N44: O37 | O44: 42 | P44: 27 | Q44: 30 | R44: 19 | S44: 34 | T44: 39 | U44: 1000000
A45: O38 | B45: 32 | C45: 57 | D45: 63 | E45: 60 | F45: 50 | G45: 41 | H45: 1000000 | N45: O38 | O45: 38 | P45: 14 | Q45: 8 | R45: 11 | S45: 21 | T45: 30 | U45: 1000000
A46: O39 | B46: 8 | C46: 23 | D46: 38 | E46: 17 | F46: 12 | G46: 11 | H46: 1000000 | N46: O39 | O46: 63 | P46: 47 | Q46: 33 | R46: 54 | S46: 59 | T46: 60 | U46: 1000000
A47: O40 | B47: 32 | C47: 51 | D47: 44 | E47: 34 | F47: 42 | G47: 14 | H47: 1000000 | N47: O40 | O47: 38 | P47: 20 | Q47: 27 | R47: 36 | S47: 28 | T47: 57 | U47: 1000000
A48: O41 | B48: 69 | C48: 38 | D48: 48 | E48: 43 | F48: 52 | G48: 22 | H48: 1000000 | N48: O41 | O48: 2 | P48: 33 | Q48: 23 | R48: 25 | S48: 19 | T48: 46 | U48: 1000000
A49: O42 | B49: 67 | C49: 31 | D49: 27 | E49: 30 | F49: 32 | G49: 45 | H49: 1000000 | N49: O42 | O49: 4 | P49: 40 | Q49: 44 | R49: 41 | S49: 38 | T49: 26 | U49: 1000000
A50: O43 | B50: 50 | C50: 43 | D50: 30 | E50: 34 | F50: 64 | G50: 34 | H50: 1000000 | N50: O43 | O50: 21 | P50: 28 | Q50: 41 | R50: 36 | S50: 7 | T50: 37 | U50: 1000000
A51: O44 | B51: 65 | C51: 67 | D51: 60 | E51: 23 | F51: 60 | G51: 62 | H51: 1000000 | N51: O44 | O51: 6 | P51: 4 | Q51: 11 | R51: 47 | S51: 10 | T51: 9 | U51: 1000000
A52: O45 | B52: 43 | C52: 9 | D52: 23 | E52: 7 | F52: 9 | G52: 28 | H52: 1000000 | N52: O45 | O52: 28 | P52: 62 | Q52: 48 | R52: 64 | S52: 62 | T52: 42 | U52: 1000000
A53: O46 | B53: 61 | C53: 11 | D53: 1 | E53: 11 | F53: 14 | G53: 51 | H53: 1000000 | N53: O46 | O53: 10 | P53: 60 | Q53: 70 | R53: 60 | S53: 57 | T53: 20 | U53: 1000000
A54: O47 | B54: 57 | C54: 29 | D54: 17 | E54: 27 | F54: 34 | G54: 59 | H54: 1000000 | N54: O47 | O54: 14 | P54: 42 | Q54: 54 | R54: 43 | S54: 36 | T54: 11 | U54: 1000000
A55: O48 | B55: 47 | C55: 54 | D55: 64 | E55: 39 | F55: 39 | G55: 27 | H55: 1000000 | N55: O48 | O55: 24 | P55: 17 | Q55: 7 | R55: 32 | S55: 32 | T55: 44 | U55: 1000000
A56: O49 | B56: 70 | C56: 4 | D56: 2 | E56: 3 | F56: 3 | G56: 40 | H56: 1000000 | N56: O49 | O56: 1 | P56: 67 | Q56: 69 | R56: 68 | S56: 68 | T56: 31 | U56: 1000000
A57: O50 | B57: 19 | C57: 48 | D57: 18 | E57: 13 | F57: 51 | G57: 18 | H57: 1000000 | N57: O50 | O57: 52 | P57: 23 | Q57: 53 | R57: 57 | S57: 20 | T57: 53 | U57: 1000000
A58: O51 | B58: 54 | C58: 52 | D58: 65 | E58: 65 | F58: 44 | G58: 48 | H58: 1000000 | N58: O51 | O58: 17 | P58: 19 | Q58: 6 | R58: 6 | S58: 27 | T58: 23 | U58: 1000000
A59: O52 | B59: 63 | C59: 30 | D59: 33 | E59: 26 | F59: 10 | G59: 37 | H59: 1000000 | N59: O52 | O59: 8 | P59: 41 | Q59: 38 | R59: 45 | S59: 60 | T59: 33 | U59: 1000000
A60: O53 | B60: 52 | C60: 63 | D60: 61 | E60: 56 | F60: 63 | G60: 55 | H60: 1000000 | N60: O53 | O60: 19 | P60: 8 | Q60: 10 | R60: 15 | S60: 8 | T60: 16 | U60: 1000000
A61: O54 | B61: 36 | C61: 70 | D61: 69 | E61: 63 | F61: 67 | G61: 70 | H61: 1000000 | N61: O54 | O61: 35 | P61: 1 | Q61: 2 | R61: 8 | S61: 4 | T61: 1 | U61: 1000000
A62: O55 | B62: 1 | C62: 8 | D62: 36 | E62: 27 | F62: 13 | G62: 35 | H62: 1000000 | N62: O55 | O62: 70 | P62: 63 | Q62: 35 | R62: 43 | S62: 58 | T62: 36 | U62: 1000000
A63: O56 | B63: 34 | C63: 19 | D63: 15 | E63: 43 | F63: 18 | G63: 17 | H63: 1000000 | N63: O56 | O63: 37 | P63: 52 | Q63: 56 | R63: 25 | S63: 53 | T63: 54 | U63: 1000000
A64: O57 | B64: 12 | C64: 35 | D64: 28 | E64: 37 | F64: 38 | G64: 20 | H64: 1000000 | N64: O57 | O64: 59 | P64: 36 | Q64: 43 | R64: 33 | S64: 33 | T64: 51 | U64: 1000000
A65: O58 | B65: 9 | C65: 61 | D65: 67 | E65: 51 | F65: 60 | G65: 58 | H65: 1000000 | N65: O58 | O65: 62 | P65: 10 | Q65: 4 | R65: 19 | S65: 10 | T65: 13 | U65: 1000000
A66: O59 | B66: 16 | C66: 12 | D66: 13 | E66: 9 | F66: 19 | G66: 42 | H66: 1000000 | N66: O59 | O66: 55 | P66: 59 | Q66: 57 | R66: 62 | S66: 51 | T66: 29 | U66: 1000000
A67: O60 | B67: 28 | C67: 55 | D67: 45 | E67: 42 | F67: 53 | G67: 65 | H67: 1000000 | N67: O60 | O67: 43 | P67: 16 | Q67: 26 | R67: 29 | S67: 18 | T67: 6 | U67: 1000000
A68: O61 | B68: 20 | C68: 39 | D68: 54 | E68: 62 | F68: 47 | G68: 36 | H68: 1000000 | N68: O61 | O68: 51 | P68: 31 | Q68: 17 | R68: 9 | S68: 24 | T68: 35 | U68: 1000000
A69: O62 | B69: 24 | C69: 26 | D69: 57 | E69: 54 | F69: 36 | G69: 37 | H69: 1000000 | N69: O62 | O69: 47 | P69: 44 | Q69: 14 | R69: 16 | S69: 35 | T69: 33 | U69: 1000000
A70: O63 | B70: 55 | C70: 33 | D70: 37 | E70: 48 | F70: 65 | G70: 33 | H70: 1000000 | N70: O63 | O70: 16 | P70: 38 | Q70: 34 | R70: 23 | S70: 6 | T70: 38 | U70: 1000000
A71: O64 | B71: 64 | C71: 59 | D71: 58 | E71: 15 | F71: 56 | G71: 44 | H71: 1000000 | N71: O64 | O71: 7 | P71: 12 | Q71: 13 | R71: 55 | S71: 14 | T71: 27 | U71: 1000000
A72: O65 | B72: 4 | C72: 6 | D72: 29 | E72: 21 | F72: 27 | G72: 15 | H72: 1000000 | N72: O65 | O72: 67 | P72: 64 | Q72: 42 | R72: 49 | S72: 43 | T72: 56 | U72: 1000000
A73: O66 | B73: 15 | C73: 23 | D73: 10 | E73: 12 | F73: 29 | G73: 12 | H73: 1000000 | N73: O66 | O73: 56 | P73: 47 | Q73: 61 | R73: 59 | S73: 42 | T73: 59 | U73: 1000000
A74: O67 | B74: 18 | C74: 22 | D74: 25 | E74: 19 | F74: 46 | G74: 31 | H74: 1000000 | N74: O67 | O74: 53 | P74: 49 | Q74: 45 | R74: 51 | S74: 25 | T74: 40 | U74: 1000000
A75: O68 | B75: 26 | C75: 37 | D75: 51 | E75: 54 | F75: 16 | G75: 30 | H75: 1000000 | N75: O68 | O75: 45 | P75: 34 | Q75: 20 | R75: 16 | S75: 55 | T75: 41 | U75: 1000000
A76: O69 | B76: 58 | C76: 17 | D76: 4 | E76: 6 | F76: 4 | G76: 4 | H76: 1000000 | N76: O69 | O76: 13 | P76: 54 | Q76: 67 | R76: 65 | S76: 67 | T76: 67 | U76: 1000000
A77: O70 | B77: 6 | C77: 16 | D77: 7 | E77: 23 | F77: 21 | G77: 26 | H77: 1000000 | N77: O70 | O77: 65 | P77: 55 | Q77: 64 | R77: 47 | S77: 49 | T77: 45 | U77: 1000000
A79: Lépcsôk(1) | B79: X(A1) | C79: X(A2) | D79: X(A3) | E79: X(A4) | F79: X(A5) | G79: X(A6) | N79: Lépcsôk(1) | O79: X(A1) | P79: X(A2) | Q79: X(A3) | R79: X(A4) | S79: X(A5) | T79: X(A6)
A80: S1 | B80: (186+999968.1)/(2)=500077.05 | C80: (135+69)/(2)=102 | D80: (194+69)/(2)=131.5 | E80: (69+135)/(2)=102 | F80: (133+69)/(2)=101 | G80: (999662.1+74)/(2)=499868.05 | N80: S1 | O80: (327+999811)/(2)=500069 | P80: (69+137)/(2)=103 | Q80: (999684+193)/(2)=499938.5 | R80: (132+69)/(2)=100.5 | S80: (69+132)/(2)=100.5 | T80: (74+69)/(2)=71.5
A81: S2 | B81: (89+999967.1)/(2)=500028.05 | C81: (94+68)/(2)=81 | D81: (187+68)/(2)=127.5 | E81: (68+134)/(2)=101 | F81: (132+68)/(2)=100 | G81: (999661.1+73)/(2)=499867.05 | N81: S2 | O81: (170+999783)/(2)=499976.5 | P81: (68+136)/(2)=102 | Q81: (999683+192)/(2)=499937.5 | R81: (131+68)/(2)=99.5 | S81: (68+131)/(2)=99.5 | T81: (73+68)/(2)=70.5
A82: S3 | B82: (88+999966.1)/(2)=500027.05 | C82: (90+67)/(2)=78.5 | D82: (186+67)/(2)=126.5 | E82: (67+133)/(2)=100 | F82: (67+67)/(2)=67 | G82: (999660.1+72)/(2)=499866.05 | N82: S3 | O82: (169+999782)/(2)=499975.5 | P82: (67+135)/(2)=101 | Q82: (999682+191)/(2)=499936.5 | R82: (89+67)/(2)=78 | S82: (67+130)/(2)=98.5 | T82: (72+67)/(2)=69.5
A83: S4 | B83: (87+999965.1)/(2)=500026.05 | C83: (66+66)/(2)=66 | D83: (135+66)/(2)=100.5 | E83: (66+132)/(2)=99 | F83: (66+66)/(2)=66 | G83: (999659.1+71)/(2)=499865.05 | N83: S4 | O83: (168+999781)/(2)=499974.5 | P83: (66+134)/(2)=100 | Q83: (999681+190)/(2)=499935.5 | R83: (88+66)/(2)=77 | S83: (66+129)/(2)=97.5 | T83: (71+66)/(2)=68.5
A84: S5 | B84: (86+999964.1)/(2)=500025.05 | C84: (65+65)/(2)=65 | D84: (107+65)/(2)=86 | E84: (65+131)/(2)=98 | F84: (65+65)/(2)=65 | G84: (999658.1+70)/(2)=499864.05 | N84: S5 | O84: (65+999780)/(2)=499922.5 | P84: (65+133)/(2)=99 | Q84: (999680+189)/(2)=499934.5 | R84: (65+65)/(2)=65 | S84: (65+128)/(2)=96.5 | T84: (70+65)/(2)=67.5
A85: S6 | B85: (85+999963.1)/(2)=500024.05 | C85: (64+64)/(2)=64 | D85: (106+64)/(2)=85 | E85: (64+130)/(2)=97 | F85: (64+64)/(2)=64 | G85: (999657.1+69)/(2)=499863.05 | N85: S6 | O85: (64+999779)/(2)=499921.5 | P85: (64+132)/(2)=98 | Q85: (999679+188)/(2)=499933.5 | R85: (64+64)/(2)=64 | S85: (64+127)/(2)=95.5 | T85: (69+64)/(2)=66.5
A86: S7 | B86: (84+999962.1)/(2)=500023.05 | C86: (63+63)/(2)=63 | D86: (105+63)/(2)=84 | E86: (63+129)/(2)=96 | F86: (63+63)/(2)=63 | G86: (999656.1+68)/(2)=499862.05 | N86: S7 | O86: (63+999778)/(2)=499920.5 | P86: (63+131)/(2)=97 | Q86: (999678+187)/(2)=499932.5 | R86: (63+63)/(2)=63 | S86: (63+126)/(2)=94.5 | T86: (68+63)/(2)=65.5
A87: S8 | B87: (83+999961.1)/(2)=500022.05 | C87: (62+62)/(2)=62 | D87: (62+62)/(2)=62 | E87: (62+128)/(2)=95 | F87: (62+62)/(2)=62 | G87: (999655.1+67)/(2)=499861.05 | N87: S8 | O87: (62+999777)/(2)=499919.5 | P87: (62+130)/(2)=96 | Q87: (999677+186)/(2)=499931.5 | R87: (62+62)/(2)=62 | S87: (62+125)/(2)=93.5 | T87: (67+62)/(2)=64.5
A88: S9 | B88: (82+999960.1)/(2)=500021.05 | C88: (61+61)/(2)=61 | D88: (61+61)/(2)=61 | E88: (61+127)/(2)=94 | F88: (61+61)/(2)=61 | G88: (999654.1+66)/(2)=499860.05 | N88: S9 | O88: (61+999776)/(2)=499918.5 | P88: (61+129)/(2)=95 | Q88: (999676+185)/(2)=499930.5 | R88: (61+61)/(2)=61 | S88: (61+124)/(2)=92.5 | T88: (66+61)/(2)=63.5
A89: S10 | B89: (81+999959.1)/(2)=500020.05 | C89: (60+60)/(2)=60 | D89: (60+60)/(2)=60 | E89: (60+126)/(2)=93 | F89: (60+60)/(2)=60 | G89: (999653.1+65)/(2)=499859.05 | N89: S10 | O89: (60+999775)/(2)=499917.5 | P89: (60+128)/(2)=94 | Q89: (999675+184)/(2)=499929.5 | R89: (60+60)/(2)=60 | S89: (60+123)/(2)=91.5 | T89: (65+60)/(2)=62.5
A90: S11 | B90: (80+999958.1)/(2)=500019.05 | C90: (59+59)/(2)=59 | D90: (59+59)/(2)=59 | E90: (59+125)/(2)=92 | F90: (59+59)/(2)=59 | G90: (999652.1+64)/(2)=499858.05 | N90: S11 | O90: (59+999774)/(2)=499916.5 | P90: (59+127)/(2)=93 | Q90: (999674+183)/(2)=499928.5 | R90: (59+59)/(2)=59 | S90: (59+122)/(2)=90.5 | T90: (64+59)/(2)=61.5
A91: S12 | B91: (79+999957.1)/(2)=500018.05 | C91: (58+58)/(2)=58 | D91: (58+58)/(2)=58 | E91: (58+124)/(2)=91 | F91: (58+58)/(2)=58 | G91: (999651.1+63)/(2)=499857.05 | N91: S12 | O91: (58+999773)/(2)=499915.5 | P91: (58+126)/(2)=92 | Q91: (999673+182)/(2)=499927.5 | R91: (58+58)/(2)=58 | S91: (58+121)/(2)=89.5 | T91: (63+58)/(2)=60.5
A92: S13 | B92: (78+999956.1)/(2)=500017.05 | C92: (57+57)/(2)=57 | D92: (57+57)/(2)=57 | E92: (57+123)/(2)=90 | F92: (57+57)/(2)=57 | G92: (999650.1+62)/(2)=499856.05 | N92: S13 | O92: (57+999772)/(2)=499914.5 | P92: (57+125)/(2)=91 | Q92: (999672+181)/(2)=499926.5 | R92: (57+57)/(2)=57 | S92: (57+120)/(2)=88.5 | T92: (62+57)/(2)=59.5
A93: S14 | B93: (77+999955.1)/(2)=500016.05 | C93: (56+56)/(2)=56 | D93: (56+56)/(2)=56 | E93: (56+122)/(2)=89 | F93: (56+56)/(2)=56 | G93: (999649.1+61)/(2)=499855.05 | N93: S14 | O93: (56+999771)/(2)=499913.5 | P93: (56+124)/(2)=90 | Q93: (999671+180)/(2)=499925.5 | R93: (56+56)/(2)=56 | S93: (56+119)/(2)=87.5 | T93: (61+56)/(2)=58.5
A94: S15 | B94: (76+999954.1)/(2)=500015.05 | C94: (55+55)/(2)=55 | D94: (55+55)/(2)=55 | E94: (55+121)/(2)=88 | F94: (55+55)/(2)=55 | G94: (999648.1+60)/(2)=499854.05 | N94: S15 | O94: (55+999770)/(2)=499912.5 | P94: (55+123)/(2)=89 | Q94: (999670+179)/(2)=499924.5 | R94: (55+55)/(2)=55 | S94: (55+118)/(2)=86.5 | T94: (60+55)/(2)=57.5
A95: S16 | B95: (75+999953.1)/(2)=500014.05 | C95: (54+54)/(2)=54 | D95: (54+54)/(2)=54 | E95: (54+120)/(2)=87 | F95: (54+54)/(2)=54 | G95: (999647.1+59)/(2)=499853.05 | N95: S16 | O95: (54+999769)/(2)=499911.5 | P95: (54+122)/(2)=88 | Q95: (999669+178)/(2)=499923.5 | R95: (54+54)/(2)=54 | S95: (54+117)/(2)=85.5 | T95: (59+54)/(2)=56.5
A96: S17 | B96: (74+999952.1)/(2)=500013.05 | C96: (53+53)/(2)=53 | D96: (53+53)/(2)=53 | E96: (53+119)/(2)=86 | F96: (53+53)/(2)=53 | G96: (999646.1+58)/(2)=499852.05 | N96: S17 | O96: (53+999768)/(2)=499910.5 | P96: (53+121)/(2)=87 | Q96: (999668+177)/(2)=499922.5 | R96: (53+53)/(2)=53 | S96: (53+116)/(2)=84.5 | T96: (58+53)/(2)=55.5
A97: S18 | B97: (73+999951.1)/(2)=500012.05 | C97: (52+52)/(2)=52 | D97: (52+52)/(2)=52 | E97: (52+118)/(2)=85 | F97: (52+52)/(2)=52 | G97: (999645.1+57)/(2)=499851.05 | N97: S18 | O97: (52+999767)/(2)=499909.5 | P97: (52+120)/(2)=86 | Q97: (999667+176)/(2)=499921.5 | R97: (52+52)/(2)=52 | S97: (52+115)/(2)=83.5 | T97: (57+52)/(2)=54.5
A98: S19 | B98: (72+999950.1)/(2)=500011.05 | C98: (51+51)/(2)=51 | D98: (51+51)/(2)=51 | E98: (51+117)/(2)=84 | F98: (51+51)/(2)=51 | G98: (999644.1+56)/(2)=499850.05 | N98: S19 | O98: (51+999766)/(2)=499908.5 | P98: (51+119)/(2)=85 | Q98: (999666+175)/(2)=499920.5 | R98: (51+51)/(2)=51 | S98: (51+114)/(2)=82.5 | T98: (56+51)/(2)=53.5
A99: S20 | B99: (71+999949.1)/(2)=500010.05 | C99: (50+50)/(2)=50 | D99: (50+50)/(2)=50 | E99: (50+116)/(2)=83 | F99: (50+50)/(2)=50 | G99: (999643.1+55)/(2)=499849.05 | N99: S20 | O99: (50+999765)/(2)=499907.5 | P99: (50+118)/(2)=84 | Q99: (999665+174)/(2)=499919.5 | R99: (50+50)/(2)=50 | S99: (50+113)/(2)=81.5 | T99: (55+50)/(2)=52.5
A100: S21 | B100: (70+999948.1)/(2)=500009.05 | C100: (49+49)/(2)=49 | D100: (49+49)/(2)=49 | E100: (49+115)/(2)=82 | F100: (49+49)/(2)=49 | G100: (999642.1+54)/(2)=499848.05 | N100: S21 | O100: (49+999764)/(2)=499906.5 | P100: (49+117)/(2)=83 | Q100: (999664+173)/(2)=499918.5 | R100: (49+49)/(2)=49 | S100: (49+112)/(2)=80.5 | T100: (49+49)/(2)=49
A101: S22 | B101: (69+999947.1)/(2)=500008.05 | C101: (48+48)/(2)=48 | D101: (48+48)/(2)=48 | E101: (48+114)/(2)=81 | F101: (48+48)/(2)=48 | G101: (999641.1+53)/(2)=499847.05 | N101: S22 | O101: (48+999763)/(2)=499905.5 | P101: (48+116)/(2)=82 | Q101: (999663+172)/(2)=499917.5 | R101: (48+48)/(2)=48 | S101: (48+111)/(2)=79.5 | T101: (48+48)/(2)=48
A102: S23 | B102: (68+999946.1)/(2)=500007.05 | C102: (47+47)/(2)=47 | D102: (47+47)/(2)=47 | E102: (47+113)/(2)=80 | F102: (47+47)/(2)=47 | G102: (999640.1+52)/(2)=499846.05 | N102: S23 | O102: (47+999762)/(2)=499904.5 | P102: (47+115)/(2)=81 | Q102: (999662+171)/(2)=499916.5 | R102: (47+47)/(2)=47 | S102: (47+110)/(2)=78.5 | T102: (47+47)/(2)=47
A103: S24 | B103: (67+999945.1)/(2)=500006.05 | C103: (46+46)/(2)=46 | D103: (46+46)/(2)=46 | E103: (46+112)/(2)=79 | F103: (46+46)/(2)=46 | G103: (999639.1+51)/(2)=499845.05 | N103: S24 | O103: (46+999761)/(2)=499903.5 | P103: (46+114)/(2)=80 | Q103: (999661+170)/(2)=499915.5 | R103: (46+46)/(2)=46 | S103: (46+109)/(2)=77.5 | T103: (46+46)/(2)=46
A104: S25 | B104: (66+999944.1)/(2)=500005.05 | C104: (45+45)/(2)=45 | D104: (45+45)/(2)=45 | E104: (45+111)/(2)=78 | F104: (45+45)/(2)=45 | G104: (999638.1+50)/(2)=499844.05 | N104: S25 | O104: (45+999760)/(2)=499902.5 | P104: (45+113)/(2)=79 | Q104: (999660+169)/(2)=499914.5 | R104: (45+45)/(2)=45 | S104: (45+108)/(2)=76.5 | T104: (45+45)/(2)=45
A105: S26 | B105: (65+999943.1)/(2)=500004.05 | C105: (44+44)/(2)=44 | D105: (44+44)/(2)=44 | E105: (44+110)/(2)=77 | F105: (44+44)/(2)=44 | G105: (999637.1+49)/(2)=499843.05 | N105: S26 | O105: (44+999759)/(2)=499901.5 | P105: (44+112)/(2)=78 | Q105: (999659+168)/(2)=499913.5 | R105: (44+44)/(2)=44 | S105: (44+107)/(2)=75.5 | T105: (44+44)/(2)=44
A106: S27 | B106: (64+999942.1)/(2)=500003.05 | C106: (43+43)/(2)=43 | D106: (43+43)/(2)=43 | E106: (43+109)/(2)=76 | F106: (43+43)/(2)=43 | G106: (999636.1+48)/(2)=499842.05 | N106: S27 | O106: (43+999758)/(2)=499900.5 | P106: (43+111)/(2)=77 | Q106: (999658+167)/(2)=499912.5 | R106: (43+43)/(2)=43 | S106: (43+106)/(2)=74.5 | T106: (43+43)/(2)=43
A107: S28 | B107: (63+999941.1)/(2)=500002.05 | C107: (42+42)/(2)=42 | D107: (42+42)/(2)=42 | E107: (42+108)/(2)=75 | F107: (42+42)/(2)=42 | G107: (999635.1+47)/(2)=499841.05 | N107: S28 | O107: (42+999757)/(2)=499899.5 | P107: (42+110)/(2)=76 | Q107: (999657+166)/(2)=499911.5 | R107: (42+42)/(2)=42 | S107: (42+105)/(2)=73.5 | T107: (42+42)/(2)=42
A108: S29 | B108: (62+999940.1)/(2)=500001.05 | C108: (41+41)/(2)=41 | D108: (41+41)/(2)=41 | E108: (41+107)/(2)=74 | F108: (41+41)/(2)=41 | G108: (999634.1+46)/(2)=499840.05 | N108: S29 | O108: (41+999756)/(2)=499898.5 | P108: (41+109)/(2)=75 | Q108: (999656+165)/(2)=499910.5 | R108: (41+41)/(2)=41 | S108: (41+104)/(2)=72.5 | T108: (41+41)/(2)=41
A109: S30 | B109: (61+999939.1)/(2)=500000.05 | C109: (40+40)/(2)=40 | D109: (40+40)/(2)=40 | E109: (40+106)/(2)=73 | F109: (40+40)/(2)=40 | G109: (999633.1+45)/(2)=499839.05 | N109: S30 | O109: (40+999755)/(2)=499897.5 | P109: (40+108)/(2)=74 | Q109: (999655+164)/(2)=499909.5 | R109: (40+40)/(2)=40 | S109: (40+103)/(2)=71.5 | T109: (40+40)/(2)=40
A110: S31 | B110: (60+999938.1)/(2)=499999.05 | C110: (39+39)/(2)=39 | D110: (39+39)/(2)=39 | E110: (39+105)/(2)=72 | F110: (39+39)/(2)=39 | G110: (999632.1+44)/(2)=499838.05 | N110: S31 | O110: (39+999754)/(2)=499896.5 | P110: (39+107)/(2)=73 | Q110: (999654+163)/(2)=499908.5 | R110: (39+39)/(2)=39 | S110: (39+102)/(2)=70.5 | T110: (39+39)/(2)=39
A111: S32 | B111: (59+999937.1)/(2)=499998.05 | C111: (38+38)/(2)=38 | D111: (38+38)/(2)=38 | E111: (38+104)/(2)=71 | F111: (38+38)/(2)=38 | G111: (999631.1+43)/(2)=499837.05 | N111: S32 | O111: (38+999753)/(2)=499895.5 | P111: (38+106)/(2)=72 | Q111: (999653+162)/(2)=499907.5 | R111: (38+38)/(2)=38 | S111: (38+101)/(2)=69.5 | T111: (38+38)/(2)=38
A112: S33 | B112: (58+999936.1)/(2)=499997.05 | C112: (37+37)/(2)=37 | D112: (37+37)/(2)=37 | E112: (37+103)/(2)=70 | F112: (37+37)/(2)=37 | G112: (999630.1+42)/(2)=499836.05 | N112: S33 | O112: (37+999752)/(2)=499894.5 | P112: (37+105)/(2)=71 | Q112: (999652+161)/(2)=499906.5 | R112: (37+37)/(2)=37 | S112: (37+100)/(2)=68.5 | T112: (37+37)/(2)=37
A113: S34 | B113: (57+999935.1)/(2)=499996.05 | C113: (36+36)/(2)=36 | D113: (36+36)/(2)=36 | E113: (36+102)/(2)=69 | F113: (36+36)/(2)=36 | G113: (999629.1+41)/(2)=499835.05 | N113: S34 | O113: (36+999751)/(2)=499893.5 | P113: (36+104)/(2)=70 | Q113: (999651+160)/(2)=499905.5 | R113: (36+36)/(2)=36 | S113: (36+99)/(2)=67.5 | T113: (36+36)/(2)=36
A114: S35 | B114: (56+999934.1)/(2)=499995.05 | C114: (35+35)/(2)=35 | D114: (35+35)/(2)=35 | E114: (35+101)/(2)=68 | F114: (35+35)/(2)=35 | G114: (999628.1+40)/(2)=499834.05 | N114: S35 | O114: (35+999750)/(2)=499892.5 | P114: (35+103)/(2)=69 | Q114: (999650+159)/(2)=499904.5 | R114: (35+35)/(2)=35 | S114: (35+98)/(2)=66.5 | T114: (35+35)/(2)=35
A115: S36 | B115: (55+999933.1)/(2)=499994.05 | C115: (34+34)/(2)=34 | D115: (34+34)/(2)=34 | E115: (34+100)/(2)=67 | F115: (34+34)/(2)=34 | G115: (999627.1+39)/(2)=499833.05 | N115: S36 | O115: (34+999749)/(2)=499891.5 | P115: (34+102)/(2)=68 | Q115: (999649+158)/(2)=499903.5 | R115: (34+34)/(2)=34 | S115: (34+97)/(2)=65.5 | T115: (34+34)/(2)=34
A116: S37 | B116: (54+999932.1)/(2)=499993.05 | C116: (33+33)/(2)=33 | D116: (33+33)/(2)=33 | E116: (33+99)/(2)=66 | F116: (33+33)/(2)=33 | G116: (999626.1+38)/(2)=499832.05 | N116: S37 | O116: (33+999748)/(2)=499890.5 | P116: (33+101)/(2)=67 | Q116: (999648+157)/(2)=499902.5 | R116: (33+33)/(2)=33 | S116: (33+96)/(2)=64.5 | T116: (33+33)/(2)=33
A117: S38 | B117: (53+999931.1)/(2)=499992.05 | C117: (32+32)/(2)=32 | D117: (32+32)/(2)=32 | E117: (32+98)/(2)=65 | F117: (32+32)/(2)=32 | G117: (999625.1+37)/(2)=499831.05 | N117: S38 | O117: (32+999747)/(2)=499889.5 | P117: (32+100)/(2)=66 | Q117: (999647+156)/(2)=499901.5 | R117: (32+32)/(2)=32 | S117: (32+95)/(2)=63.5 | T117: (32+32)/(2)=32
A118: S39 | B118: (52+999930.1)/(2)=499991.05 | C118: (31+31)/(2)=31 | D118: (31+31)/(2)=31 | E118: (31+97)/(2)=64 | F118: (31+31)/(2)=31 | G118: (999624.1+36)/(2)=499830.05 | N118: S39 | O118: (31+999746)/(2)=499888.5 | P118: (31+99)/(2)=65 | Q118: (999646+155)/(2)=499900.5 | R118: (31+31)/(2)=31 | S118: (31+94)/(2)=62.5 | T118: (31+31)/(2)=31
A119: S40 | B119: (51+999929.1)/(2)=499990.05 | C119: (30+30)/(2)=30 | D119: (30+30)/(2)=30 | E119: (30+96)/(2)=63 | F119: (30+30)/(2)=30 | G119: (999623.1+35)/(2)=499829.05 | N119: S40 | O119: (30+999745)/(2)=499887.5 | P119: (30+98)/(2)=64 | Q119: (999645+154)/(2)=499899.5 | R119: (30+30)/(2)=30 | S119: (30+93)/(2)=61.5 | T119: (30+30)/(2)=30
A120: S41 | B120: (50+999928.1)/(2)=499989.05 | C120: (29+29)/(2)=29 | D120: (29+29)/(2)=29 | E120: (29+95)/(2)=62 | F120: (29+29)/(2)=29 | G120: (999622.1+34)/(2)=499828.05 | N120: S41 | O120: (29+999744)/(2)=499886.5 | P120: (29+97)/(2)=63 | Q120: (999644+153)/(2)=499898.5 | R120: (29+29)/(2)=29 | S120: (29+92)/(2)=60.5 | T120: (29+29)/(2)=29
A121: S42 | B121: (49+999927.1)/(2)=499988.05 | C121: (28+28)/(2)=28 | D121: (28+28)/(2)=28 | E121: (28+94)/(2)=61 | F121: (28+28)/(2)=28 | G121: (999621.1+33)/(2)=499827.05 | N121: S42 | O121: (28+999743)/(2)=499885.5 | P121: (28+96)/(2)=62 | Q121: (999643+152)/(2)=499897.5 | R121: (28+28)/(2)=28 | S121: (28+91)/(2)=59.5 | T121: (28+28)/(2)=28
A122: S43 | B122: (48+999926.1)/(2)=499987.05 | C122: (27+27)/(2)=27 | D122: (27+27)/(2)=27 | E122: (27+93)/(2)=60 | F122: (27+27)/(2)=27 | G122: (999620.1+32)/(2)=499826.05 | N122: S43 | O122: (27+999742)/(2)=499884.5 | P122: (27+95)/(2)=61 | Q122: (999642+151)/(2)=499896.5 | R122: (27+27)/(2)=27 | S122: (27+90)/(2)=58.5 | T122: (27+27)/(2)=27
A123: S44 | B123: (47+999925.1)/(2)=499986.05 | C123: (26+26)/(2)=26 | D123: (26+26)/(2)=26 | E123: (26+92)/(2)=59 | F123: (26+26)/(2)=26 | G123: (999619.1+31)/(2)=499825.05 | N123: S44 | O123: (26+999741)/(2)=499883.5 | P123: (26+94)/(2)=60 | Q123: (999641+150)/(2)=499895.5 | R123: (26+26)/(2)=26 | S123: (26+89)/(2)=57.5 | T123: (26+26)/(2)=26
A124: S45 | B124: (46+999924.1)/(2)=499985.05 | C124: (25+25)/(2)=25 | D124: (25+25)/(2)=25 | E124: (25+91)/(2)=58 | F124: (25+25)/(2)=25 | G124: (999618.1+30)/(2)=499824.05 | N124: S45 | O124: (25+999740)/(2)=499882.5 | P124: (25+93)/(2)=59 | Q124: (999640+149)/(2)=499894.5 | R124: (25+25)/(2)=25 | S124: (25+88)/(2)=56.5 | T124: (25+25)/(2)=25
A125: S46 | B125: (45+999923.1)/(2)=499984.05 | C125: (24+24)/(2)=24 | D125: (24+24)/(2)=24 | E125: (24+90)/(2)=57 | F125: (24+24)/(2)=24 | G125: (999617.1+29)/(2)=499823.05 | N125: S46 | O125: (24+999739)/(2)=499881.5 | P125: (24+92)/(2)=58 | Q125: (999639+148)/(2)=499893.5 | R125: (24+24)/(2)=24 | S125: (24+87)/(2)=55.5 | T125: (24+24)/(2)=24
A126: S47 | B126: (44+999922.1)/(2)=499983.05 | C126: (23+23)/(2)=23 | D126: (23+23)/(2)=23 | E126: (23+89)/(2)=56 | F126: (23+23)/(2)=23 | G126: (999616.1+28)/(2)=499822.05 | N126: S47 | O126: (23+999738)/(2)=499880.5 | P126: (23+91)/(2)=57 | Q126: (999638+147)/(2)=499892.5 | R126: (23+23)/(2)=23 | S126: (23+86)/(2)=54.5 | T126: (23+23)/(2)=23
A127: S48 | B127: (43+999921.1)/(2)=499982.05 | C127: (22+22)/(2)=22 | D127: (22+22)/(2)=22 | E127: (22+88)/(2)=55 | F127: (22+22)/(2)=22 | G127: (999615.1+27)/(2)=499821.05 | N127: S48 | O127: (22+999737)/(2)=499879.5 | P127: (22+90)/(2)=56 | Q127: (999637+146)/(2)=499891.5 | R127: (22+22)/(2)=22 | S127: (22+85)/(2)=53.5 | T127: (22+22)/(2)=22
A128: S49 | B128: (42+999920.1)/(2)=499981.05 | C128: (21+21)/(2)=21 | D128: (21+21)/(2)=21 | E128: (21+87)/(2)=54 | F128: (21+21)/(2)=21 | G128: (999614.1+26)/(2)=499820.05 | N128: S49 | O128: (21+999736)/(2)=499878.5 | P128: (21+89)/(2)=55 | Q128: (999636+145)/(2)=499890.5 | R128: (21+21)/(2)=21 | S128: (21+84)/(2)=52.5 | T128: (21+21)/(2)=21
A129: S50 | B129: (41+999919.1)/(2)=499980.05 | C129: (20+20)/(2)=20 | D129: (20+20)/(2)=20 | E129: (20+86)/(2)=53 | F129: (20+20)/(2)=20 | G129: (999613.1+25)/(2)=499819.05 | N129: S50 | O129: (20+999735)/(2)=499877.5 | P129: (20+88)/(2)=54 | Q129: (999635+144)/(2)=499889.5 | R129: (20+20)/(2)=20 | S129: (20+83)/(2)=51.5 | T129: (20+20)/(2)=20
A130: S51 | B130: (40+999918.1)/(2)=499979.05 | C130: (19+19)/(2)=19 | D130: (19+19)/(2)=19 | E130: (19+85)/(2)=52 | F130: (19+19)/(2)=19 | G130: (999612.1+19)/(2)=499815.55 | N130: S51 | O130: (19+999734)/(2)=499876.5 | P130: (19+87)/(2)=53 | Q130: (999634+143)/(2)=499888.5 | R130: (19+19)/(2)=19 | S130: (19+82)/(2)=50.5 | T130: (19+19)/(2)=19
A131: S52 | B131: (39+999917.1)/(2)=499978.05 | C131: (18+18)/(2)=18 | D131: (18+18)/(2)=18 | E131: (18+84)/(2)=51 | F131: (18+18)/(2)=18 | G131: (999611.1+18)/(2)=499814.55 | N131: S52 | O131: (18+999733)/(2)=499875.5 | P131: (18+86)/(2)=52 | Q131: (999633+142)/(2)=499887.5 | R131: (18+18)/(2)=18 | S131: (18+81)/(2)=49.5 | T131: (18+18)/(2)=18
A132: S53 | B132: (38+999916.1)/(2)=499977.05 | C132: (17+17)/(2)=17 | D132: (17+17)/(2)=17 | E132: (17+83)/(2)=50 | F132: (17+17)/(2)=17 | G132: (999610.1+17)/(2)=499813.55 | N132: S53 | O132: (17+999732)/(2)=499874.5 | P132: (17+85)/(2)=51 | Q132: (999632+141)/(2)=499886.5 | R132: (17+17)/(2)=17 | S132: (17+80)/(2)=48.5 | T132: (17+17)/(2)=17
A133: S54 | B133: (37+999915.1)/(2)=499976.05 | C133: (16+16)/(2)=16 | D133: (16+16)/(2)=16 | E133: (16+82)/(2)=49 | F133: (16+16)/(2)=16 | G133: (999609.1+16)/(2)=499812.55 | N133: S54 | O133: (16+999731)/(2)=499873.5 | P133: (16+84)/(2)=50 | Q133: (999631+140)/(2)=499885.5 | R133: (16+16)/(2)=16 | S133: (16+79)/(2)=47.5 | T133: (16+16)/(2)=16
A134: S55 | B134: (36+999914.1)/(2)=499975.05 | C134: (15+15)/(2)=15 | D134: (15+15)/(2)=15 | E134: (15+81)/(2)=48 | F134: (15+15)/(2)=15 | G134: (999608.1+15)/(2)=499811.55 | N134: S55 | O134: (15+999730)/(2)=499872.5 | P134: (15+83)/(2)=49 | Q134: (999630+139)/(2)=499884.5 | R134: (15+15)/(2)=15 | S134: (15+78)/(2)=46.5 | T134: (15+15)/(2)=15
A135: S56 | B135: (35+999913.1)/(2)=499974.05 | C135: (14+14)/(2)=14 | D135: (14+14)/(2)=14 | E135: (14+80)/(2)=47 | F135: (14+14)/(2)=14 | G135: (999607.1+14)/(2)=499810.55 | N135: S56 | O135: (14+999729)/(2)=499871.5 | P135: (14+82)/(2)=48 | Q135: (999629+138)/(2)=499883.5 | R135: (14+14)/(2)=14 | S135: (14+77)/(2)=45.5 | T135: (14+14)/(2)=14
A136: S57 | B136: (34+999912.1)/(2)=499973.05 | C136: (13+13)/(2)=13 | D136: (13+13)/(2)=13 | E136: (13+79)/(2)=46 | F136: (13+13)/(2)=13 | G136: (999606.1+13)/(2)=499809.55 | N136: S57 | O136: (13+999728)/(2)=499870.5 | P136: (13+81)/(2)=47 | Q136: (999628+137)/(2)=499882.5 | R136: (13+13)/(2)=13 | S136: (13+76)/(2)=44.5 | T136: (13+13)/(2)=13
A137: S58 | B137: (33+999911.1)/(2)=499972.05 | C137: (12+12)/(2)=12 | D137: (12+12)/(2)=12 | E137: (12+78)/(2)=45 | F137: (12+12)/(2)=12 | G137: (999605.1+12)/(2)=499808.55 | N137: S58 | O137: (12+999727)/(2)=499869.5 | P137: (12+80)/(2)=46 | Q137: (999627+136)/(2)=499881.5 | R137: (12+12)/(2)=12 | S137: (12+75)/(2)=43.5 | T137: (12+12)/(2)=12
A138: S59 | B138: (32+999910.1)/(2)=499971.05 | C138: (11+11)/(2)=11 | D138: (11+11)/(2)=11 | E138: (11+77)/(2)=44 | F138: (11+11)/(2)=11 | G138: (999604.1+11)/(2)=499807.55 | N138: S59 | O138: (11+999726)/(2)=499868.5 | P138: (11+79)/(2)=45 | Q138: (999626+135)/(2)=499880.5 | R138: (11+11)/(2)=11 | S138: (11+74)/(2)=42.5 | T138: (11+11)/(2)=11
A139: S60 | B139: (31+999909.1)/(2)=499970.05 | C139: (10+10)/(2)=10 | D139: (10+10)/(2)=10 | E139: (10+76)/(2)=43 | F139: (10+10)/(2)=10 | G139: (999603.1+10)/(2)=499806.55 | N139: S60 | O139: (10+999725)/(2)=499867.5 | P139: (10+78)/(2)=44 | Q139: (999625+134)/(2)=499879.5 | R139: (10+10)/(2)=10 | S139: (10+73)/(2)=41.5 | T139: (10+10)/(2)=10
A140: S61 | B140: (30+999908.1)/(2)=499969.05 | C140: (9+9)/(2)=9 | D140: (9+9)/(2)=9 | E140: (9+75)/(2)=42 | F140: (9+9)/(2)=9 | G140: (999602.1+9)/(2)=499805.55 | N140: S61 | O140: (9+999724)/(2)=499866.5 | P140: (9+77)/(2)=43 | Q140: (999624+133)/(2)=499878.5 | R140: (9+9)/(2)=9 | S140: (9+72)/(2)=40.5 | T140: (9+9)/(2)=9
A141: S62 | B141: (29+999907.1)/(2)=499968.05 | C141: (8+8)/(2)=8 | D141: (8+8)/(2)=8 | E141: (8+74)/(2)=41 | F141: (8+8)/(2)=8 | G141: (999601.1+8)/(2)=499804.55 | N141: S62 | O141: (8+999723)/(2)=499865.5 | P141: (8+76)/(2)=42 | Q141: (999623+132)/(2)=499877.5 | R141: (8+8)/(2)=8 | S141: (8+71)/(2)=39.5 | T141: (8+8)/(2)=8
A142: S63 | B142: (28+999906.1)/(2)=499967.05 | C142: (7+7)/(2)=7 | D142: (7+7)/(2)=7 | E142: (7+73)/(2)=40 | F142: (7+7)/(2)=7 | G142: (999600.1+7)/(2)=499803.55 | N142: S63 | O142: (7+999722)/(2)=499864.5 | P142: (7+75)/(2)=41 | Q142: (999622+131)/(2)=499876.5 | R142: (7+7)/(2)=7 | S142: (7+70)/(2)=38.5 | T142: (7+7)/(2)=7
A143: S64 | B143: (27+999905.1)/(2)=499966.05 | C143: (6+6)/(2)=6 | D143: (6+6)/(2)=6 | E143: (6+72)/(2)=39 | F143: (6+6)/(2)=6 | G143: (999599.1+6)/(2)=499802.55 | N143: S64 | O143: (6+999721)/(2)=499863.5 | P143: (6+74)/(2)=40 | Q143: (999621+88)/(2)=499854.5 | R143: (6+6)/(2)=6 | S143: (6+69)/(2)=37.5 | T143: (6+6)/(2)=6
A144: S65 | B144: (26+999904.1)/(2)=499965.05 | C144: (5+5)/(2)=5 | D144: (5+5)/(2)=5 | E144: (5+71)/(2)=38 | F144: (5+5)/(2)=5 | G144: (999598.1+5)/(2)=499801.55 | N144: S65 | O144: (5+999720)/(2)=499862.5 | P144: (5+73)/(2)=39 | Q144: (999620+87)/(2)=499853.5 | R144: (5+5)/(2)=5 | S144: (5+68)/(2)=36.5 | T144: (5+5)/(2)=5
A145: S66 | B145: (25+999903.1)/(2)=499964.05 | C145: (4+4)/(2)=4 | D145: (4+4)/(2)=4 | E145: (4+70)/(2)=37 | F145: (4+4)/(2)=4 | G145: (999597.1+4)/(2)=499800.55 | N145: S66 | O145: (4+999719)/(2)=499861.5 | P145: (4+72)/(2)=38 | Q145: (999619+86)/(2)=499852.5 | R145: (4+4)/(2)=4 | S145: (4+67)/(2)=35.5 | T145: (4+4)/(2)=4
A146: S67 | B146: (24+999794.1)/(2)=499909.05 | C146: (3+3)/(2)=3 | D146: (3+3)/(2)=3 | E146: (3+45)/(2)=24 | F146: (3+3)/(2)=3 | G146: (999596.1+3)/(2)=499799.55 | N146: S67 | O146: (3+999718)/(2)=499860.5 | P146: (3+71)/(2)=37 | Q146: (999618+59)/(2)=499838.5 | R146: (3+3)/(2)=3 | S146: (3+66)/(2)=34.5 | T146: (3+3)/(2)=3
A147: S68 | B147: (23+999793.1)/(2)=499908.05 | C147: (2+2)/(2)=2 | D147: (2+2)/(2)=2 | E147: (2+44)/(2)=23 | F147: (2+2)/(2)=2 | G147: (999595.1+2)/(2)=499798.55 | N147: S68 | O147: (2+999717)/(2)=499859.5 | P147: (2+41)/(2)=21.5 | Q147: (999617+6)/(2)=499811.5 | R147: (2+2)/(2)=2 | S147: (2+65)/(2)=33.5 | T147: (2+2)/(2)=2
A148: S69 | B148: (22+999792.1)/(2)=499907.05 | C148: (1+1)/(2)=1 | D148: (1+1)/(2)=1 | E148: (1+1)/(2)=1 | F148: (1+1)/(2)=1 | G148: (999594.1+1)/(2)=499797.55 | N148: S69 | O148: (1+999716)/(2)=499858.5 | P148: (1+40)/(2)=20.5 | Q148: (999616+1)/(2)=499808.5 | R148: (1+1)/(2)=1 | S148: (1+7)/(2)=4 | T148: (1+1)/(2)=1
A149: S70 | B149: (0+999641.1)/(2)=499820.55 | C149: (0+0)/(2)=0 | D149: (0+0)/(2)=0 | E149: (0+0)/(2)=0 | F149: (0+0)/(2)=0 | G149: (999593.1+0)/(2)=499796.55 | N149: S70 | O149: (0+999619)/(2)=499809.5 | P149: (0+0)/(2)=0 | Q149: (999615+0)/(2)=499807.5 | R149: (0+0)/(2)=0 | S149: (0+0)/(2)=0 | T149: (0+0)/(2)=0
A151: Lépcsôk(2) | B151: X(A1) | C151: X(A2) | D151: X(A3) | E151: X(A4) | F151: X(A5) | G151: X(A6) | N151: Lépcsôk(2) | O151: X(A1) | P151: X(A2) | Q151: X(A3) | R151: X(A4) | S151: X(A5) | T151: X(A6)
A152: S1 | B152: 500077 | C152: 102 | D152: 131.5 | E152: 102 | F152: 101 | G152: 499868 | N152: S1 | O152: 500069 | P152: 103 | Q152: 499938.5 | R152: 100.5 | S152: 100.5 | T152: 71.5
A153: S2 | B153: 500028 | C153: 81 | D153: 127.5 | E153: 101 | F153: 100 | G153: 499867 | N153: S2 | O153: 499976.5 | P153: 102 | Q153: 499937.5 | R153: 99.5 | S153: 99.5 | T153: 70.5
A154: S3 | B154: 500027 | C154: 78.5 | D154: 126.5 | E154: 100 | F154: 67 | G154: 499866 | N154: S3 | O154: 499975.5 | P154: 101 | Q154: 499936.5 | R154: 78 | S154: 98.5 | T154: 69.5
A155: S4 | B155: 500026 | C155: 66 | D155: 100.5 | E155: 99 | F155: 66 | G155: 499865 | N155: S4 | O155: 499974.5 | P155: 100 | Q155: 499935.5 | R155: 77 | S155: 97.5 | T155: 68.5
A156: S5 | B156: 500025 | C156: 65 | D156: 86 | E156: 98 | F156: 65 | G156: 499864 | N156: S5 | O156: 499922.5 | P156: 99 | Q156: 499934.5 | R156: 65 | S156: 96.5 | T156: 67.5
A157: S6 | B157: 500024 | C157: 64 | D157: 85 | E157: 97 | F157: 64 | G157: 499863 | N157: S6 | O157: 499921.5 | P157: 98 | Q157: 499933.5 | R157: 64 | S157: 95.5 | T157: 66.5
A158: S7 | B158: 500023 | C158: 63 | D158: 84 | E158: 96 | F158: 63 | G158: 499862 | N158: S7 | O158: 499920.5 | P158: 97 | Q158: 499932.5 | R158: 63 | S158: 94.5 | T158: 65.5
A159: S8 | B159: 500022 | C159: 62 | D159: 62 | E159: 95 | F159: 62 | G159: 499861 | N159: S8 | O159: 499919.5 | P159: 96 | Q159: 499931.5 | R159: 62 | S159: 93.5 | T159: 64.5
A160: S9 | B160: 500021 | C160: 61 | D160: 61 | E160: 94 | F160: 61 | G160: 499860 | N160: S9 | O160: 499918.5 | P160: 95 | Q160: 499930.5 | R160: 61 | S160: 92.5 | T160: 63.5
A161: S10 | B161: 500020 | C161: 60 | D161: 60 | E161: 93 | F161: 60 | G161: 499859 | N161: S10 | O161: 499917.5 | P161: 94 | Q161: 499929.5 | R161: 60 | S161: 91.5 | T161: 62.5
A162: S11 | B162: 500019 | C162: 59 | D162: 59 | E162: 92 | F162: 59 | G162: 499858 | N162: S11 | O162: 499916.5 | P162: 93 | Q162: 499928.5 | R162: 59 | S162: 90.5 | T162: 61.5
A163: S12 | B163: 500018 | C163: 58 | D163: 58 | E163: 91 | F163: 58 | G163: 499857 | N163: S12 | O163: 499915.5 | P163: 92 | Q163: 499927.5 | R163: 58 | S163: 89.5 | T163: 60.5
A164: S13 | B164: 500017 | C164: 57 | D164: 57 | E164: 90 | F164: 57 | G164: 499856 | N164: S13 | O164: 499914.5 | P164: 91 | Q164: 499926.5 | R164: 57 | S164: 88.5 | T164: 59.5
A165: S14 | B165: 500016 | C165: 56 | D165: 56 | E165: 89 | F165: 56 | G165: 499855 | N165: S14 | O165: 499913.5 | P165: 90 | Q165: 499925.5 | R165: 56 | S165: 87.5 | T165: 58.5
A166: S15 | B166: 500015 | C166: 55 | D166: 55 | E166: 88 | F166: 55 | G166: 499854 | N166: S15 | O166: 499912.5 | P166: 89 | Q166: 499924.5 | R166: 55 | S166: 86.5 | T166: 57.5
A167: S16 | B167: 500014 | C167: 54 | D167: 54 | E167: 87 | F167: 54 | G167: 499853 | N167: S16 | O167: 499911.5 | P167: 88 | Q167: 499923.5 | R167: 54 | S167: 85.5 | T167: 56.5
A168: S17 | B168: 500013 | C168: 53 | D168: 53 | E168: 86 | F168: 53 | G168: 499852 | N168: S17 | O168: 499910.5 | P168: 87 | Q168: 499922.5 | R168: 53 | S168: 84.5 | T168: 55.5
A169: S18 | B169: 500012 | C169: 52 | D169: 52 | E169: 85 | F169: 52 | G169: 499851 | N169: S18 | O169: 499909.5 | P169: 86 | Q169: 499921.5 | R169: 52 | S169: 83.5 | T169: 54.5
A170: S19 | B170: 500011 | C170: 51 | D170: 51 | E170: 84 | F170: 51 | G170: 499850 | N170: S19 | O170: 499908.5 | P170: 85 | Q170: 499920.5 | R170: 51 | S170: 82.5 | T170: 53.5
A171: S20 | B171: 500010 | C171: 50 | D171: 50 | E171: 83 | F171: 50 | G171: 499849 | N171: S20 | O171: 499907.5 | P171: 84 | Q171: 499919.5 | R171: 50 | S171: 81.5 | T171: 52.5
A172: S21 | B172: 500009 | C172: 49 | D172: 49 | E172: 82 | F172: 49 | G172: 499848 | N172: S21 | O172: 499906.5 | P172: 83 | Q172: 499918.5 | R172: 49 | S172: 80.5 | T172: 49
A173: S22 | B173: 500008 | C173: 48 | D173: 48 | E173: 81 | F173: 48 | G173: 499847 | N173: S22 | O173: 499905.5 | P173: 82 | Q173: 499917.5 | R173: 48 | S173: 79.5 | T173: 48
A174: S23 | B174: 500007 | C174: 47 | D174: 47 | E174: 80 | F174: 47 | G174: 499846 | N174: S23 | O174: 499904.5 | P174: 81 | Q174: 499916.5 | R174: 47 | S174: 78.5 | T174: 47
A175: S24 | B175: 500006 | C175: 46 | D175: 46 | E175: 79 | F175: 46 | G175: 499845 | N175: S24 | O175: 499903.5 | P175: 80 | Q175: 499915.5 | R175: 46 | S175: 77.5 | T175: 46
A176: S25 | B176: 500005 | C176: 45 | D176: 45 | E176: 78 | F176: 45 | G176: 499844 | N176: S25 | O176: 499902.5 | P176: 79 | Q176: 499914.5 | R176: 45 | S176: 76.5 | T176: 45
A177: S26 | B177: 500004 | C177: 44 | D177: 44 | E177: 77 | F177: 44 | G177: 499843 | N177: S26 | O177: 499901.5 | P177: 78 | Q177: 499913.5 | R177: 44 | S177: 75.5 | T177: 44
A178: S27 | B178: 500003 | C178: 43 | D178: 43 | E178: 76 | F178: 43 | G178: 499842 | N178: S27 | O178: 499900.5 | P178: 77 | Q178: 499912.5 | R178: 43 | S178: 74.5 | T178: 43
A179: S28 | B179: 500002 | C179: 42 | D179: 42 | E179: 75 | F179: 42 | G179: 499841 | N179: S28 | O179: 499899.5 | P179: 76 | Q179: 499911.5 | R179: 42 | S179: 73.5 | T179: 42
A180: S29 | B180: 500001 | C180: 41 | D180: 41 | E180: 74 | F180: 41 | G180: 499840 | N180: S29 | O180: 499898.5 | P180: 75 | Q180: 499910.5 | R180: 41 | S180: 72.5 | T180: 41
A181: S30 | B181: 500000 | C181: 40 | D181: 40 | E181: 73 | F181: 40 | G181: 499839 | N181: S30 | O181: 499897.5 | P181: 74 | Q181: 499909.5 | R181: 40 | S181: 71.5 | T181: 40
A182: S31 | B182: 499999 | C182: 39 | D182: 39 | E182: 72 | F182: 39 | G182: 499838 | N182: S31 | O182: 499896.5 | P182: 73 | Q182: 499908.5 | R182: 39 | S182: 70.5 | T182: 39
A183: S32 | B183: 499998 | C183: 38 | D183: 38 | E183: 71 | F183: 38 | G183: 499837 | N183: S32 | O183: 499895.5 | P183: 72 | Q183: 499907.5 | R183: 38 | S183: 69.5 | T183: 38
A184: S33 | B184: 499997 | C184: 37 | D184: 37 | E184: 70 | F184: 37 | G184: 499836 | N184: S33 | O184: 499894.5 | P184: 71 | Q184: 499906.5 | R184: 37 | S184: 68.5 | T184: 37
A185: S34 | B185: 499996 | C185: 36 | D185: 36 | E185: 69 | F185: 36 | G185: 499835 | N185: S34 | O185: 499893.5 | P185: 70 | Q185: 499905.5 | R185: 36 | S185: 67.5 | T185: 36
A186: S35 | B186: 499995 | C186: 35 | D186: 35 | E186: 68 | F186: 35 | G186: 499834 | N186: S35 | O186: 499892.5 | P186: 69 | Q186: 499904.5 | R186: 35 | S186: 66.5 | T186: 35
A187: S36 | B187: 499994 | C187: 34 | D187: 34 | E187: 67 | F187: 34 | G187: 499833 | N187: S36 | O187: 499891.5 | P187: 68 | Q187: 499903.5 | R187: 34 | S187: 65.5 | T187: 34
A188: S37 | B188: 499993 | C188: 33 | D188: 33 | E188: 66 | F188: 33 | G188: 499832 | N188: S37 | O188: 499890.5 | P188: 67 | Q188: 499902.5 | R188: 33 | S188: 64.5 | T188: 33
A189: S38 | B189: 499992 | C189: 32 | D189: 32 | E189: 65 | F189: 32 | G189: 499831 | N189: S38 | O189: 499889.5 | P189: 66 | Q189: 499901.5 | R189: 32 | S189: 63.5 | T189: 32
A190: S39 | B190: 499991 | C190: 31 | D190: 31 | E190: 64 | F190: 31 | G190: 499830 | N190: S39 | O190: 499888.5 | P190: 65 | Q190: 499900.5 | R190: 31 | S190: 62.5 | T190: 31
A191: S40 | B191: 499990 | C191: 30 | D191: 30 | E191: 63 | F191: 30 | G191: 499829 | N191: S40 | O191: 499887.5 | P191: 64 | Q191: 499899.5 | R191: 30 | S191: 61.5 | T191: 30
A192: S41 | B192: 499989 | C192: 29 | D192: 29 | E192: 62 | F192: 29 | G192: 499828 | N192: S41 | O192: 499886.5 | P192: 63 | Q192: 499898.5 | R192: 29 | S192: 60.5 | T192: 29
A193: S42 | B193: 499988 | C193: 28 | D193: 28 | E193: 61 | F193: 28 | G193: 499827 | N193: S42 | O193: 499885.5 | P193: 62 | Q193: 499897.5 | R193: 28 | S193: 59.5 | T193: 28
A194: S43 | B194: 499987 | C194: 27 | D194: 27 | E194: 60 | F194: 27 | G194: 499826 | N194: S43 | O194: 499884.5 | P194: 61 | Q194: 499896.5 | R194: 27 | S194: 58.5 | T194: 27
A195: S44 | B195: 499986 | C195: 26 | D195: 26 | E195: 59 | F195: 26 | G195: 499825 | N195: S44 | O195: 499883.5 | P195: 60 | Q195: 499895.5 | R195: 26 | S195: 57.5 | T195: 26
A196: S45 | B196: 499985 | C196: 25 | D196: 25 | E196: 58 | F196: 25 | G196: 499824 | N196: S45 | O196: 499882.5 | P196: 59 | Q196: 499894.5 | R196: 25 | S196: 56.5 | T196: 25
A197: S46 | B197: 499984 | C197: 24 | D197: 24 | E197: 57 | F197: 24 | G197: 499823 | N197: S46 | O197: 499881.5 | P197: 58 | Q197: 499893.5 | R197: 24 | S197: 55.5 | T197: 24
A198: S47 | B198: 499983 | C198: 23 | D198: 23 | E198: 56 | F198: 23 | G198: 499822 | N198: S47 | O198: 499880.5 | P198: 57 | Q198: 499892.5 | R198: 23 | S198: 54.5 | T198: 23
A199: S48 | B199: 499982 | C199: 22 | D199: 22 | E199: 55 | F199: 22 | G199: 499821 | N199: S48 | O199: 499879.5 | P199: 56 | Q199: 499891.5 | R199: 22 | S199: 53.5 | T199: 22
A200: S49 | B200: 499981 | C200: 21 | D200: 21 | E200: 54 | F200: 21 | G200: 499820 | N200: S49 | O200: 499878.5 | P200: 55 | Q200: 499890.5 | R200: 21 | S200: 52.5 | T200: 21
A201: S50 | B201: 499980 | C201: 20 | D201: 20 | E201: 53 | F201: 20 | G201: 499819 | N201: S50 | O201: 499877.5 | P201: 54 | Q201: 499889.5 | R201: 20 | S201: 51.5 | T201: 20
A202: S51 | B202: 499979 | C202: 19 | D202: 19 | E202: 52 | F202: 19 | G202: 499815.5 | N202: S51 | O202: 499876.5 | P202: 53 | Q202: 499888.5 | R202: 19 | S202: 50.5 | T202: 19
A203: S52 | B203: 499978 | C203: 18 | D203: 18 | E203: 51 | F203: 18 | G203: 499814.5 | N203: S52 | O203: 499875.5 | P203: 52 | Q203: 499887.5 | R203: 18 | S203: 49.5 | T203: 18
A204: S53 | B204: 499977 | C204: 17 | D204: 17 | E204: 50 | F204: 17 | G204: 499813.5 | N204: S53 | O204: 499874.5 | P204: 51 | Q204: 499886.5 | R204: 17 | S204: 48.5 | T204: 17
A205: S54 | B205: 499976 | C205: 16 | D205: 16 | E205: 49 | F205: 16 | G205: 499812.5 | N205: S54 | O205: 499873.5 | P205: 50 | Q205: 499885.5 | R205: 16 | S205: 47.5 | T205: 16
A206: S55 | B206: 499975 | C206: 15 | D206: 15 | E206: 48 | F206: 15 | G206: 499811.5 | N206: S55 | O206: 499872.5 | P206: 49 | Q206: 499884.5 | R206: 15 | S206: 46.5 | T206: 15
... 97 more rows

Sheet eredmenyek
C3: =OAM_ertek!W4 -> burgonya | D3: =OAM_ertek!X4 -> Búza *összesen*na.*na. | E3: =OAM_ertek!Y4 -> kukorica | F3: =OAM_ertek!Z4 -> napraforgó | G3: =OAM_ertek!AA4 -> őszi árpa | H3: =OAM_ertek!AB4 -> Rozs *összesen*na.*na.
A4: =OAM_ertek!U5 -> Régió | B4: =OAM_ertek!V5 -> Év | C4: =OAM_ertek!W5 -> t/ha | D4: =OAM_ertek!X5 -> t/ha | E4: =OAM_ertek!Y5 -> t/ha | F4: =OAM_ertek!Z5 -> t/ha | G4: =OAM_ertek!AA5 -> t/ha | H4: =OAM_ertek!AB5 -> t/ha | I4: =OAM_ertek!AC5 -> Y0 | J4: =modellek!H223 -> Becslés | K4: =modellek!L223 -> validitas | L4: =A4 -> Régió | M4: =B4 -> Év
A5: =OAM_ertek!U6 -> Dél-Alföld | B5: =OAM_ertek!V6 -> 2000 | C5: =OAM_ertek!W6 -> 48 | D5: =OAM_ertek!X6 -> 39 | E5: =OAM_ertek!Y6 -> 53 | F5: =OAM_ertek!Z6 -> 67 | G5: =OAM_ertek!AA6 -> 55 | H5: =OAM_ertek!AB6 -> 61 | I5: =OAM_ertek!AC6 -> 1000000 | J5: =modellek!H224 -> 999874.6 | K5: =modellek!L224 -> valid | L5: =A5 -> Dél-Alföld | M5: 2000
A6: =OAM_ertek!U7 -> Dél-Alföld | B6: =OAM_ertek!V7 -> 2001 | C6: =OAM_ertek!W7 -> 40 | D6: =OAM_ertek!X7 -> 26 | E6: =OAM_ertek!Y7 -> 16 | F6: =OAM_ertek!Z7 -> 50 | G6: =OAM_ertek!AA7 -> 27 | H6: =OAM_ertek!AB7 -> 47 | I6: =OAM_ertek!AC7 -> 1000000 | J6: =modellek!H225 -> 1000006.1 | K6: =modellek!L225 -> valid | L6: Dél-Alföld | M6: 2001
A7: =OAM_ertek!U8 -> Dél-Alföld | B7: =OAM_ertek!V8 -> 2002 | C7: =OAM_ertek!W8 -> 45 | D7: =OAM_ertek!X8 -> 50 | E7: =OAM_ertek!Y8 -> 42 | F7: =OAM_ertek!Z8 -> 47 | G7: =OAM_ertek!AA8 -> 42 | H7: =OAM_ertek!AB8 -> 43 | I7: =OAM_ertek!AC8 -> 1000000 | J7: =modellek!H226 -> 999943.1 | K7: =modellek!L226 -> valid | L7: Dél-Alföld | M7: 2002
A8: =OAM_ertek!U9 -> Dél-Alföld | B8: =OAM_ertek!V9 -> 2003 | C8: =OAM_ertek!W9 -> 46 | D8: =OAM_ertek!X9 -> 65 | E8: =OAM_ertek!Y9 -> 66 | F8: =OAM_ertek!Z9 -> 53 | G8: =OAM_ertek!AA9 -> 59 | H8: =OAM_ertek!AB9 -> 69 | I8: =OAM_ertek!AC9 -> 1000000 | J8: =modellek!H227 -> 999851.6 | K8: =modellek!L227 -> valid | L8: Dél-Alföld | M8: 2003
A9: =OAM_ertek!U10 -> Dél-Alföld | B9: =OAM_ertek!V10 -> 2004 | C9: =OAM_ertek!W10 -> 22 | D9: =OAM_ertek!X10 -> 1 | E9: =OAM_ertek!Y10 -> 19 | F9: =OAM_ertek!Z10 -> 10 | G9: =OAM_ertek!AA10 -> 10 | H9: =OAM_ertek!AB10 -> 28 | I9: =OAM_ertek!AC10 -> 1000000 | J9: =modellek!H228 -> 1000155.1 | K9: =modellek!L228 -> valid | L9: Dél-Alföld | M9: 2004
A10: =OAM_ertek!U11 -> Dél-Alföld | B10: =OAM_ertek!V11 -> 2005 | C10: =OAM_ertek!W11 -> 35 | D10: =OAM_ertek!X11 -> 21 | E10: =OAM_ertek!Y11 -> 11 | F10: =OAM_ertek!Z11 -> 43 | G10: =OAM_ertek!AA11 -> 34 | H10: =OAM_ertek!AB11 -> 16 | I10: =OAM_ertek!AC11 -> 1000000 | J10: =modellek!H229 -> 1000052.1 | K10: =modellek!L229 -> valid | L10: Dél-Alföld | M10: 2005
A11: =OAM_ertek!U12 -> Dél-Alföld | B11: =OAM_ertek!V12 -> 2006 | C11: =OAM_ertek!W12 -> 17 | D11: =OAM_ertek!X12 -> 32 | E11: =OAM_ertek!Y12 -> 21 | F11: =OAM_ertek!Z12 -> 40 | G11: =OAM_ertek!AA12 -> 32 | H11: =OAM_ertek!AB12 -> 56 | I11: =OAM_ertek!AC12 -> 1000000 | J11: =modellek!H230 -> 1000011.6 | K11: =modellek!L230 -> valid | L11: Dél-Alföld | M11: 2006
A12: =OAM_ertek!U13 -> Dél-Alföld | B12: =OAM_ertek!V13 -> 2007 | C12: =OAM_ertek!W13 -> 25 | D12: =OAM_ertek!X13 -> 46 | E12: =OAM_ertek!Y13 -> 56 | F12: =OAM_ertek!Z13 -> 29 | G12: =OAM_ertek!AA13 -> 40 | H12: =OAM_ertek!AB13 -> 64 | I12: =OAM_ertek!AC13 -> 1000000 | J12: =modellek!H231 -> 999949.6 | K12: =modellek!L231 -> valid | L12: Dél-Alföld | M12: 2007
A13: =OAM_ertek!U14 -> Dél-Alföld | B13: =OAM_ertek!V14 -> 2008 | C13: =OAM_ertek!W14 -> 13 | D13: =OAM_ertek!X14 -> 5 | E13: =OAM_ertek!Y14 -> 22 | F13: =OAM_ertek!Z14 -> 8 | G13: =OAM_ertek!AA14 -> 1 | H13: =OAM_ertek!AB14 -> 39 | I13: =OAM_ertek!AC14 -> 1000000 | J13: =modellek!H232 -> 1000156.1 | K13: =modellek!L232 -> valid | L13: Dél-Alföld | M13: 2008
A14: =OAM_ertek!U15 -> Dél-Alföld | B14: =OAM_ertek!V15 -> 2009 | C14: =OAM_ertek!W15 -> 5 | D14: =OAM_ertek!X15 -> 47 | E14: =OAM_ertek!Y15 -> 39 | F14: =OAM_ertek!Z15 -> 18 | G14: =OAM_ertek!AA15 -> 45 | H14: =OAM_ertek!AB15 -> 63 | I14: =OAM_ertek!AC15 -> 1000000 | J14: =modellek!H233 -> 999992.6 | K14: =modellek!L233 -> valid | L14: Dél-Alföld | M14: 2009
A15: =OAM_ertek!U16 -> Dél-Dunántúl | B15: =OAM_ertek!V16 -> 2000 | C15: =OAM_ertek!W16 -> 68 | D15: =OAM_ertek!X16 -> 36 | E15: =OAM_ertek!Y16 -> 50 | F15: =OAM_ertek!Z16 -> 41 | G15: =OAM_ertek!AA16 -> 41 | H15: =OAM_ertek!AB16 -> 5 | I15: =OAM_ertek!AC16 -> 1000000 | J15: =modellek!H234 -> 999917.1 | K15: =modellek!L234 -> valid | L15: Dél-Dunántúl | M15: 2000
A16: =OAM_ertek!U17 -> Dél-Dunántúl | B16: =OAM_ertek!V17 -> 2001 | C16: =OAM_ertek!W17 -> 60 | D16: =OAM_ertek!X17 -> 13 | E16: =OAM_ertek!Y17 -> 24 | F16: =OAM_ertek!Z17 -> 43 | G16: =OAM_ertek!AA17 -> 7 | H16: =OAM_ertek!AB17 -> 5 | I16: =OAM_ertek!AC17 -> 1000000 | J16: =modellek!H235 -> 1000060.1 | K16: =modellek!L235 -> valid | L16: Dél-Dunántúl | M16: 2001
A17: =OAM_ertek!U18 -> Dél-Dunántúl | B17: =OAM_ertek!V18 -> 2002 | C17: =OAM_ertek!W18 -> 31 | D17: =OAM_ertek!X18 -> 15 | E17: =OAM_ertek!Y18 -> 31 | F17: =OAM_ertek!Z18 -> 25 | G17: =OAM_ertek!AA18 -> 25 | H17: =OAM_ertek!AB18 -> 5 | I17: =OAM_ertek!AC18 -> 1000000 | J17: =modellek!H236 -> 1000080.1 | K17: =modellek!L236 -> valid | L17: Dél-Dunántúl | M17: 2002
A18: =OAM_ertek!U19 -> Dél-Dunántúl | B18: =OAM_ertek!V19 -> 2003 | C18: =OAM_ertek!W19 -> 62 | D18: =OAM_ertek!X19 -> 53 | E18: =OAM_ertek!Y19 -> 55 | F18: =OAM_ertek!Z19 -> 19 | G18: =OAM_ertek!AA19 -> 49 | H18: =OAM_ertek!AB19 -> 53 | I18: =OAM_ertek!AC19 -> 1000000 | J18: =modellek!H237 -> 999918.6 | K18: =modellek!L237 -> valid | L18: Dél-Dunántúl | M18: 2003
A19: =OAM_ertek!U20 -> Dél-Dunántúl | B19: =OAM_ertek!V20 -> 2004 | C19: =OAM_ertek!W20 -> 2 | D19: =OAM_ertek!X20 -> 6 | E19: =OAM_ertek!Y20 -> 8 | F19: =OAM_ertek!Z20 -> 1 | G19: =OAM_ertek!AA20 -> 5 | H19: =OAM_ertek!AB20 -> 2 | I19: =OAM_ertek!AC20 -> 1000000 | J19: =modellek!H238 -> 1000188.1 | K19: =modellek!L238 -> valid | L19: Dél-Dunántúl | M19: 2004
A20: =OAM_ertek!U21 -> Dél-Dunántúl | B20: =OAM_ertek!V21 -> 2005 | C20: =OAM_ertek!W21 -> 14 | D20: =OAM_ertek!X21 -> 18 | E20: =OAM_ertek!Y21 -> 5 | F20: =OAM_ertek!Z21 -> 13 | G20: =OAM_ertek!AA21 -> 15 | H20: =OAM_ertek!AB21 -> 1 | I20: =OAM_ertek!AC21 -> 1000000 | J20: =modellek!H239 -> 1000167.1 | K20: =modellek!L239 -> valid | L20: Dél-Dunántúl | M20: 2005
A21: =OAM_ertek!U22 -> Dél-Dunántúl | B21: =OAM_ertek!V22 -> 2006 | C21: =OAM_ertek!W22 -> 27 | D21: =OAM_ertek!X22 -> 20 | E21: =OAM_ertek!Y22 -> 11 | F21: =OAM_ertek!Z22 -> 21 | G21: =OAM_ertek!AA22 -> 8 | H21: =OAM_ertek!AB22 -> 3 | I21: =OAM_ertek!AC22 -> 1000000 | J21: =modellek!H240 -> 1000122.1 | K21: =modellek!L240 -> valid | L21: Dél-Dunántúl | M21: 2006
A22: =OAM_ertek!U23 -> Dél-Dunántúl | B22: =OAM_ertek!V23 -> 2007 | C22: =OAM_ertek!W23 -> 59 | D22: =OAM_ertek!X23 -> 45 | E22: =OAM_ertek!Y23 -> 68 | F22: =OAM_ertek!Z23 -> 15 | G22: =OAM_ertek!AA23 -> 23 | H22: =OAM_ertek!AB23 -> 5 | I22: =OAM_ertek!AC23 -> 1000000 | J22: =modellek!H241 -> 999997.1 | K22: =modellek!L241 -> valid | L22: Dél-Dunántúl | M22: 2007
A23: =OAM_ertek!U24 -> Dél-Dunántúl | B23: =OAM_ertek!V24 -> 2008 | C23: =OAM_ertek!W24 -> 53 | D23: =OAM_ertek!X24 -> 2 | E23: =OAM_ertek!Y24 -> 6 | F23: =OAM_ertek!Z24 -> 2 | G23: =OAM_ertek!AA24 -> 24 | H23: =OAM_ertek!AB24 -> 5 | I23: =OAM_ertek!AC24 -> 1000000 | J23: =modellek!H242 -> 1000154.1 | K23: =modellek!L242 -> valid | L23: Dél-Dunántúl | M23: 2008
A24: =OAM_ertek!U25 -> Dél-Dunántúl | B24: =OAM_ertek!V25 -> 2009 | C24: =OAM_ertek!W25 -> 49 | D24: =OAM_ertek!X25 -> 10 | E24: =OAM_ertek!Y25 -> 19 | F24: =OAM_ertek!Z25 -> 5 | G24: =OAM_ertek!AA25 -> 6 | H24: =OAM_ertek!AB25 -> 10 | I24: =OAM_ertek!AC25 -> 1000000 | J24: =modellek!H243 -> 1000113.1 | K24: =modellek!L243 -> valid | L24: Dél-Dunántúl | M24: 2009
A25: =OAM_ertek!U26 -> Észak-Alföld | B25: =OAM_ertek!V26 -> 2000 | C25: =OAM_ertek!W26 -> 41 | D25: =OAM_ertek!X26 -> 58 | E25: =OAM_ertek!Y26 -> 62 | F25: =OAM_ertek!Z26 -> 67 | G25: =OAM_ertek!AA26 -> 56 | H25: =OAM_ertek!AB26 -> 67 | I25: =OAM_ertek!AC26 -> 1000000 | J25: =modellek!H244 -> 999846.6 | K25: =modellek!L244 -> valid | L25: Észak-Alföld | M25: 2000
A26: =OAM_ertek!U27 -> Észak-Alföld | B26: =OAM_ertek!V27 -> 2001 | C26: =OAM_ertek!W27 -> 23 | D26: =OAM_ertek!X27 -> 41 | E26: =OAM_ertek!Y27 -> 25 | F26: =OAM_ertek!Z27 -> 64 | G26: =OAM_ertek!AA27 -> 17 | H26: =OAM_ertek!AB27 -> 53 | I26: =OAM_ertek!AC27 -> 1000000 | J26: =modellek!H245 -> 999986.6 | K26: =modellek!L245 -> valid | L26: Észak-Alföld | M26: 2001
A27: =OAM_ertek!U28 -> Észak-Alföld | B27: =OAM_ertek!V28 -> 2002 | C27: =OAM_ertek!W28 -> 39 | D27: =OAM_ertek!X28 -> 62 | E27: =OAM_ertek!Y28 -> 49 | F27: =OAM_ertek!Z28 -> 57 | G27: =OAM_ertek!AA28 -> 69 | H27: =OAM_ertek!AB28 -> 57 | I27: =OAM_ertek!AC28 -> 1000000 | J27: =modellek!H246 -> 999876.6 | K27: =modellek!L246 -> valid | L27: Észak-Alföld | M27: 2002
A28: =OAM_ertek!U29 -> Észak-Alföld | B28: =OAM_ertek!V29 -> 2003 | C28: =OAM_ertek!W29 -> 30 | D28: =OAM_ertek!X29 -> 68 | E28: =OAM_ertek!Y29 -> 47 | F28: =OAM_ertek!Z29 -> 58 | G28: =OAM_ertek!AA29 -> 68 | H28: =OAM_ertek!AB29 -> 49 | I28: =OAM_ertek!AC29 -> 1000000 | J28: =modellek!H247 -> 999892.1 | K28: =modellek!L247 -> valid | L28: Észak-Alföld | M28: 2003
A29: =OAM_ertek!U30 -> Észak-Alföld | B29: =OAM_ertek!V30 -> 2004 | C29: =OAM_ertek!W30 -> 42 | D29: =OAM_ertek!X30 -> 3 | E29: =OAM_ertek!Y30 -> 9 | F29: =OAM_ertek!Z30 -> 36 | G29: =OAM_ertek!AA30 -> 2 | H29: =OAM_ertek!AB30 -> 19 | I29: =OAM_ertek!AC30 -> 1000000 | J29: =modellek!H248 -> 1000144.6 | K29: =modellek!L248 -> valid | L29: Észak-Alföld | M29: 2004
A30: =OAM_ertek!U31 -> Észak-Alföld | B30: =OAM_ertek!V31 -> 2005 | C30: =OAM_ertek!W31 -> 7 | D30: =OAM_ertek!X31 -> 34 | E30: =OAM_ertek!Y31 -> 13 | F30: =OAM_ertek!Z31 -> 49 | G30: =OAM_ertek!AA31 -> 26 | H30: =OAM_ertek!AB31 -> 68 | I30: =OAM_ertek!AC31 -> 1000000 | J30: =modellek!H249 -> 1000012.6 | K30: =modellek!L249 -> valid | L30: Észak-Alföld | M30: 2005
A31: =OAM_ertek!U32 -> Észak-Alföld | B31: =OAM_ertek!V32 -> 2006 | C31: =OAM_ertek!W32 -> 11 | D31: =OAM_ertek!X32 -> 56 | E31: =OAM_ertek!Y32 -> 32 | F31: =OAM_ertek!Z32 -> 59 | G31: =OAM_ertek!AA32 -> 66 | H31: =OAM_ertek!AB32 -> 52 | I31: =OAM_ertek!AC32 -> 1000000 | J31: =modellek!H250 -> 999933.6 | K31: =modellek!L250 -> valid | L31: Észak-Alföld | M31: 2006
A32: =OAM_ertek!U33 -> Észak-Alföld | B32: =OAM_ertek!V33 -> 2007 | C32: =OAM_ertek!W33 -> 37 | D32: =OAM_ertek!X33 -> 60 | E32: =OAM_ertek!Y33 -> 52 | F32: =OAM_ertek!Z33 -> 37 | G32: =OAM_ertek!AA33 -> 54 | H32: =OAM_ertek!AB33 -> 66 | I32: =OAM_ertek!AC33 -> 1000000 | J32: =modellek!H251 -> 999903.6 | K32: =modellek!L251 -> valid | L32: Észak-Alföld | M32: 2007
A33: =OAM_ertek!U34 -> Észak-Alföld | B33: =OAM_ertek!V34 -> 2008 | C33: =OAM_ertek!W34 -> 44 | D33: =OAM_ertek!X34 -> 14 | E33: =OAM_ertek!Y34 -> 3 | F33: =OAM_ertek!Z34 -> 4 | G33: =OAM_ertek!AA34 -> 19 | H33: =OAM_ertek!AB34 -> 59 | I33: =OAM_ertek!AC34 -> 1000000 | J33: =modellek!H252 -> 1000126.1 | K33: =modellek!L252 -> valid | L33: Észak-Alföld | M33: 2008
A34: =OAM_ertek!U35 -> Észak-Alföld | B34: =OAM_ertek!V35 -> 2009 | C34: =OAM_ertek!W35 -> 3 | D34: =OAM_ertek!X35 -> 49 | E34: =OAM_ertek!Y35 -> 35 | F34: =OAM_ertek!Z35 -> 31 | G34: =OAM_ertek!AA35 -> 58 | H34: =OAM_ertek!AB35 -> 46 | I34: =OAM_ertek!AC35 -> 1000000 | J34: =modellek!H253 -> 999990.1 | K34: =modellek!L253 -> valid | L34: Észak-Alföld | M34: 2009
A35: =OAM_ertek!U36 -> Észak-Magyarország | B35: =OAM_ertek!V36 -> 2000 | C35: =OAM_ertek!W36 -> 56 | D35: =OAM_ertek!X36 -> 66 | E35: =OAM_ertek!Y36 -> 70 | F35: =OAM_ertek!Z36 -> 70 | G35: =OAM_ertek!AA36 -> 30 | H35: =OAM_ertek!AB36 -> 22 | I35: =OAM_ertek!AC36 -> 1000000 | J35: =modellek!H254 -> 999865.1 | K35: =modellek!L254 -> valid | L35: Észak-Magyarország | M35: 2000
A36: =OAM_ertek!U37 -> Észak-Magyarország | B36: =OAM_ertek!V37 -> 2001 | C36: =OAM_ertek!W37 -> 51 | D36: =OAM_ertek!X37 -> 41 | E36: =OAM_ertek!Y37 -> 43 | F36: =OAM_ertek!Z37 -> 61 | G36: =OAM_ertek!AA37 -> 48 | H36: =OAM_ertek!AB37 -> 22 | I36: =OAM_ertek!AC37 -> 1000000 | J36: =modellek!H255 -> 999946.1 | K36: =modellek!L255 -> valid | L36: Észak-Magyarország | M36: 2001
A37: =OAM_ertek!U38 -> Észak-Magyarország | B37: =OAM_ertek!V38 -> 2002 | C37: =OAM_ertek!W38 -> 38 | D37: =OAM_ertek!X38 -> 64 | E37: =OAM_ertek!Y38 -> 46 | F37: =OAM_ertek!Z38 -> 69 | G37: =OAM_ertek!AA38 -> 62 | H37: =OAM_ertek!AB38 -> 22 | I37: =OAM_ertek!AC38 -> 1000000 | J37: =modellek!H256 -> 999878.1 | K37: =modellek!L256 -> valid | L37: Észak-Magyarország | M37: 2002
A38: =OAM_ertek!U39 -> Észak-Magyarország | B38: =OAM_ertek!V39 -> 2003 | C38: =OAM_ertek!W39 -> 66 | D38: =OAM_ertek!X39 -> 69 | E38: =OAM_ertek!Y39 -> 59 | F38: =OAM_ertek!Z39 -> 66 | G38: =OAM_ertek!AA39 -> 70 | H38: =OAM_ertek!AB39 -> 50 | I38: =OAM_ertek!AC39 -> 1000000 | J38: =modellek!H257 -> 999832.1 | K38: =modellek!L257 -> valid | L38: Észak-Magyarország | M38: 2003
A39: =OAM_ertek!U40 -> Észak-Magyarország | B39: =OAM_ertek!V40 -> 2004 | C39: =OAM_ertek!W40 -> 10 | D39: =OAM_ertek!X40 -> 25 | E39: =OAM_ertek!Y40 -> 40 | F39: =OAM_ertek!Z40 -> 33 | G39: =OAM_ertek!AA40 -> 31 | H39: =OAM_ertek!AB40 -> 13 | I39: =OAM_ertek!AC40 -> 1000000 | J39: =modellek!H258 -> 1000060.1 | K39: =modellek!L258 -> valid | L39: Észak-Magyarország | M39: 2004
A40: =OAM_ertek!U41 -> Észak-Magyarország | B40: =OAM_ertek!V41 -> 2005 | C40: =OAM_ertek!W41 -> 21 | D40: =OAM_ertek!X41 -> 28 | E40: =OAM_ertek!Y41 -> 34 | F40: =OAM_ertek!Z41 -> 32 | G40: =OAM_ertek!AA41 -> 21 | H40: =OAM_ertek!AB41 -> 21 | I40: =OAM_ertek!AC41 -> 1000000 | J40: =modellek!H259 -> 1000055.1 | K40: =modellek!L259 -> valid | L40: Észak-Magyarország | M40: 2005
A41: =OAM_ertek!U42 -> Észak-Magyarország | B41: =OAM_ertek!V42 -> 2006 | C41: =OAM_ertek!W42 -> 29 | D41: =OAM_ertek!X42 -> 44 | E41: =OAM_ertek!Y42 -> 40 | F41: =OAM_ertek!Z42 -> 51 | G41: =OAM_ertek!AA42 -> 37 | H41: =OAM_ertek!AB42 -> 32 | I41: =OAM_ertek!AC42 -> 1000000 | J41: =modellek!H260 -> 999979.1 | K41: =modellek!L260 -> valid | L41: Észak-Magyarország | M41: 2006
A42: =OAM_ertek!U43 -> Észak-Magyarország | B42: =OAM_ertek!V43 -> 2007 | C42: =OAM_ertek!W43 -> 32 | D42: =OAM_ertek!X43 -> 57 | E42: =OAM_ertek!Y43 -> 63 | F42: =OAM_ertek!Z43 -> 60 | G42: =OAM_ertek!AA43 -> 50 | H42: =OAM_ertek!AB43 -> 41 | I42: =OAM_ertek!AC43 -> 1000000 | J42: =modellek!H261 -> 999909.1 | K42: =modellek!L261 -> valid | L42: Észak-Magyarország | M42: 2007
A43: =OAM_ertek!U44 -> Észak-Magyarország | B43: =OAM_ertek!V44 -> 2008 | C43: =OAM_ertek!W44 -> 8 | D43: =OAM_ertek!X44 -> 23 | E43: =OAM_ertek!Y44 -> 38 | F43: =OAM_ertek!Z44 -> 17 | G43: =OAM_ertek!AA44 -> 12 | H43: =OAM_ertek!AB44 -> 11 | I43: =OAM_ertek!AC44 -> 1000000 | J43: =modellek!H262 -> 1000103.1 | K43: =modellek!L262 -> valid | L43: Észak-Magyarország | M43: 2008
A44: =OAM_ertek!U45 -> Észak-Magyarország | B44: =OAM_ertek!V45 -> 2009 | C44: =OAM_ertek!W45 -> 32 | D44: =OAM_ertek!X45 -> 51 | E44: =OAM_ertek!Y45 -> 44 | F44: =OAM_ertek!Z45 -> 34 | G44: =OAM_ertek!AA45 -> 42 | H44: =OAM_ertek!AB45 -> 14 | I44: =OAM_ertek!AC45 -> 1000000 | J44: =modellek!H263 -> 999995.1 | K44: =modellek!L263 -> valid | L44: Észak-Magyarország | M44: 2009
A45: =OAM_ertek!U46 -> Közép-Dunántúl | B45: =OAM_ertek!V46 -> 2000 | C45: =OAM_ertek!W46 -> 69 | D45: =OAM_ertek!X46 -> 38 | E45: =OAM_ertek!Y46 -> 48 | F45: =OAM_ertek!Z46 -> 43 | G45: =OAM_ertek!AA46 -> 52 | H45: =OAM_ertek!AB46 -> 22 | I45: =OAM_ertek!AC46 -> 1000000 | J45: =modellek!H264 -> 999886.1 | K45: =modellek!L264 -> valid | L45: Közép-Dunántúl | M45: 2000
A46: =OAM_ertek!U47 -> Közép-Dunántúl | B46: =OAM_ertek!V47 -> 2001 | C46: =OAM_ertek!W47 -> 67 | D46: =OAM_ertek!X47 -> 31 | E46: =OAM_ertek!Y47 -> 27 | F46: =OAM_ertek!Z47 -> 30 | G46: =OAM_ertek!AA47 -> 32 | H46: =OAM_ertek!AB47 -> 45 | I46: =OAM_ertek!AC47 -> 1000000 | J46: =modellek!H265 -> 999926.1 | K46: =modellek!L265 -> valid | L46: Közép-Dunántúl | M46: 2001
A47: =OAM_ertek!U48 -> Közép-Dunántúl | B47: =OAM_ertek!V48 -> 2002 | C47: =OAM_ertek!W48 -> 50 | D47: =OAM_ertek!X48 -> 43 | E47: =OAM_ertek!Y48 -> 30 | F47: =OAM_ertek!Z48 -> 34 | G47: =OAM_ertek!AA48 -> 64 | H47: =OAM_ertek!AB48 -> 34 | I47: =OAM_ertek!AC48 -> 1000000 | J47: =modellek!H266 -> 999957.1 | K47: =modellek!L266 -> valid | L47: Közép-Dunántúl | M47: 2002
A48: =OAM_ertek!U49 -> Közép-Dunántúl | B48: =OAM_ertek!V49 -> 2003 | C48: =OAM_ertek!W49 -> 65 | D48: =OAM_ertek!X49 -> 67 | E48: =OAM_ertek!Y49 -> 60 | F48: =OAM_ertek!Z49 -> 23 | G48: =OAM_ertek!AA49 -> 60 | H48: =OAM_ertek!AB49 -> 62 | I48: =OAM_ertek!AC49 -> 1000000 | J48: =modellek!H267 -> 999872.6 | K48: =modellek!L267 -> valid | L48: Közép-Dunántúl | M48: 2003
A49: =OAM_ertek!U50 -> Közép-Dunántúl | B49: =OAM_ertek!V50 -> 2004 | C49: =OAM_ertek!W50 -> 43 | D49: =OAM_ertek!X50 -> 9 | E49: =OAM_ertek!Y50 -> 23 | F49: =OAM_ertek!Z50 -> 7 | G49: =OAM_ertek!AA50 -> 9 | H49: =OAM_ertek!AB50 -> 28 | I49: =OAM_ertek!AC50 -> 1000000 | J49: =modellek!H268 -> 1000093.1 | K49: =modellek!L268 -> valid | L49: Közép-Dunántúl | M49: 2004
A50: =OAM_ertek!U51 -> Közép-Dunántúl | B50: =OAM_ertek!V51 -> 2005 | C50: =OAM_ertek!W51 -> 61 | D50: =OAM_ertek!X51 -> 11 | E50: =OAM_ertek!Y51 -> 1 | F50: =OAM_ertek!Z51 -> 11 | G50: =OAM_ertek!AA51 -> 14 | H50: =OAM_ertek!AB51 -> 51 | I50: =OAM_ertek!AC51 -> 1000000 | J50: =modellek!H269 -> 1000123.1 | K50: =modellek!L269 -> valid | L50: Közép-Dunántúl | M50: 2005
A51: =OAM_ertek!U52 -> Közép-Dunántúl | B51: =OAM_ertek!V52 -> 2006 | C51: =OAM_ertek!W52 -> 57 | D51: =OAM_ertek!X52 -> 29 | E51: =OAM_ertek!Y52 -> 17 | F51: =OAM_ertek!Z52 -> 27 | G51: =OAM_ertek!AA52 -> 34 | H51: =OAM_ertek!AB52 -> 59 | I51: =OAM_ertek!AC52 -> 1000000 | J51: =modellek!H270 -> 999986.6 | K51: =modellek!L270 -> valid | L51: Közép-Dunántúl | M51: 2006
A52: =OAM_ertek!U53 -> Közép-Dunántúl | B52: =OAM_ertek!V53 -> 2007 | C52: =OAM_ertek!W53 -> 47 | D52: =OAM_ertek!X53 -> 54 | E52: =OAM_ertek!Y53 -> 64 | F52: =OAM_ertek!Z53 -> 39 | G52: =OAM_ertek!AA53 -> 39 | H52: =OAM_ertek!AB53 -> 27 | I52: =OAM_ertek!AC53 -> 1000000 | J52: =modellek!H271 -> 999942.1 | K52: =modellek!L271 -> valid | L52: Közép-Dunántúl | M52: 2007
A53: =OAM_ertek!U54 -> Közép-Dunántúl | B53: =OAM_ertek!V54 -> 2008 | C53: =OAM_ertek!W54 -> 70 | D53: =OAM_ertek!X54 -> 4 | E53: =OAM_ertek!Y54 -> 2 | F53: =OAM_ertek!Z54 -> 3 | G53: =OAM_ertek!AA54 -> 3 | H53: =OAM_ertek!AB54 -> 40 | I53: =OAM_ertek!AC54 -> 1000000 | J53: =modellek!H272 -> 1000010.1 | K53: =modellek!L272 -> valid | L53: Közép-Dunántúl | M53: 2008
A54: =OAM_ertek!U55 -> Közép-Dunántúl | B54: =OAM_ertek!V55 -> 2009 | C54: =OAM_ertek!W55 -> 19 | D54: =OAM_ertek!X55 -> 48 | E54: =OAM_ertek!Y55 -> 18 | F54: =OAM_ertek!Z55 -> 13 | G54: =OAM_ertek!AA55 -> 51 | H54: =OAM_ertek!AB55 -> 18 | I54: =OAM_ertek!AC55 -> 1000000 | J54: =modellek!H273 -> 1000045.1 | K54: =modellek!L273 -> valid | L54: Közép-Dunántúl | M54: 2009
A55: =OAM_ertek!U56 -> Közép-Magyarország | B55: =OAM_ertek!V56 -> 2000 | C55: =OAM_ertek!W56 -> 54 | D55: =OAM_ertek!X56 -> 52 | E55: =OAM_ertek!Y56 -> 65 | F55: =OAM_ertek!Z56 -> 65 | G55: =OAM_ertek!AA56 -> 44 | H55: =OAM_ertek!AB56 -> 48 | I55: =OAM_ertek!AC56 -> 1000000 | J55: =modellek!H274 -> 999884.1 | K55: =modellek!L274 -> valid | L55: Közép-Magyarország | M55: 2000
A56: =OAM_ertek!U57 -> Közép-Magyarország | B56: =OAM_ertek!V57 -> 2001 | C56: =OAM_ertek!W57 -> 63 | D56: =OAM_ertek!X57 -> 30 | E56: =OAM_ertek!Y57 -> 33 | F56: =OAM_ertek!Z57 -> 26 | G56: =OAM_ertek!AA57 -> 10 | H56: =OAM_ertek!AB57 -> 37 | I56: =OAM_ertek!AC57 -> 1000000 | J56: =modellek!H275 -> 1000013.1 | K56: =modellek!L275 -> valid | L56: Közép-Magyarország | M56: 2001
A57: =OAM_ertek!U58 -> Közép-Magyarország | B57: =OAM_ertek!V58 -> 2002 | C57: =OAM_ertek!W58 -> 52 | D57: =OAM_ertek!X58 -> 63 | E57: =OAM_ertek!Y58 -> 61 | F57: =OAM_ertek!Z58 -> 56 | G57: =OAM_ertek!AA58 -> 63 | H57: =OAM_ertek!AB58 -> 55 | I57: =OAM_ertek!AC58 -> 1000000 | J57: =modellek!H276 -> 999859.6 | K57: =modellek!L276 -> valid | L57: Közép-Magyarország | M57: 2002
A58: =OAM_ertek!U59 -> Közép-Magyarország | B58: =OAM_ertek!V59 -> 2003 | C58: =OAM_ertek!W59 -> 36 | D58: =OAM_ertek!X59 -> 70 | E58: =OAM_ertek!Y59 -> 69 | F58: =OAM_ertek!Z59 -> 63 | G58: =OAM_ertek!AA59 -> 67 | H58: =OAM_ertek!AB59 -> 70 | I58: =OAM_ertek!AC59 -> 1000000 | J58: =modellek!H277 -> 999834.6 | K58: =modellek!L277 -> valid | L58: Közép-Magyarország | M58: 2003
A59: =OAM_ertek!U60 -> Közép-Magyarország | B59: =OAM_ertek!V60 -> 2004 | C59: =OAM_ertek!W60 -> 1 | D59: =OAM_ertek!X60 -> 8 | E59: =OAM_ertek!Y60 -> 36 | F59: =OAM_ertek!Z60 -> 27 | G59: =OAM_ertek!AA60 -> 13 | H59: =OAM_ertek!AB60 -> 35 | I59: =OAM_ertek!AC60 -> 1000000 | J59: =modellek!H278 -> 1000140.1 | K59: =modellek!L278 -> valid | L59: Közép-Magyarország | M59: 2004
A60: =OAM_ertek!U61 -> Közép-Magyarország | B60: =OAM_ertek!V61 -> 2005 | C60: =OAM_ertek!W61 -> 34 | D60: =OAM_ertek!X61 -> 19 | E60: =OAM_ertek!Y61 -> 15 | F60: =OAM_ertek!Z61 -> 43 | G60: =OAM_ertek!AA61 -> 18 | H60: =OAM_ertek!AB61 -> 17 | I60: =OAM_ertek!AC61 -> 1000000 | J60: =modellek!H279 -> 1000066.1 | K60: =modellek!L279 -> valid | L60: Közép-Magyarország | M60: 2005
A61: =OAM_ertek!U62 -> Közép-Magyarország | B61: =OAM_ertek!V62 -> 2006 | C61: =OAM_ertek!W62 -> 12 | D61: =OAM_ertek!X62 -> 35 | E61: =OAM_ertek!Y62 -> 28 | F61: =OAM_ertek!Z62 -> 37 | G61: =OAM_ertek!AA62 -> 38 | H61: =OAM_ertek!AB62 -> 20 | I61: =OAM_ertek!AC62 -> 1000000 | J61: =modellek!H280 -> 1000042.1 | K61: =modellek!L280 -> valid | L61: Közép-Magyarország | M61: 2006
A62: =OAM_ertek!U63 -> Közép-Magyarország | B62: =OAM_ertek!V63 -> 2007 | C62: =OAM_ertek!W63 -> 9 | D62: =OAM_ertek!X63 -> 61 | E62: =OAM_ertek!Y63 -> 67 | F62: =OAM_ertek!Z63 -> 51 | G62: =OAM_ertek!AA63 -> 60 | H62: =OAM_ertek!AB63 -> 58 | I62: =OAM_ertek!AC63 -> 1000000 | J62: =modellek!H281 -> 999903.6 | K62: =modellek!L281 -> valid | L62: Közép-Magyarország | M62: 2007
A63: =OAM_ertek!U64 -> Közép-Magyarország | B63: =OAM_ertek!V64 -> 2008 | C63: =OAM_ertek!W64 -> 16 | D63: =OAM_ertek!X64 -> 12 | E63: =OAM_ertek!Y64 -> 13 | F63: =OAM_ertek!Z64 -> 9 | G63: =OAM_ertek!AA64 -> 19 | H63: =OAM_ertek!AB64 -> 42 | I63: =OAM_ertek!AC64 -> 1000000 | J63: =modellek!H282 -> 1000101.1 | K63: =modellek!L282 -> valid | L63: Közép-Magyarország | M63: 2008
A64: =OAM_ertek!U65 -> Közép-Magyarország | B64: =OAM_ertek!V65 -> 2009 | C64: =OAM_ertek!W65 -> 28 | D64: =OAM_ertek!X65 -> 55 | E64: =OAM_ertek!Y65 -> 45 | F64: =OAM_ertek!Z65 -> 42 | G64: =OAM_ertek!AA65 -> 53 | H64: =OAM_ertek!AB65 -> 65 | I64: =OAM_ertek!AC65 -> 1000000 | J64: =modellek!H283 -> 999921.6 | K64: =modellek!L283 -> valid | L64: Közép-Magyarország | M64: 2009
A65: =OAM_ertek!U66 -> Nyugat-Dunántúl | B65: =OAM_ertek!V66 -> 2000 | C65: =OAM_ertek!W66 -> 20 | D65: =OAM_ertek!X66 -> 39 | E65: =OAM_ertek!Y66 -> 54 | F65: =OAM_ertek!Z66 -> 62 | G65: =OAM_ertek!AA66 -> 47 | H65: =OAM_ertek!AB66 -> 36 | I65: =OAM_ertek!AC66 -> 1000000 | J65: =modellek!H284 -> 999954.1 | K65: =modellek!L284 -> valid | L65: Nyugat-Dunántúl | M65: 2000
A66: =OAM_ertek!U67 -> Nyugat-Dunántúl | B66: =OAM_ertek!V67 -> 2001 | C66: =OAM_ertek!W67 -> 24 | D66: =OAM_ertek!X67 -> 26 | E66: =OAM_ertek!Y67 -> 57 | F66: =OAM_ertek!Z67 -> 54 | G66: =OAM_ertek!AA67 -> 36 | H66: =OAM_ertek!AB67 -> 37 | I66: =OAM_ertek!AC67 -> 1000000 | J66: =modellek!H285 -> 999978.1 | K66: =modellek!L285 -> valid | L66: Nyugat-Dunántúl | M66: 2001
A67: =OAM_ertek!U68 -> Nyugat-Dunántúl | B67: =OAM_ertek!V68 -> 2002 | C67: =OAM_ertek!W68 -> 55 | D67: =OAM_ertek!X68 -> 33 | E67: =OAM_ertek!Y68 -> 37 | F67: =OAM_ertek!Z68 -> 48 | G67: =OAM_ertek!AA68 -> 65 | H67: =OAM_ertek!AB68 -> 33 | I67: =OAM_ertek!AC68 -> 1000000 | J67: =modellek!H286 -> 999941.1 | K67: =modellek!L286 -> valid | L67: Nyugat-Dunántúl | M67: 2002
A68: =OAM_ertek!U69 -> Nyugat-Dunántúl | B68: =OAM_ertek!V69 -> 2003 | C68: =OAM_ertek!W69 -> 64 | D68: =OAM_ertek!X69 -> 59 | E68: =OAM_ertek!Y69 -> 58 | F68: =OAM_ertek!Z69 -> 15 | G68: =OAM_ertek!AA69 -> 56 | H68: =OAM_ertek!AB69 -> 44 | I68: =OAM_ertek!AC69 -> 1000000 | J68: =modellek!H287 -> 999916.1 | K68: =modellek!L287 -> valid | L68: Nyugat-Dunántúl | M68: =B68 -> 2003
A69: =OAM_ertek!U70 -> Nyugat-Dunántúl | B69: =OAM_ertek!V70 -> 2004 | C69: =OAM_ertek!W70 -> 4 | D69: =OAM_ertek!X70 -> 6 | E69: =OAM_ertek!Y70 -> 29 | F69: =OAM_ertek!Z70 -> 21 | G69: =OAM_ertek!AA70 -> 27 | H69: =OAM_ertek!AB70 -> 15 | I69: =OAM_ertek!AC70 -> 1000000 | J69: =modellek!H288 -> 1000110.1 | K69: =modellek!L288 -> valid | L69: =A69 -> Nyugat-Dunántúl | M69: 2004
A70: =OAM_ertek!U71 -> Nyugat-Dunántúl | B70: =OAM_ertek!V71 -> 2005 | C70: =OAM_ertek!W71 -> 15 | D70: =OAM_ertek!X71 -> 23 | E70: =OAM_ertek!Y71 -> 10 | F70: =OAM_ertek!Z71 -> 12 | G70: =OAM_ertek!AA71 -> 29 | H70: =OAM_ertek!AB71 -> 12 | I70: =OAM_ertek!AC71 -> 1000000 | J70: =modellek!H289 -> 1000111.1 | K70: =modellek!L289 -> valid | L70: Nyugat-Dunántúl | M70: 2005
A71: =OAM_ertek!U72 -> Nyugat-Dunántúl | B71: =OAM_ertek!V72 -> 2006 | C71: =OAM_ertek!W72 -> 18 | D71: =OAM_ertek!X72 -> 22 | E71: =OAM_ertek!Y72 -> 25 | F71: =OAM_ertek!Z72 -> 19 | G71: =OAM_ertek!AA72 -> 46 | H71: =OAM_ertek!AB72 -> 31 | I71: =OAM_ertek!AC72 -> 1000000 | J71: =modellek!H290 -> 1000051.1 | K71: =modellek!L290 -> valid | L71: Nyugat-Dunántúl | M71: 2006
A72: =OAM_ertek!U73 -> Nyugat-Dunántúl | B72: =OAM_ertek!V73 -> 2007 | C72: =OAM_ertek!W73 -> 26 | D72: =OAM_ertek!X73 -> 37 | E72: =OAM_ertek!Y73 -> 51 | F72: =OAM_ertek!Z73 -> 54 | G72: =OAM_ertek!AA73 -> 16 | H72: =OAM_ertek!AB73 -> 30 | I72: =OAM_ertek!AC73 -> 1000000 | J72: =modellek!H291 -> 999998.1 | K72: =modellek!L291 -> valid | L72: Nyugat-Dunántúl | M72: 2007
A73: =OAM_ertek!U74 -> Nyugat-Dunántúl | B73: =OAM_ertek!V74 -> 2008 | C73: =OAM_ertek!W74 -> 58 | D73: =OAM_ertek!X74 -> 17 | E73: =OAM_ertek!Y74 -> 4 | F73: =OAM_ertek!Z74 -> 6 | G73: =OAM_ertek!AA74 -> 4 | H73: =OAM_ertek!AB74 -> 4 | I73: =OAM_ertek!AC74 -> 1000000 | J73: =modellek!H292 -> 1000153.6 | K73: =modellek!L292 -> valid | L73: Nyugat-Dunántúl | M73: 2008
A74: =OAM_ertek!U75 -> Nyugat-Dunántúl | B74: =OAM_ertek!V75 -> 2009 | C74: =OAM_ertek!W75 -> 6 | D74: =OAM_ertek!X75 -> 16 | E74: =OAM_ertek!Y75 -> 7 | F74: =OAM_ertek!Z75 -> 23 | G74: =OAM_ertek!AA75 -> 21 | H74: =OAM_ertek!AB75 -> 26 | I74: =OAM_ertek!AC75 -> 1000000 | J74: =modellek!H293 -> 1000134.1 | K74: =modellek!L293 -> valid | L74: Nyugat-Dunántúl | M74: 2009

Sheet uj problemak
B1: validitas | C1: valid
B3: Összeg / Becslés | C3: Oszlopcímkék | N3: naiv | Q3: irány | R3: 0 | S3: 0 | T3: 0 | U3: …
B4: Sorcímkék | C4: 2000 | D4: 2001 | E4: 2002 | F4: 2003 | G4: 2004 | H4: 2005 | I4: 2006 | J4: 2007 | K4: 2008 | L4: 2009 | N4: legjobb régió? | O4: sorrend | R4: átlag | S4: trend | T4: szórás | U4: …
B5: Dél-Alföld | C5: 999874.6 | D5: 1000006.1 | E5: 999943.1 | F5: 999851.6 | G5: 1000155.1 | H5: 1000052.1 | I5: 1000011.6 | J5: 999949.6 | K5: 1000156.1 | L5: 999992.6 | N5: =AVERAGE(C5:L5) -> 999999.25 | O5: =RANK(N5,N$5:N$11,0) -> 3 | Q5: =B5 -> Dél-Alföld
B6: Dél-Dunántúl | C6: 999917.1 | D6: 1000060.1 | E6: 1000080.1 | F6: 999918.6 | G6: 1000188.1 | H6: 1000167.1 | I6: 1000122.1 | J6: 999997.1 | K6: 1000154.1 | L6: 1000113.1 | N6: =AVERAGE(C6:L6) -> 1000071.75 | O6: =RANK(N6,N$5:N$11,0) -> 1 | Q6: =B6 -> Dél-Dunántúl
B7: Észak-Alföld | C7: 999846.6 | D7: 999986.6 | E7: 999876.6 | F7: 999892.1 | G7: 1000144.6 | H7: 1000012.6 | I7: 999933.6 | J7: 999903.6 | K7: 1000126.1 | L7: 999990.1 | N7: 999971.25 | O7: 6 | Q7: Észak-Alföld
B8: Észak-Magyarország | C8: 999865.1 | D8: 999946.1 | E8: 999878.1 | F8: 999832.1 | G8: 1000060.1 | H8: 1000055.1 | I8: 999979.1 | J8: 999909.1 | K8: 1000103.1 | L8: 999995.1 | N8: 999962.3 | O8: 7 | Q8: Észak-Magyarország
B9: Közép-Dunántúl | C9: 999886.1 | D9: 999926.1 | E9: 999957.1 | F9: 999872.6 | G9: 1000093.1 | H9: 1000123.1 | I9: 999986.6 | J9: 999942.1 | K9: 1000010.1 | L9: 1000045.1 | N9: 999984.2 | O9: 4 | Q9: Közép-Dunántúl
B10: Közép-Magyarország | C10: 999884.1 | D10: 1000013.1 | E10: 999859.6 | F10: 999834.6 | G10: 1000140.1 | H10: 1000066.1 | I10: 1000042.1 | J10: 999903.6 | K10: 1000101.1 | L10: 999921.6 | N10: 999976.6 | O10: 5 | Q10: Közép-Magyarország
B11: Nyugat-Dunántúl | C11: 999954.1 | D11: 999978.1 | E11: 999941.1 | F11: 999916.1 | G11: 1000110.1 | H11: 1000111.1 | I11: 1000051.1 | J11: 999998.1 | K11: 1000153.6 | L11: 1000134.1 | N11: 1000034.75 | O11: 2 | Q11: Nyugat-Dunántúl
A13: naiv | B13: legjobb év? | C13: =AVERAGE(C5:C11) -> 999889.6714 | D13: =AVERAGE(D5:D11) -> 999988.0286 | E13: 999933.6714 | F13: 999873.9571 | G13: 1000127.314 | H13: 1000083.886 | I13: 1000018.029 | J13: 999943.3143 | K13: 1000114.886 | L13: 1000027.386 | N13: =AVERAGE(C5:L11) -> 1000000.014
B14: sorrend | C14: =RANK(C13,$C13:$L13,0) -> 9 | D14: =RANK(D13,$C13:$L13,0) -> 6 | E14: 8 | F14: 10 | G14: 1 | H14: 3 | I14: 5 | J14: 7 | K14: 2 | L14: 4
B16: Mutatószám | C16: (Több tétel)
B17: Mértékegység | C17: t/ha
B19: Átlag / Érték | C19: Oszlopcímkék
B20: Sorcímkék | C20: 2000 | D20: 2001 | E20: 2002 | F20: 2003 | G20: 2004 | H20: 2005 | I20: 2006 | J20: 2007 | K20: 2008 | L20: 2009 | M20: Végösszeg | N20: sorrend | O20: eltérés
B21: Dél-Alföld | C21: 5.49 | D21: 6.851666667 | E21: 6.13 | F21: 5.086666667 | G21: 7.963333333 | H21: 7.206666667 | I21: 7.595 | J21: 6.508333333 | K21: 8.498333333 | L21: 8.215 | M21: 6.9545 | N21: =RANK(M21,M$21:M$27,0) -> 2 | O21: =N21-O5 -> -1
B22: Dél-Dunántúl | C22: 3.853333333 | D22: 5.481666667 | E22: 6.606666667 | F22: 4.845 | G22: 10.00333333 | H22: 8.621666667 | I22: 7.771666667 | J22: 4.683333333 | K22: 6.231666667 | L22: 7.051666667 | M22: 6.515 | N22: =RANK(M22,M$21:M$27,0) -> 5 | O22: =N22-O6 -> 4
B23: Észak-Alföld | C23: 5.503333333 | D23: 7.258333333 | E23: 5.643333333 | F23: 5.92 | G23: 7.37 | H23: 8.333333333 | I23: 7.41 | J23: 5.855 | K23: 7.028333333 | L23: 8.508333333 | M23: 6.883 | N23: 3 | O23: -3
B24: Észak-Magyarország | C24: 4.356666667 | D24: 5.43 | E24: 5.528333333 | F24: 3.58 | G24: 8.186666667 | H24: 7.551666667 | I24: 6.736666667 | J24: 2.368333333 | K24: 8.651666667 | L24: 3.016666667 | M24: 5.540666667 | N24: 6 | O24: -1
B25: Közép-Dunántúl | C25: 3.296666667 | D25: 4.745 | E25: 5.966666667 | F25: 3.908333333 | G25: 7.103333333 | H25: 6.141666667 | I25: 5.833333333 | J25: 5.753333333 | K25: 4.71 | L25: 7.585 | M25: 5.504333333 | N25: 7 | O25: 3
B26: Közép-Magyarország | C26: 5.011666667 | D26: 5.546666667 | E26: 5.05 | F26: 4.963333333 | G26: 9.371666667 | H26: 7.233333333 | I26: 8.01 | J26: 7.183333333 | K26: 8.01 | L26: 6.246666667 | M26: 6.662666667 | N26: 4 | O26: -1
B27: Nyugat-Dunántúl | C27: 6.861666667 | D27: 6.821666667 | E27: 5.48 | F27: 4.473333333 | G27: 9.063333333 | H27: 8.208333333 | I27: 7.68 | J27: 6.85 | K27: 6.541666667 | L27: 8.581666667 | M27: 7.056166667 | N27: 1 | O27: -1
B28: Végösszeg | C28: 4.91047619 | D28: 6.019285714 | E28: 5.772142857 | F28: 4.682380952 | G28: 8.437380952 | H28: 7.613809524 | I28: 7.290952381 | J28: 5.600238095 | K28: 7.095952381 | L28: 7.029285714 | M28: 6.445190476
B29: sorrend | C29: =RANK(C28,$C28:$L28,0) -> 9 | D29: =RANK(D28,$C28:$L28,0) -> 6 | E29: =RANK(E28,$C28:$L28,0) -> 7 | F29: =RANK(F28,$C28:$L28,0) -> 10 | G29: =RANK(G28,$C28:$L28,0) -> 1 | H29: =RANK(H28,$C28:$L28,0) -> 2 | I29: =RANK(I28,$C28:$L28,0) -> 3 | J29: =RANK(J28,$C28:$L28,0) -> 8 | K29: =RANK(K28,$C28:$L28,0) -> 4 | L29: =RANK(L28,$C28:$L28,0) -> 5
B31: eltérés | C31: =C29-C14 -> 0 | D31: =D29-D14 -> 0 | E31: -1 | F31: 0 | G31: 0 | H31: -1 | I31: -2 | J31: 1 | K31: 2 | L31: 1
